Workbook

Sheet Monthly headcount (hidden)
A2: Headcount Calculation
L3: =COLUMN()-COLUMN($B$3)+1 -> 11 | M3: =COLUMN()-COLUMN($B$3)+1 -> 12 | N3: 13 | O3: 14 | P3: 15
D4: DRIVERS SUMA | H4: QTY SUMA | L4: ='Shelter Services Questionnaire'!E73:I73 -> 1 | M4: 2 | N4: 3 | O4: 4 | P4: 5
A5: CLASS | B5: # | C5: POSITION | D5: D1 | E5: D2 | F5: D3 | G5: D4 | I5: Tope | J5: Start | K5: Level
A6: Direct positions
A7: DIR | B7: 1 | C7: ='Shelter Services Questionnaire'!B74:C77 -> 0 | K7: ='Shelter Services Questionnaire'!D74:D77 -> 0 | L7: ='Shelter Services Questionnaire'!E74:I77 -> 0 | M7: 0 | N7: 0 | O7: 0 | P7: 0
A8: DIR | B8: 2 | C8: 0 | K8: 0 | L8: 0 | M8: 0 | N8: 0 | O8: 0 | P8: 0
A9: DIR | B9: 3 | C9: 0 | K9: 0 | L9: 0 | M9: 0 | N9: 0 | O9: 0 | P9: 0
A10: DIR | B10: 4 | C10: 0 | K10: 0 | L10: 0 | M10: 0 | N10: 0 | O10: 0 | P10: 0
A11: Indirect positions
A12: IND | B12: 101 | C12: ='Shelter Services Questionnaire'!B88:C116 -> 0 | D12: 1 | H12: 10 | K12: ='Shelter Services Questionnaire'!D88:D116 -> 0 | L12: =IFERROR(IF(Cantidad>0,IF(Cantidad>0,MIN(IF($I12>0,$I12,10000000000),IF(Start>0,IF((IFERROR(VLOOKUP(Driver1,DatosLabor,ColumnaMes,FALSE),0)+IFERROR(VLOOKUP(Driver2,DatosLabor,ColumnaMes,FALSE),0)+IFERROR(VLOOKUP(Driver3,DatosLabor,ColumnaMes,FALSE),0)+IFERROR(VLOOKUP(Driver4,DatosLabor,ColumnaMes,FALSE),0))>=Start,ROUNDUP((IFERROR(VLOOKUP(Driver1,DatosLabor,ColumnaMes,FALSE),0)+IFERROR(VLOOKUP(Driver2,DatosLabor,ColumnaMes,FALSE),0)+IFERROR(VLOOKUP(Driver3,DatosLabor,ColumnaMes,FALSE),0)+IFERROR(VLOOKUP(Driver4,DatosLabor,ColumnaMes,FALSE),0))/Cantidad,0),0),INT((IFERROR(VLOOKUP(Driver1,DatosLabor,ColumnaMes,FALSE),0)+IFERROR(VLOOKUP(Driver2,DatosLabor,ColumnaMes,FALSE),0)+IFERROR(VLOOKUP(Driver3,DatosLabor,ColumnaMes,FALSE),0)+IFERROR(VLOOKUP(Driver4,DatosLabor,ColumnaMes,FALSE),0))/Cantidad))),0),0),0) -> 0 | M12: 0 | N12: 0 | O12: 0 | P12: 0
A13: IND | B13: 102 | C13: 0 | D13: 1 | H13: 1 | I13: 1 | J13: 1 | K13: 0 | L13: 0 | M13: 0 | N13: 0 | O13: 0 | P13: 0
A14: IND | B14: 103 | C14: 0 | D14: 1 | H14: 1 | I14: 1 | J14: 1 | K14: 0 | L14: 0 | M14: 0 | N14: 0 | O14: 0 | P14: 0
A15: IND | B15: 104 | C15: 0 | D15: 1 | H15: 15 | K15: 0 | L15: 0 | M15: 0 | N15: 0 | O15: 0 | P15: 0
A16: IND | B16: 105 | C16: 0 | D16: 1 | H16: 20 | K16: 0 | L16: 0 | M16: 0 | N16: 0 | O16: 0 | P16: 0
A17: IND | B17: 106 | C17: 0 | D17: 1 | H17: 50 | K17: 0 | L17: 0 | M17: 0 | N17: 0 | O17: 0 | P17: 0
A18: IND | B18: 107 | C18: 0 | D18: 1 | H18: 100 | K18: 0 | L18: 0 | M18: 0 | N18: 0 | O18: 0 | P18: 0
A19: IND | B19: 108 | C19: 0 | D19: 1 | H19: 20 | K19: 0 | L19: 0 | M19: 0 | N19: 0 | O19: 0 | P19: 0
A20: IND | B20: 109 | C20: 0 | D20: 1 | H20: 200 | K20: 0 | L20: 0 | M20: 0 | N20: 0 | O20: 0 | P20: 0
A21: IND | B21: 110 | C21: 0 | K21: 0 | L21: 0 | M21: 0 | N21: 0 | O21: 0 | P21: 0
A22: IND | B22: 111 | C22: 0 | K22: 0 | L22: =IFERROR(IF(Cantidad>0,IF(Cantidad>0,MIN(IF($I22>0,$I22,10000000000),IF(Start>0,IF((IFERROR(VLOOKUP(Driver1,DatosLabor,ColumnaMes,FALSE),0)+IFERROR(VLOOKUP(Driver2,DatosLabor,ColumnaMes,FALSE),0)+IFERROR(VLOOKUP(Driver3,DatosLabor,ColumnaMes,FALSE),0)+IFERROR(VLOOKUP(Driver4,DatosLabor,ColumnaMes,FALSE),0))>=Start,ROUNDUP((IFERROR(VLOOKUP(Driver1,DatosLabor,ColumnaMes,FALSE),0)+IFERROR(VLOOKUP(Driver2,DatosLabor,ColumnaMes,FALSE),0)+IFERROR(VLOOKUP(Driver3,DatosLabor,ColumnaMes,FALSE),0)+IFERROR(VLOOKUP(Driver4,DatosLabor,ColumnaMes,FALSE),0))/Cantidad,0),0),INT((IFERROR(VLOOKUP(Driver1,DatosLabor,ColumnaMes,FALSE),0)+IFERROR(VLOOKUP(Driver2,DatosLabor,ColumnaMes,FALSE),0)+IFERROR(VLOOKUP(Driver3,DatosLabor,ColumnaMes,FALSE),0)+IFERROR(VLOOKUP(Driver4,DatosLabor,ColumnaMes,FALSE),0))/Cantidad))),0),0),0) -> 0 | M22: 0 | N22: 0 | O22: 0 | P22: 0
A23: IND | B23: 112 | C23: 0 | K23: 0 | L23: 0 | M23: 0 | N23: 0 | O23: 0 | P23: 0
A24: IND | B24: 113 | C24: 0 | K24: 0 | L24: 0 | M24: 0 | N24: 0 | O24: 0 | P24: 0
A25: IND | B25: 114 | C25: 0 | K25: 0 | L25: 0 | M25: 0 | N25: 0 | O25: 0 | P25: 0
A26: IND | B26: 115 | C26: 0 | K26: 0 | L26: 0 | M26: 0 | N26: 0 | O26: 0 | P26: 0
A27: IND | B27: 116 | C27: 0 | K27: 0 | L27: 0 | M27: 0 | N27: 0 | O27: 0 | P27: 0
A28: IND | B28: 117 | C28: 0 | K28: 0 | L28: 0 | M28: 0 | N28: 0 | O28: 0 | P28: 0
A29: IND | B29: 118 | C29: 0 | K29: 0 | L29: 0 | M29: 0 | N29: 0 | O29: 0 | P29: 0
A30: IND | B30: 119 | C30: 0 | K30: 0 | L30: 0 | M30: 0 | N30: 0 | O30: 0 | P30: 0
A31: IND | B31: 120 | C31: 0 | K31: 0 | L31: 0 | M31: 0 | N31: 0 | O31: 0 | P31: 0
A32: IND | B32: 121 | C32: 0 | K32: 0 | L32: =IFERROR(IF(Cantidad>0,IF(Cantidad>0,MIN(IF($I32>0,$I32,10000000000),IF(Start>0,IF((IFERROR(VLOOKUP(Driver1,DatosLabor,ColumnaMes,FALSE),0)+IFERROR(VLOOKUP(Driver2,DatosLabor,ColumnaMes,FALSE),0)+IFERROR(VLOOKUP(Driver3,DatosLabor,ColumnaMes,FALSE),0)+IFERROR(VLOOKUP(Driver4,DatosLabor,ColumnaMes,FALSE),0))>=Start,ROUNDUP((IFERROR(VLOOKUP(Driver1,DatosLabor,ColumnaMes,FALSE),0)+IFERROR(VLOOKUP(Driver2,DatosLabor,ColumnaMes,FALSE),0)+IFERROR(VLOOKUP(Driver3,DatosLabor,ColumnaMes,FALSE),0)+IFERROR(VLOOKUP(Driver4,DatosLabor,ColumnaMes,FALSE),0))/Cantidad,0),0),INT((IFERROR(VLOOKUP(Driver1,DatosLabor,ColumnaMes,FALSE),0)+IFERROR(VLOOKUP(Driver2,DatosLabor,ColumnaMes,FALSE),0)+IFERROR(VLOOKUP(Driver3,DatosLabor,ColumnaMes,FALSE),0)+IFERROR(VLOOKUP(Driver4,DatosLabor,ColumnaMes,FALSE),0))/Cantidad))),0),0),0) -> 0 | M32: 0 | N32: 0 | O32: 0 | P32: 0
A33: IND | B33: 122 | C33: 0 | K33: 0 | L33: 0 | M33: 0 | N33: 0 | O33: 0 | P33: 0
A34: IND | B34: 123 | C34: 0 | K34: 0 | L34: 0 | M34: 0 | N34: 0 | O34: 0 | P34: 0
A35: IND | B35: 124 | C35: 0 | K35: 0 | L35: 0 | M35: 0 | N35: 0 | O35: 0 | P35: 0
A36: IND | B36: 125 | C36: 0 | K36: 0 | L36: 0 | M36: 0 | N36: 0 | O36: 0 | P36: 0
A37: IND | B37: 126 | C37: 0 | K37: 0 | L37: 0 | M37: 0 | N37: 0 | O37: 0 | P37: 0
A38: IND | B38: 127 | C38: 0 | K38: 0 | L38: 0 | M38: 0 | N38: 0 | O38: 0 | P38: 0
A39: IND | B39: 128 | C39: 0 | K39: 0 | L39: 0 | M39: 0 | N39: 0 | O39: 0 | P39: 0
A40: IND | B40: 129 | C40: 0 | K40: 0 | L40: 0 | M40: 0 | N40: 0 | O40: 0 | P40: 0
A41: IND | B41: 130 | L41: 0 | M41: 0 | N41: 0 | O41: 0 | P41: 0
A43: Administrative positions
A44: ADM | B44: 201 | C44: ='Shelter Services Questionnaire'!B120:B142 -> 0 | D44: 1 | H44: 1 | I44: 1 | J44: 1 | K44: ='Shelter Services Questionnaire'!D120:D142 -> 0 | L44: =IFERROR(IF(Cantidad>0,IF(Cantidad>0,MIN(IF($I44>0,$I44,10000000000),IF(Start>0,IF((IFERROR(VLOOKUP(Driver1,DatosLabor,ColumnaMes,FALSE),0)+IFERROR(VLOOKUP(Driver2,DatosLabor,ColumnaMes,FALSE),0)+IFERROR(VLOOKUP(Driver3,DatosLabor,ColumnaMes,FALSE),0)+IFERROR(VLOOKUP(Driver4,DatosLabor,ColumnaMes,FALSE),0))>=Start,ROUNDUP((IFERROR(VLOOKUP(Driver1,DatosLabor,ColumnaMes,FALSE),0)+IFERROR(VLOOKUP(Driver2,DatosLabor,ColumnaMes,FALSE),0)+IFERROR(VLOOKUP(Driver3,DatosLabor,ColumnaMes,FALSE),0)+IFERROR(VLOOKUP(Driver4,DatosLabor,ColumnaMes,FALSE),0))/Cantidad,0),0),INT((IFERROR(VLOOKUP(Driver1,DatosLabor,ColumnaMes,FALSE),0)+IFERROR(VLOOKUP(Driver2,DatosLabor,ColumnaMes,FALSE),0)+IFERROR(VLOOKUP(Driver3,DatosLabor,ColumnaMes,FALSE),0)+IFERROR(VLOOKUP(Driver4,DatosLabor,ColumnaMes,FALSE),0))/Cantidad))),0),0),0) -> 0 | M44: 0 | N44: 0 | O44: 0 | P44: 0
A45: ADM | B45: 202 | C45: 0 | D45: 1 | H45: 1 | I45: 1 | J45: 1 | K45: 0 | L45: 0 | M45: 0 | N45: 0 | O45: 0 | P45: 0
A46: ADM | B46: 203 | C46: 0 | D46: 1 | H46: 1 | I46: 1 | J46: 1 | K46: 0 | L46: 0 | M46: 0 | N46: 0 | O46: 0 | P46: 0
A47: ADM | B47: 204 | C47: 0 | D47: 1 | H47: 20 | I47: 1 | K47: 0 | L47: 0 | M47: 0 | N47: 0 | O47: 0 | P47: 0
A48: ADM | B48: 205 | C48: 0 | D48: 1 | H48: 50 | I48: 1 | K48: 0 | L48: 0 | M48: 0 | N48: 0 | O48: 0 | P48: 0
A49: ADM | B49: 206 | C49: 0 | K49: 0 | L49: 0 | M49: 0 | N49: 0 | O49: 0 | P49: 0
A50: ADM | B50: 207 | C50: 0 | K50: 0 | L50: 0 | M50: 0 | N50: 0 | O50: 0 | P50: 0
A51: ADM | B51: 208 | C51: 0 | K51: 0 | L51: 0 | M51: 0 | N51: 0 | O51: 0 | P51: 0
A52: ADM | B52: 209 | C52: 0 | K52: 0 | L52: 0 | M52: 0 | N52: 0 | O52: 0 | P52: 0
A53: ADM | B53: 210 | C53: 0 | K53: 0 | L53: 0 | M53: 0 | N53: 0 | O53: 0 | P53: 0
A54: ADM | B54: 211 | C54: 0 | K54: 0 | L54: =IFERROR(IF(Cantidad>0,IF(Cantidad>0,MIN(IF($I54>0,$I54,10000000000),IF(Start>0,IF((IFERROR(VLOOKUP(Driver1,DatosLabor,ColumnaMes,FALSE),0)+IFERROR(VLOOKUP(Driver2,DatosLabor,ColumnaMes,FALSE),0)+IFERROR(VLOOKUP(Driver3,DatosLabor,ColumnaMes,FALSE),0)+IFERROR(VLOOKUP(Driver4,DatosLabor,ColumnaMes,FALSE),0))>=Start,ROUNDUP((IFERROR(VLOOKUP(Driver1,DatosLabor,ColumnaMes,FALSE),0)+IFERROR(VLOOKUP(Driver2,DatosLabor,ColumnaMes,FALSE),0)+IFERROR(VLOOKUP(Driver3,DatosLabor,ColumnaMes,FALSE),0)+IFERROR(VLOOKUP(Driver4,DatosLabor,ColumnaMes,FALSE),0))/Cantidad,0),0),INT((IFERROR(VLOOKUP(Driver1,DatosLabor,ColumnaMes,FALSE),0)+IFERROR(VLOOKUP(Driver2,DatosLabor,ColumnaMes,FALSE),0)+IFERROR(VLOOKUP(Driver3,DatosLabor,ColumnaMes,FALSE),0)+IFERROR(VLOOKUP(Driver4,DatosLabor,ColumnaMes,FALSE),0))/Cantidad))),0),0),0) -> 0 | M54: 0 | N54: 0 | O54: 0 | P54: 0
A55: ADM | B55: 212 | C55: 0 | K55: 0 | L55: 0 | M55: 0 | N55: 0 | O55: 0 | P55: 0
A56: ADM | B56: 213 | C56: 0 | K56: 0 | L56: 0 | M56: 0 | N56: 0 | O56: 0 | P56: 0
A57: ADM | B57: 214 | C57: 0 | K57: 0 | L57: 0 | M57: 0 | N57: 0 | O57: 0 | P57: 0
A58: ADM | B58: 215 | C58: 0 | K58: 0 | L58: 0 | M58: 0 | N58: 0 | O58: 0 | P58: 0
A59: ADM | B59: 220 | C59: 0 | K59: 0 | L59: 0 | M59: 0 | N59: 0 | O59: 0 | P59: 0
A60: ADM | B60: 221 | C60: 0 | K60: 0 | L60: 0 | M60: 0 | N60: 0 | O60: 0 | P60: 0
A61: ADM | B61: 222 | C61: 0 | K61: 0 | L61: 0 | M61: 0 | N61: 0 | O61: 0 | P61: 0
A62: ADM | B62: 223 | C62: 0 | K62: 0 | L62: 0 | M62: 0 | N62: 0 | O62: 0 | P62: 0
A63: ADM | B63: 224 | C63: 0 | K63: 0 | L63: 0 | M63: 0 | N63: 0 | O63: 0 | P63: 0
A64: ADM | B64: 225 | C64: 0 | K64: 0 | L64: 0 | M64: 0 | N64: 0 | O64: 0 | P64: 0
A65: ADM | B65: 226 | C65: 0 | K65: 0 | L65: 0 | M65: 0 | N65: 0 | O65: 0 | P65: 0
A66: ADM | B66: 227 | C66: 0 | K66: 0 | L66: 0 | M66: 0 | N66: 0 | O66: 0 | P66: 0
A67: ADM | B67: 228 | L67: 0 | M67: 0 | N67: 0 | O67: 0 | P67: 0
A68: ADM | B68: 229 | L68: 0 | M68: 0 | N68: 0 | O68: 0 | P68: 0

Sheet POSITION CATALOG (hidden)
C2: xx | D2: xx
A3: Position Number | B3: SOC Number | C3: Category | D3: Payment | E3: Area | F3: Group | G3: Position | H3: Job Responsibilities | I3: Competencies | J3: CODIGO INDEX '15 | K3: CODIGO JUAREZ '15 | L3: CODIGO MERCER | M3: CODIGO MERCER | N3: CODIGO MERCER | O3: CODIGO MERCER | P3: CODIGO MERCER | Q3: CODIGO MERCER | R3: CODIGO MERCER | S3: CODIGO MERCER | T3: Changing Level Position | U3: Starting month | V3: Progression Position | W3: Competencies description | Z3: Intermex | AB3: Q1 | AC3: MED | AD3: Q3 | AE3: CODIGO JUAREZ '15
A4: 1 | B4: 11-1021 | C4: ADM | D4: SAL | E4: Management | F4: Manufacturing | G4: Plant Manager | H4: * Oversee activities directly related to making products or providing services. * Direct and coordinate activities of businesses or departments concerned with the production, pricing, sales, or distribution of products. * Review financial statements, sales and activity reports, and other performance data to measure productivity and goal achievement and to determine areas needing cost reduction and program improvement. * Manage staff, preparing work schedules and assigning specific duties. * Direct and coordinate organization's financial and budget activities to fund operations, maximize investments, and increase efficiency. * Establish and implement departmental policies, goals, objectives, and procedures, conferring with board members, organization officials, and staff members as necessary. | I4: 100-2-007/100-2-014/100-2-016/100-3-005,200-1-001,300-16,300-20,300-11,400-9,400-31,400-19,400-14,500-7,500-13,600,2,600-1,600-4,600-8 | J4: 10.10.02 | K4: I.2 | L4: 100.100.113 | M4: 100.100.113 | O4: 100.100.113 | Q4: 100.100.113 | R4: 100.100.113 | V4: =IF(T4<>"",VLOOKUP(T4,ProgressivePositions,6,FALSE),"") ->  | W4: 100 - Education [100-2-007]Industrial Engineer or [100-2-014]Industrial and Systems Engineer or [100-2-016]Industrial and Administrator Engineer or [100-3-005]Business Administration 200 - Language [200-1-001]Advanced English, [2] 300 - Knowledge [300-16]Production and Processing, [300-20]Quality Control, [300-11]Engineering and Technology 400 - Experience [400-9]Minimum 9 years experience in similar position, [400-31]Team Work, [400-19]New Projects Development and Implementation, [400-14]Lean Manufacturing 500 - Skills [500-7]Judgement and Decision Making, [500-13]Change Adaptation 600 - Work Values [600], [600-1]Strong Work Ethic, [600-4]Honesty and Integrity, [600-8]Loyalty | Z4: 3055.971625 | AA4: 3055.971625 | AB4: =87926/30 -> 2930.866667 | AC4: =98867/30 -> 3295.566667 | AD4: =110495/30 -> 3683.166667 | AE4: I.2
A5: 1 | B5: 11-1021 | C5: ADM | D5: SAL | E5: Management | F5: Manufacturing | G5: Operations Manager | H5: * Oversee activities directly related to making products or providing services. * Direct and coordinate activities of businesses or departments concerned with the production, pricing, sales, or distribution of products. * Review financial statements, sales and activity reports, and other performance data to measure productivity and goal achievement and to determine areas needing cost reduction and program improvement. * Manage staff, preparing work schedules and assigning specific duties. * Direct and coordinate organization's financial and budget activities to fund operations, maximize investments, and increase efficiency. * Establish and implement departmental policies, goals, objectives, and procedures, conferring with board members, organization officials, and staff members as necessary. | I5: 100-2-007/100-2-014/100-2-016/100-3-005,200-1-001,300-16,300-20,300-11,400-9,400-31,400-19,400-14,500-7,500-13,600-2,600-4,600-8 | J5: 10.10.02 | K5: I.2 | L5: 100.100.114 | M5: 100.100.114 | O5: 100.100.113 | Q5: 100.100.113 | R5: 100.100.114 | W5: 100 - Education [100-2-007]Industrial Engineer or [100-2-014]Industrial and Systems Engineer or [100-2-016]Industrial and Administrator Engineer or [100-3-005]Business Administration 200 - Language [200-1-001]Advanced English 300 - Knowledge [300-16]Production and Processing, [300-20]Quality Control, [300-11]Engineering and Technology 400 - Experience [400-9]Minimum 9 years experience in similar position, [400-31]Team Work, [400-19]New Projects Development and Implementation, [400-14]Lean Manufacturing 500 - Skills [500-7]Judgement and Decision Making, [500-13]Change Adaptation 600 - Work Values [600-2]Dependability and Responsability, [600-4]Honesty and Integrity, [600-8]Loyalty | Z5: 3055.971625 | AA5: 3055.971625 | AB5: =87926/30 -> 2930.866667 | AC5: =98867/30 -> 3295.566667 | AD5: =110495/30 -> 3683.166667 | AE5: I.2
A6: 1 | B6: 11-1021 | C6: ADM | D6: SAL | E6: Management | F6: Manufacturing | G6: General Manager | H6: * Oversee activities directly related to making products or providing services. * Direct and coordinate activities of businesses or departments concerned with the production, pricing, sales, or distribution of products. * Review financial statements, sales and activity reports, and other performance data to measure productivity and goal achievement and to determine areas needing cost reduction and program improvement. * Manage staff, preparing work schedules and assigning specific duties. * Direct and coordinate organization's financial and budget activities to fund operations, maximize investments, and increase efficiency. * Establish and implement departmental policies, goals, objectives, and procedures, conferring with board members, organization officials, and staff members as necessary. | I6: 100-2-007/100-2-014/100-2-016/100-3-005,200-1-001,300-16,300-20,300-11,400-5,400-31,400-19,400-14,500-7,500-13,600,2,600-4 | J6: 10.10.02 | K6: I.2 | L6: 100.100.115 | M6: 100.100.115 | O6: 100.100.113 | Q6: 100.100.113 | R6: 100.100.115 | W6: 100 - Education [100-2-007]Industrial Engineer or [100-2-014]Industrial and Systems Engineer or [100-2-016]Industrial and Administrator Engineer or [100-3-005]Business Administration 200 - Language [200-1-001]Advanced English, [2] 300 - Knowledge [300-16]Production and Processing, [300-20]Quality Control, [300-11]Engineering and Technology 400 - Experience [400-5]Minimum 5 years experience in similar position, [400-31]Team Work, [400-19]New Projects Development and Implementation, [400-14]Lean Manufacturing 500 - Skills [500-7]Judgement and Decision Making, [500-13]Change Adaptation 600 - Work Values [600], [600-4]Honesty and Integrity | Z6: 3055.971625 | AA6: 3055.971625 | AB6: =87926/30 -> 2930.866667 | AC6: =98867/30 -> 3295.566667 | AD6: =110495/30 -> 3683.166667 | AE6: I.2
A7: 2 | B7: 11-3051 | C7: ADM | D7: SAL | E7: Management | F7: Production | G7: Production Manager | H7: * Review processing schedules or production orders to make decisions concerning inventory requirements, staffing requirements, work procedures, or duty assignments, considering budgetary limitations and time constraints. * Direct or coordinate production, processing, distribution, or marketing activities of industrial organizations. * Develop or implement production tracking or quality control systems, analyzing production, quality control, maintenance, or other operational reports, to detect production problems. * Review operations and confer with technical or administrative staff to resolve production or processing problems. * Hire, train, evaluate, or discharge staff or resolve personnel grievances. * Prepare and maintain production reports or personnel records. * Set and monitor product standards, examining samples of raw products or directing testing during processing, to ensure finished products are of prescribed quality. | I7: 100-2-007/100-2-014,200-1-001,300-16,300-20,300-11,400-5,400-76,400-31,400-19,400-14,500-7,500-13,500-24,600-4,600-6 | J7: 10.10.05 | K7: IV.29 | L7: 700.224.720 | M7: 700.224.720 | N7: 700.224.720 | O7: 700.224.720 | P7: 700.224.720 | Q7: 700.224.720 | R7: 700.224.720 | W7: 100 - Education [100-2-007]Industrial Engineer or [100-2-014]Industrial and Systems Engineer 200 - Language [200-1-001]Advanced English 300 - Knowledge [300-16]Production and Processing, [300-20]Quality Control, [300-11]Engineering and Technology 400 - Experience [400-5]Minimum 5 years experience in similar position, [400-76]Social Events Logistic, [400-31]Team Work, [400-19]New Projects Development and Implementation, [400-14]Lean Manufacturing 500 - Skills [500-7]Judgement and Decision Making, [500-13]Change Adaptation, [500-24]Analytical 600 - Work Values [600-4]Honesty and Integrity, [600-6]Self-Motivated | Z7: 1776.929 | AA7: 1776.929 | AB7: =47606/30 -> 1586.866667 | AC7: =51071/30 -> 1702.366667 | AD7: =54535/30 -> 1817.833333 | AE7: IV.29
A8: 3 | B8: 51-1011 | C8: IND | D8: SAL | E8: Manufacturing | F8: Production | G8: Production General Supervisor | H8: * Maintains staff by recruiting, selecting, orienting, and training employees; developing personal growth opportunities. * Maintains work flow by monitoring steps of the process; setting processing variables; observing control points and equipment; monitoring personnel and resources; studying methods; implementing cost reductions; developing reporting procedures and systems; facilitating corrections to malfunctions within process control points; initiating and fostering a spirit of cooperation within and between departments. * Completes production plan by scheduling and assigning personnel; accomplishing work results; establishing priorities; monitoring progress; revising schedules; resolving problems; reporting results of the processing flow on shift production summaries. * Maintains quality service by establishing and enforcing organization standards. | I8: 100-2-007/100-2-012/100-2-014/100-2-016,200-1-001,300-16,300-23,400-2,400-13,400-31,400-21,400-26,500-7,500-13,500-24,500-8,600-4,600-6 | J8: Mercer | K8: II.81 | L8: 600.724.242 | M8: 600.724.242 | N8: 600.724.242 | O8: 600.724.242 | P8: 600.724.242 | Q8: 600.724.242 | R8: 600.724.242 | W8: 100 - Education [100-2-007]Industrial Engineer or [100-2-012]Electronics Engineer or [100-2-014]Industrial and Systems Engineer or [100-2-016]Industrial and Administrator Engineer 200 - Language [200-1-001]Advanced English 300 - Knowledge [300-16]Production and Processing, [300-23]Quality Systems / TS / ISO 400 - Experience [400-2]Minimum 2 years experience in similar position, [400-13]HR Management, [400-31]Team Work, [400-21]Quality Audits, [400-26]Production Equipment / Machinery 500 - Skills [500-7]Judgement and Decision Making, [500-13]Change Adaptation, [500-24]Analytical, [500-8]Communication and Oral Expression 600 - Work Values [600-4]Honesty and Integrity, [600-6]Self-Motivated | Z8: 757.9501722 | AA8: 757.9501722 | AB8: =23526/30 -> 784.2 | AC8: =25536/30 -> 851.2 | AD8: =27668/30 -> 922.2666667 | AE8: II.81
A9: 3 | B9: 51-1011 | C9: IND | D9: SAL | E9: Manufacturing | F9: Production | G9: Production Supervisor | H9: * Inspects products to verify conformance to specifications and directs setup and adjustments of machines. * Studies production schedules and estimates worker hour requirements for completion of job assignment. * Interprets company policies to workers and enforces safety regulations. * Interprets specifications, prints, and job orders to workers, and assigns duties. * Establishes or adjusts work procedures to meet production schedules. | I9: 100-2-007/100-2-012/100-2-014/100-2-016,200-1-001,300-16,300-20,300-29,300-36,400-2,400-13,400-31,400-19,400-14,500-7,500-13,500-24,500-8,600-4,600-6 | J9: Mercer | K9: II.81 | L9: 600.724.242 | M9: 600.724.242 | N9: 600.724.242 | O9: 600.724.242 | P9: 600.724.242 | Q9: 600.724.242 | R9: 600.724.242 | W9: 100 - Education [100-2-007]Industrial Engineer or [100-2-012]Electronics Engineer or [100-2-014]Industrial and Systems Engineer or [100-2-016]Industrial and Administrator Engineer 200 - Language [200-1-001]Advanced English 300 - Knowledge [300-16]Production and Processing, [300-20]Quality Control, [300-29]5's, [300-36]Production Control 400 - Experience [400-2]Minimum 2 years experience in similar position, [400-13]HR Management, [400-31]Team Work, [400-19]New Projects Development and Implementation, [400-14]Lean Manufacturing 500 - Skills [500-7]Judgement and Decision Making, [500-13]Change Adaptation, [500-24]Analytical, [500-8]Communication and Oral Expression 600 - Work Values [600-4]Honesty and Integrity, [600-6]Self-Motivated | Z9: 757.9501722 | AA9: 757.9501722 | AB9: =23526/30 -> 784.2 | AC9: =25536/30 -> 851.2 | AD9: =27668/30 -> 922.2666667 | AE9: II.81
A10: 4 | B10: 43-5061 | C10: IND | D10: SAL | E10: Manufacturing | F10: Production | G10: Production Clerk | H10: * Coordinate and expedite the flow of work and materials within or between departments of an establishment according to production schedule. * Duties include reviewing and distributing production, work, and shipment schedules; conferring with department supervisors to determine progress of work and completion dates; and compiling reports on progress of work, inventory levels, costs, and production problems. | I10: 100-4-008/100-5,200-1-002,400-1,400-15,500-14,600-2,600-4,600-5 | J10: 10.10.10 | K10: II.93B | L10: 600.725.360 | M10: 600.725.360 | N10: 600.725.360 | O10: 600.725.360 | P10: 600.725.360 | Q10: 600.725.360 | R10: 600.725.360 | W10: 100 - Education [100-4-008]Administration or [100-5]High School 200 - Language [200-1-002]Intermediate English 400 - Experience [400-1]Minimum 1 year experience in similar position, [400-15]Management of Computer Programs 500 - Skills [500-14]Proactive 600 - Work Values [600-2]Dependability and Responsability, [600-4]Honesty and Integrity, [600-5]Punctuality | Z10: 237.1666667 | AA10: 237.1666667 | AB10: =6224/30 -> 207.4666667 | AC10: =7115/30 -> 237.1666667 | AD10: =8330/30 -> 277.6666667 | AE10: II.93B
A11: 5 | B11: 17-3029.09 | C11: IND | D11: HOU | E11: Manufacturing | F11: Engineering | G11: Production Technician | H11: * Test products or subassemblies for functionality or quality. * Troubleshoot problems with equipment, devices, or products. * Collect hazardous or non-hazardous waste in correctly labeled barrels or other containers and transfer them to collection areas. * Build product subassemblies or final assemblies. * Monitor and adjust production processes or equipment for quality and productivity. * Prepare and assemble materials. | I11: 100-4-005/100-4-003/100-5,200-1-002,400-1,400-15,500-8,500-14,600-2,600-4 | J11: 10.10.11 | K11: II.96B | L11: 600.724.421 | M11: 600.724.421 | N11: 600.724.421 | O11: 600.724.421 | P11: 600.724.421 | Q11: 600.724.421 | R11: 600.724.421 | V11: =IF(T11<>"",VLOOKUP(T11,ProgressivePositions,6,FALSE),"") ->  | W11: 100 - Education [100-4-005]Maintenance or [100-4-003]Computer Sciences or [100-5]High School 200 - Language [200-1-002]Intermediate English 400 - Experience [400-1]Minimum 1 year experience in similar position, [400-15]Management of Computer Programs 500 - Skills [500-8]Communication and Oral Expression , [500-14]Proactive 600 - Work Values [600-2]Dependability and Responsability, [600-4]Honesty and Integrity | Z11: 220 | AA11: 220 | AB11: =5518/30 -> 183.9333333 | AC11: =6600/30 -> 220 | AD11: =7965/30 -> 265.5 | AE11: II.96B
A12: 6 | B12: 43-5061 | C12: IND | D12: SAL | E12: Manufacturing | F12: Production | G12: Material Coordinator | H12: * Coordinate and expedite the flow of work and materials within or between departments of an establishment according to production schedule. * Duties include reviewing and distributing production, work, and shipment schedules; conferring with department supervisors to determine progress of work and completion dates; and compiling reports on progress of work, inventory levels, costs, and production problems. | I12: 100-4-008/100-5,200-1-002,400-1,400-15,400-57,400-47,500-14,600-2,600-4,600-5 | J12: 20.10.07 | K12: IV.6 | L12: 610.592.360 | M12: 610.592.360 | N12: 610.592.360 | O12: 610.592.360 | P12: 610.592.360 | Q12: 610.592.360 | R12: 610.592.360 | W12: 100 - Education [100-4-008]Administration or [100-5]High School 200 - Language [200-1-002]Intermediate English 400 - Experience [400-1]Minimum 1 year experience in similar position, [400-15]Management of Computer Programs , [400-57]Inventory Management, [400-47]Scrap Management 500 - Skills [500-14]Proactive 600 - Work Values [600-2]Dependability and Responsability, [600-4]Honesty and Integrity, [600-5]Punctuality | Z12: 449.2 | AA12: 449.2 | AB12: =10690/30 -> 356.3333333 | AC12: =13476/30 -> 449.2 | AD12: =14540/30 -> 484.6666667 | AE12: IV.6
A13: 7 | B13: 47-2221 | C13: IND | D13: HOU | E13: Manufacturing | F13: Engineering | G13: Fitter/Welder | H13: * Lay out and examine metal stock or workpieces to be processed to ensure that specifications are met. * Verify conformance of workpieces to specifications, using squares, rulers, and measuring tapes. ¨* Tack-weld fitted parts together. * Remove high spots and cut bevels, using hand files, portable grinders, and cutting torches. | I13: 100-4-011/100-5,300-22,300-36,400-2,400-26,500-14,500-13,600-2,600-4 | J13: 10.40.34 | K13: II.79 | V13: =IF(T13<>"",VLOOKUP(T13,ProgressivePositions,6,FALSE),"") ->  | W13: 100 - Education [100-4-011]Welding or [100-5]High School 300 - Knowledge [300-22]Measurement Equipment, [300-36]Production Control 400 - Experience [400-2]Minimum 2 years experience in similar position, [400-26]Production Equipment / Machinery 500 - Skills [500-14]Proactive, [500-13]Change Adaptation 600 - Work Values [600-2]Dependability and Responsability, [600-4]Honesty and Integrity | Z13: 172.2666667 | AA13: 172.2666667 | AB13: =4788/30 -> 159.6 | AC13: =5168/30 -> 172.2666667 | AD13: =5749/30 -> 191.6333333 | AE13: II.79
A14: 7 | B14: 47-2221 | C14: IND | D14: HOU | E14: Manufacturing | F14: Engineering | G14: Welder Technician | H14: * Lay out and examine metal stock or workpieces to be processed to ensure that specifications are met. * Verify conformance of workpieces to specifications, using squares, rulers, and measuring tapes. ¨* Tack-weld fitted parts together. * Remove high spots and cut bevels, using hand files, portable grinders, and cutting torches. | I14: 100-4-011/100-5,300-22,300-36,300-45,400-2,400-26,500-14,500-13,600-2,600-4 | J14: 10.40.34 | K14: II.79 | V14: =IF(T14<>"",VLOOKUP(T14,ProgressivePositions,6,FALSE),"") ->  | W14: 100 - Education [100-4-011]Welding or [100-5]High School 300 - Knowledge [300-22]Measurement Equipment, [300-36]Production Control, [300-45]Machines and Tools 400 - Experience [400-2]Minimum 2 years experience in similar position, [400-26]Production Equipment / Machinery 500 - Skills [500-14]Proactive, [500-13]Change Adaptation 600 - Work Values [600-2]Dependability and Responsability, [600-4]Honesty and Integrity | Z14: 172.2666667 | AA14: 172.2666667 | AB14: =4788/30 -> 159.6 | AC14: =5168/30 -> 172.2666667 | AD14: =5749/30 -> 191.6333333 | AE14: II.79
A15: 7 | B15: 47-2221 | C15: IND | D15: HOU | E15: Manufacturing | F15: Engineering | G15: Steel Fabricator | H15: * Lay out and examine metal stock or workpieces to be processed to ensure that specifications are met. * Verify conformance of workpieces to specifications, using squares, rulers, and measuring tapes. ¨* Tack-weld fitted parts together. * Remove high spots and cut bevels, using hand files, portable grinders, and cutting torches. | I15: 100-4-011/100-5,300-22,300-36,300-45,400-2,400-26,500-14,500-13,600-2,600-4 | J15: 10.40.34 | K15: II.79 | W15: 100 - Education [100-4-011]Welding or [100-5]High School 300 - Knowledge [300-22]Measurement Equipment, [300-36]Production Control, [300-45]Machines and Tools 400 - Experience [400-2]Minimum 2 years experience in similar position, [400-26]Production Equipment / Machinery 500 - Skills [500-14]Proactive, [500-13]Change Adaptation 600 - Work Values [600-2]Dependability and Responsability, [600-4]Honesty and Integrity | Z15: 172.2666667 | AA15: 172.2666667 | AB15: 159.6 | AC15: 172.2666667 | AD15: 191.6333333 | AE15: II.79
A16: 8 | B16: 43-1011 | C16: IND | D16: HOU | E16: Manufacturing | F16: Production | G16: Team/Group Leader | H16: * Resolve customer complaints or answer customers' questions regarding policies and procedures. * Supervise the work of office, administrative, or customer service employees to ensure adherence to quality standards, deadlines, and proper procedures, correcting errors or problems. * Provide employees with guidance in handling difficult or complex problems or in resolving escalated complaints or disputes. * Implement corporate or departmental policies, procedures, and service standards in conjunction with management. * Discuss job performance problems with employees to identify causes and issues and to work on resolving problems. | I16: 100-5/100-6,300-16,400-2,400-13,400-31,500-7,500-13,500-8,500-13,500-15,500-16,600-2,600-4,600-5 | J16: 10.10.12 | K16: II.83 | L16: 600.724.412 | M16: 600.724.412 | N16: 600.724.412 | O16: 600.724.412 | P16: 600.724.412 | Q16: 600.724.412 | R16: 600.724.412 | W16: 100 - Education [100-5]High School or [100-6]Junior High School 300 - Knowledge [300-16]Production and Processing 400 - Experience [400-2]Minimum 2 years experience in similar position, [400-13]HR Management, [400-31]Team Work 500 - Skills [500-7]Judgement and Decision Making, [500-13]Change Adaptation, [500-8]Communication and Oral Expression , [500-13]Change Adaptation, [500-15]Leadership, [500-16]Team Work 600 - Work Values [600-2]Dependability and Responsability, [600-4]Honesty and Integrity, [600-5]Punctuality | Z16: 241.1827778 | AA16: 241.1827778 | AB16: =6020/30 -> 200.6666667 | AC16: =6992/30 -> 233.0666667 | AD16: =8430/30 -> 281 | AE16: II.83
A17: 8 | B17: 43-1011 | C17: IND | D17: HOU | E17: Manufacturing | F17: Production | G17: Production Team Leader | H17: * Resolve customer complaints or answer customers' questions regarding policies and procedures. * Supervise the work of office, administrative, or customer service employees to ensure adherence to quality standards, deadlines, and proper procedures, correcting errors or problems. * Provide employees with guidance in handling difficult or complex problems or in resolving escalated complaints or disputes. * Implement corporate or departmental policies, procedures, and service standards in conjunction with management. * Discuss job performance problems with employees to identify causes and issues and to work on resolving problems. | I17: 100-5/100-6,300-16,400-2,400-31,500-7,500-13,500-8,500-15,600-2,600-4,600-5 | J17: 10.10.12 | K17: II.83 | L17: 600.724.412 | M17: 600.724.412 | N17: 600.724.412 | O17: 600.724.412 | P17: 600.724.412 | Q17: 600.724.412 | R17: 600.724.412 | W17: 100 - Education [100-5]High School or [100-6]Junior High School 300 - Knowledge [300-16]Production and Processing 400 - Experience [400-2]Minimum 2 years experience in similar position, [400-31]Team Work 500 - Skills [500-7]Judgement and Decision Making, [500-13]Change Adaptation, [500-8]Communication and Oral Expression , [500-15]Leadership 600 - Work Values [600-2]Dependability and Responsability, [600-4]Honesty and Integrity, [600-5]Punctuality | Z17: 241.1827778 | AA17: 241.1827778 | AB17: =6020/30 -> 200.6666667 | AC17: =6992/30 -> 233.0666667 | AD17: =8430/30 -> 281 | AE17: II.83
A18: 9 | B18: 13-1151 | C18: IND | D18: SAL | E18: Manufacturing | F18: Production | G18: Production Trainer | H18: * Monitor, evaluate, or record training activities or program effectiveness. * Offer specific training programs to help workers maintain or improve job skills. * Assess training needs through surveys, interviews with employees, focus groups, or consultation with managers, instructors, or customer representatives. * Develop alternative training methods if expected improvements are not seen. *Organize and develop, or obtain, training procedure manuals and guides and course materials such as handouts and visual materials. | I18: 100-6,300-16,300-82,400-2,500-7,500-13,500-8,600-2,600-4,600-5,600-6 | J18: 10.10.15 | K18: V.45 | L18: 600.725.350 | M18: 600.725.350 | N18: 600.725.350 | O18: 600.725.350 | P18: 600.725.350 | Q18: 600.725.350 | R18: 600.725.350 | V18: =IF(T18<>"",VLOOKUP(T18,ProgressivePositions,6,FALSE),"") ->  | W18: 100 - Education [100-6]Junior High School 300 - Knowledge [300-16]Production and Processing, [300-82]Instructor 400 - Experience [400-2]Minimum 2 years experience in similar position 500 - Skills [500-7]Judgement and Decision Making, [500-13]Change Adaptation, [500-8]Communication and Oral Expression 600 - Work Values [600-2]Dependability and Responsability, [600-4]Honesty and Integrity, [600-5]Punctuality, [600-6]Self-Motivated | Z18: 294.915 | AA18: 294.915 | AB18: =11164/30 -> 372.1333333 | AC18: =11400/30 -> 380 | AD18: =13000/30 -> 433.3333333 | AE18: V.45
A19: 10 | B19: 51-9023 | C19: DIR | D19: HOU | E19: Manufacturing | F19: Production | G19: Production Operator, Trainee 1 | H19: * Operate equipment safely and effectively for production processing. * Ensure that equipment are maintained in good and safe working condition. * Inspect equipment to identify any replacements, malfunctions and repairs. * Perform regular equipment maintenance to ensure production capacity and quality. | I19: 100-6,400-94,500-10,500-25,500-5,500-26,600-2,600-4,600-5 | J19: 10.10.22 | K19: II.95 | T19: OP10 | U19: 1 | W19: 100 - Education [100-6]Junior High School 400 - Experience [400-94]Recruitment to 30 days 500 - Skills [500-10]Written Comprenhension, [500-25]Basic Math, [500-5]Active Learning, [500-26]Visual 600 - Work Values [600-2]Dependability and Responsability, [600-4]Honesty and Integrity, [600-5]Punctuality | Z19: 97.26666667 | AA19: 97.26666667 | AB19: =2630/30 -> 87.66666667 | AC19: =2918/30 -> 97.26666667 | AD19: =3398/30 -> 113.2666667 | AE19: II.95
A20: 11 | B20: 51-9023 | C20: DIR | D20: HOU | E20: Manufacturing | F20: Production | G20: Generic Operator, A 1 | H20: * Operate equipment safely and effectively for production processing. * Ensure that equipment are maintained in good and safe working condition. * Inspect equipment to identify any replacements, malfunctions and repairs. * Perform regular equipment maintenance to ensure production capacity and quality. | I20: 100-6,300-54,300-55,400-95,500-5,500-25,500-26,600-2,600-4,600-5 | J20: 10.10.25 | K20: II.97 | T20: OP10 | U20: 2 | W20: 100 - Education [100-6]Junior High School 300 - Knowledge [300-54]Basic Training Course, [300-55]Performance Assessment 400 - Experience [400-95]31 to 90 days 500 - Skills [500-5]Active Learning, [500-25]Basic Math, [500-26]Visual 600 - Work Values [600-2]Dependability and Responsability, [600-4]Honesty and Integrity, [600-5]Punctuality | Z20: 133.8666667 | AA20: 133.8666667 | AB20: =3594/30 -> 119.8 | AC20: =4016/30 -> 133.8666667 | AD20: =4406/30 -> 146.8666667 | AE20: II.97
A21: 12 | B21: 51-9023 | C21: DIR | D21: HOU | E21: Manufacturing | F21: Production | G21: Generic Operator, B 1 | H21: * Operate equipment safely and effectively for production processing. * Ensure that equipment are maintained in good and safe working condition. * Inspect equipment to identify any replacements, malfunctions and repairs. * Perform regular equipment maintenance to ensure production capacity and quality. | I21: 100-6,300-54,300-55,400-96,500-5,500-25,500-26,600-2,600-4,600-5 | J21: 10.10.26 | K21: II.99 | T21: OP10 | U21: 4 | W21: 100 - Education [100-6]Junior High School 300 - Knowledge [300-54]Basic Training Course, [300-55]Performance Assessment 400 - Experience [400-96]91 to 180 days 500 - Skills [500-5]Active Learning, [500-25]Basic Math, [500-26]Visual 600 - Work Values [600-2]Dependability and Responsability, [600-4]Honesty and Integrity, [600-5]Punctuality | Z21: 159.4666667 | AA21: 159.4666667 | AB21: =4551/30 -> 151.7 | AC21: =4784/30 -> 159.4666667 | AD21: =5091/30 -> 169.7 | AE21: II.99
A22: 13 | B22: 51-9023 | C22: DIR | D22: HOU | E22: Manufacturing | F22: Production | G22: Generic Operator, C 1 | H22: * Operate equipment safely and effectively for production processing. * Ensure that equipment are maintained in good and safe working condition. * Inspect equipment to identify any replacements, malfunctions and repairs. * Perform regular equipment maintenance to ensure production capacity and quality. | I22: 100-6,300-54,300-55,400-97,500-5,500-25,500-26,600-2,600-4,600-5 | J22: 10.10.26 | K22: II.98 | T22: OP10 | U22: 7 | W22: 100 - Education [100-6]Junior High School 300 - Knowledge [300-54]Basic Training Course, [300-55]Performance Assessment 400 - Experience [400-97]181 to 270 days 500 - Skills [500-5]Active Learning, [500-25]Basic Math, [500-26]Visual 600 - Work Values [600-2]Dependability and Responsability, [600-4]Honesty and Integrity, [600-5]Punctuality | Z22: 207.7333333 | AA22: 207.7333333 | AB22: =5213/30 -> 173.7666667 | AC22: =6232/30 -> 207.7333333 | AD22: =7144/30 -> 238.1333333 | AE22: II.98
A23: 14 | B23: 51-9023 | C23: DIR | D23: HOU | E23: Manufacturing | F23: Production | G23: Generic Operator, D 1 | H23: * Operate equipment safely and effectively for production processing. * Ensure that equipment are maintained in good and safe working condition. * Inspect equipment to identify any replacements, malfunctions and repairs. * Perform regular equipment maintenance to ensure production capacity and quality. | I23: 100-6,300-54,300-55,400-98,500-5,500-25,500-26,600-2,600-4,600-5 | J23: 10.10.23 | T23: OP10 | U23: 10 | W23: 100 - Education [100-6]Junior High School 300 - Knowledge [300-54]Basic Training Course, [300-55]Performance Assessment 400 - Experience [400-98]271 to 365 days 500 - Skills [500-5]Active Learning, [500-25]Basic Math, [500-26]Visual 600 - Work Values [600-2]Dependability and Responsability, [600-4]Honesty and Integrity, [600-5]Punctuality | Z23: 216.0426667 | AA23: 216.0426667 | AB23: =5213*1.04/30 -> 180.7173333 | AC23: =6232*1.04/30 -> 216.0426667 | AD23: =7144*1.04/30 -> 247.6586667
A24: 15 | B24: 51-9023 | C24: DIR | D24: HOU | E24: Manufacturing | F24: Production | G24: Generic Operator, E 1 | H24: * Operate equipment safely and effectively for production processing. * Ensure that equipment are maintained in good and safe working condition. * Inspect equipment to identify any replacements, malfunctions and repairs. * Perform regular equipment maintenance to ensure production capacity and quality. | I24: 100-6,300-54,300-55,400-99,500-5,500-25,500-26,600-2,600-4,600-5 | J24: 10.10.21 | T24: OP10 | U24: 13 | W24: 100 - Education [100-6]Junior High School 300 - Knowledge [300-54]Basic Training Course, [300-55]Performance Assessment 400 - Experience [400-99]366 and up 500 - Skills [500-5]Active Learning, [500-25]Basic Math, [500-26]Visual 600 - Work Values [600-2]Dependability and Responsability, [600-4]Honesty and Integrity, [600-5]Punctuality | Z24: 224.352 | AA24: 224.352 | AB24: =5213*1.08/30 -> 187.668 | AC24: =6232*1.08/30 -> 224.352 | AD24: =7144*1.08/30 -> 257.184
A25: 16 | B25: 51-4035 | C25: DIR | D25: HOU | E25: Manufacturing | F25: Production | G25: CNC Operator, level A 1 | H25: * Operate equipment safely and effectively for production processing. * Ensure that equipment are maintained in good and safe working condition. * Inspect equipment to identify any replacements, malfunctions and repairs. * Perform regular equipment maintenance to ensure production capacity and quality. | I25: 100-7/100-6/100-4,300-45,300-59,300-22,400-53,400-58,400-94,500-26,500-24,500-12,600-4,600-7 | T25: OCNC01 | U25: 1 | W25: 100 - Education [100-7]Elementary School or [100-6]Junior High School or [100-4]Technical Degree 300 - Knowledge [300-45]Machines and Tools, [300-59]Millings, [300-22]Measurement Equipment 400 - Experience [400-53]Receipt of materials according to packing list, [400-58]Machines and equipment set- up , [400-94]Recruitment to 30 days 500 - Skills [500-26]Visual, [500-24]Analytical, [500-12]Information Ordering 600 - Work Values [600-4]Honesty and Integrity, [600-7]Strong Self-Confidence | Z25: 230 | AA25: 230 | AB25: =5213*1.16/30 -> 201.5693333 | AC25: =6232*1.116/30 -> 231.8304 | AD25: =7144*1.16/30 -> 276.2346667
A26: 17 | B26: 51-4035 | C26: DIR | D26: HOU | E26: Manufacturing | F26: Production | G26: CNC Operator, level B 1 | H26: * Operate equipment safely and effectively for production processing. * Ensure that equipment are maintained in good and safe working condition. * Inspect equipment to identify any replacements, malfunctions and repairs. * Perform regular equipment maintenance to ensure production capacity and quality. | I26: 100-7/100-6/100-4,300-45,300-59,300-22,300-54,300-55,400-58,400-95,500-26,500-24,500-12,600-4 | T26: OCNC01 | U26: 2 | W26: 100 - Education [100-7]Elementary School or [100-6]Junior High School or [100-4]Technical Degree 300 - Knowledge [300-45]Machines and Tools, [300-59]Millings, [300-22]Measurement Equipment, [300-54]Basic Training Course, [300-55]Performance Assessment 400 - Experience [400-58]Machines and equipment set- up , [400-95]31 to 90 days 500 - Skills [500-26]Visual, [500-24]Analytical, [500-12]Information Ordering 600 - Work Values [600-4]Honesty and Integrity | Z26: 248 | AA26: 248 | AB26: =5213*1.2/30 -> 208.52 | AC26: =6232*1.2/30 -> 249.28 | AD26: =7144*1.2/30 -> 285.76
A27: 18 | B27: 51-4035 | C27: DIR | D27: HOU | E27: Manufacturing | F27: Production | G27: CNC Operator, level C 1 | H27: * Operate equipment safely and effectively for production processing. * Ensure that equipment are maintained in good and safe working condition. * Inspect equipment to identify any replacements, malfunctions and repairs. * Perform regular equipment maintenance to ensure production capacity and quality. | I27: 100-7/100-6/100-4,300-45,300-59,300-22,300-54,300-55,400-58,400-96,500-26,500-24,500-12,600-4 | T27: OCNC01 | U27: 4 | W27: 100 - Education [100-7]Elementary School or [100-6]Junior High School or [100-4]Technical Degree 300 - Knowledge [300-45]Machines and Tools, [300-59]Millings, [300-22]Measurement Equipment, [300-54]Basic Training Course, [300-55]Performance Assessment 400 - Experience [400-58]Machines and equipment set- up , [400-96]91 to 180 days 500 - Skills [500-26]Visual, [500-24]Analytical, [500-12]Information Ordering 600 - Work Values [600-4]Honesty and Integrity | Z27: 262.5 | AA27: 262.5 | AB27: =5213*1.24/30 -> 215.4706667 | AC27: =6232*1.24/30 -> 257.5893333 | AD27: =7144*1.24/30 -> 295.2853333
A28: 19 | B28: 51-4035 | C28: DIR | D28: HOU | E28: Manufacturing | F28: Production | G28: CNC Operator, level D 1 | H28: * Operate equipment safely and effectively for production processing. * Ensure that equipment are maintained in good and safe working condition. * Inspect equipment to identify any replacements, malfunctions and repairs. * Perform regular equipment maintenance to ensure production capacity and quality. | I28: 100-7/100-6/100-4,300-45,300-59,300-22,300-54,300-55,400-58,400-97,500-26,500-24,500-12,600-4 | T28: OCNC01 | U28: 7 | W28: 100 - Education [100-7]Elementary School or [100-6]Junior High School or [100-4]Technical Degree 300 - Knowledge [300-45]Machines and Tools, [300-59]Millings, [300-22]Measurement Equipment, [300-54]Basic Training Course, [300-55]Performance Assessment 400 - Experience [400-58]Machines and equipment set- up , [400-97]181 to 270 days 500 - Skills [500-26]Visual, [500-24]Analytical, [500-12]Information Ordering 600 - Work Values [600-4]Honesty and Integrity | Z28: 271.69 | AA28: 271.69 | AB28: =5213*1.26/30 -> 218.946 | AC28: =6232*1.12/30 -> 232.6613333 | AD28: =7144*1.12/30 -> 266.7093333
A29: 20 | B29: 51-4035 | C29: DIR | D29: HOU | E29: Manufacturing | F29: Production | G29: CNC Operator, level E 1 | H29: * Operate equipment safely and effectively for production processing. * Ensure that equipment are maintained in good and safe working condition. * Inspect equipment to identify any replacements, malfunctions and repairs. * Perform regular equipment maintenance to ensure production capacity and quality. | I29: 100-7/100-6/100-4,300-45,300-59,300-22,300-54,300-55,400-58,400-98,500-26,500-24,500-12,600-4 | T29: OCNC01 | U29: 10 | W29: 100 - Education [100-7]Elementary School or [100-6]Junior High School or [100-4]Technical Degree 300 - Knowledge [300-45]Machines and Tools, [300-59]Millings, [300-22]Measurement Equipment, [300-54]Basic Training Course, [300-55]Performance Assessment 400 - Experience [400-58]Machines and equipment set- up , [400-98]271 to 365 days 500 - Skills [500-26]Visual, [500-24]Analytical, [500-12]Information Ordering 600 - Work Values [600-4]Honesty and Integrity | Z29: 322.92 | AA29: 322.92 | AB29: =5213*1.3/30 -> 225.8966667 | AC29: =6232*1.3/30 -> 270.0533333 | AD29: =7144*1.3/30 -> 309.5733333
A30: 21 | B30: 51-4035 | C30: DIR | D30: HOU | E30: Manufacturing | F30: Production | G30: CNC Operator, level F 1 | H30: * Operate equipment safely and effectively for production processing. * Ensure that equipment are maintained in good and safe working condition. * Inspect equipment to identify any replacements, malfunctions and repairs. * Perform regular equipment maintenance to ensure production capacity and quality. | I30: 100-7/100-6/100-4,300-45,300-59,300-22,300-54,300-55,400-58,400-99,500-26,500-24,500-12,600-4 | T30: OCNC01 | U30: 13 | W30: 100 - Education [100-7]Elementary School or [100-6]Junior High School or [100-4]Technical Degree 300 - Knowledge [300-45]Machines and Tools, [300-59]Millings, [300-22]Measurement Equipment, [300-54]Basic Training Course, [300-55]Performance Assessment 400 - Experience [400-58]Machines and equipment set- up , [400-99]366 and up 500 - Skills [500-26]Visual, [500-24]Analytical, [500-12]Information Ordering 600 - Work Values [600-4]Honesty and Integrity | Z30: 360.66 | AA30: 360.66 | AB30: =5213*1.34/30 -> 232.8473333 | AC30: =6232*1.34/30 -> 278.3626667 | AD30: =7144*1.34/30 -> 319.0986667
A31: 22 | B31: 47-2141 | C31: DIR | D31: HOU | E31: Manufacturing | F31: Production | G31: Painter | H31: * Cover surfaces with dropcloths or masking tape and paper to protect surfaces during painting. * Fill cracks, holes, or joints with caulk, putty, plaster, or other fillers, using caulking guns or putty knives. * Apply primers or sealers to prepare new surfaces, such as bare wood or metal, for finish coats. * Apply paint, stain, varnish, enamel, or other finishes to equipment, buildings, bridges, or other structures, using brushes, spray guns, or rollers. * Calculate amounts of required materials and estimate costs, based on surface measurements or work orders. * Read work orders or receive instructions from supervisors or homeowners to determine work requirements. | I31: 100-6,300-54,300-55,300-31,300-56,300-57,400-12,500-5,500-25,500-26 | J31: 10.40.37 | K31: II.101B | M31: 550.687.420 | W31: 100 - Education [100-6]Junior High School 300 - Knowledge [300-54]Basic Training Course, [300-55]Performance Assessment, [300-31]Intepretation of Plans, [300-56]Paint Handling, [300-57]Solvent Handling 400 - Experience [400-12]Experience not necessary 500 - Skills [500-5]Active Learning, [500-25]Basic Math, [500-26]Visual | Z31: 154.8333333 | AA31: 154.8333333 | AB31: =3828/30 -> 127.6 | AC31: =4645/30 -> 154.8333333 | AD31: =6703/30 -> 223.4333333 | AE31: II.101B
A32: 23 | B32: 11-3051 | C32: ADM | D32: SAL | E32: Management | F32: Quality | G32: Quality Control Manager | H32: * Determining, negotiating and agreeing in-house quality procedures, standards and/or specifications. * Assessing customer requirements and ensuring that these are met. * Setting customer service standards. * Specifying quality requirements of raw materials with suppliers. * Investigating and setting standards for quality/health and safety. | I32: 100-2-009/100-2-007/100-2-014,200-1-001,300-20,300-21,300-22,300-23,300-24,400-5,400-13,400-31,400-19,400-14,500-7,500-13,500-24,600-4 | J32: 10.20.02 | K32: III.2B | L32: 620.128.220 | M32: 620.128.220 | O32: 620.128.220 | P32: 620.128.220 | Q32: 620.128.220 | R32: 620.128.220 | W32: 100 - Education [100-2-009]Process Technology Engineer or [100-2-007]Industrial Engineer or [100-2-014]Industrial and Systems Engineer 200 - Language [200-1-001]Advanced English 300 - Knowledge [300-20]Quality Control, [300-21]Quality Assurance, [300-22]Measurement Equipment, [300-23]Quality Systems / TS / ISO, [300-24]Planning 400 - Experience [400-5]Minimum 5 years experience in similar position, [400-13]HR Management, [400-31]Team Work, [400-19]New Projects Development and Implementation, [400-14]Lean Manufacturing 500 - Skills [500-7]Judgement and Decision Making, [500-13]Change Adaptation, [500-24]Analytical 600 - Work Values [600-4]Honesty and Integrity | Z32: 1419.980833 | AA32: 1419.980833 | AB32: =47019/30 -> 1567.3 | AC32: =53040/30 -> 1768 | AD32: =61400/30 -> 2046.666667 | AE32: III.2B
A33: 24 | B33: 11-3051 | C33: IND | D33: SAL | E33: Quality Control | F33: Quality Control | G33: Quality Control Superintendent | H33: * Schedule subcontractors, consultants, and vendors in critical path to ensure timely completion. * Perform quality control duties and responsibilities regarding the work being performed. * Communicate with project team regarding ASI’s, RFI’s, and Material Submittals. * Ensure that subcontractor is fully executing and complying with his contracted scope of work. * Coordinate required inspections with local jurisdictions. * Identify subcontractor non-compliance with safety, health, and environmental quality standards.  Identify conflicts in construction progress and communicate them to project team for resolution. | I33: 100-2,200-1-001,300-20,300-21,300-22,300-23,300-24,400-3,400-13,400-31,400-19,400-14,500-26,500-13,500-24,600-4 | J33: 10.20.03 | K33: III.4B | M33: 620.128.430 | N33: 620.128.430 | O33: 620.128.220 | P33: 620.128.220 | Q33: 620.128.220 | R33: 620.128.220 | W33: 100 - Education [100-2]Engineering 200 - Language [200-1-001]Advanced English 300 - Knowledge [300-20]Quality Control, [300-21]Quality Assurance, [300-22]Measurement Equipment, [300-23]Quality Systems / TS / ISO, [300-24]Planning 400 - Experience [400-3]Minimum 3 years experience in similar position, [400-13]HR Management, [400-31]Team Work, [400-19]New Projects Development and Implementation, [400-14]Lean Manufacturing 500 - Skills [500-26]Visual, [500-13]Change Adaptation, [500-24]Analytical 600 - Work Values [600-4]Honesty and Integrity | Z33: 174.7241667 | AA33: 174.7241667 | AB33: =27968/30 -> 932.2666667 | AC33: =28000/30 -> 933.3333333 | AD33: =38304/30 -> 1276.8 | AE33: III.4B
A34: 25 | B34: 17-3029.05 | C34: IND | D34: SAL | E34: Quality Control | F34: Quality Control | G34: Quality Control Supervisor | H34: * Supervises and coordinates activities of workers engaged in inspecting incoming materials, inprocess molded plastic components, and finished fabricated plastic products to ensure adherence to company quality standards and customer specifications.* Distributes sketch and procedure to engineering, production control, and inspection work stations.* Inspects molded components following first-run production of new item, using gauges and shadow comparator, and advises technician of type of defects noted and need for machine adjustment.* Repeats inspection procedure until product meets quality standards and specifications are attained. | I34: 100-2-009/100-2-007/100-2-014,200-1-001,300-20,300-21,300-22,300-23,300-24,400-3,400-13,400-31,400-19,400-14,500-7,500-13,500-24,600-4 | J34: 10.20.05 | K34: III.5B | M34: 620.122.230 | N34: 620.122.230 | O34: 620.122.230 | P34: 620.122.230 | Q34: 620.122.230 | R34: 620.122.230 | W34: 100 - Education [100-2-009]Process Technology Engineer or [100-2-007]Industrial Engineer or [100-2-014]Industrial and Systems Engineer 200 - Language [200-1-001]Advanced English 300 - Knowledge [300-20]Quality Control, [300-21]Quality Assurance, [300-22]Measurement Equipment, [300-23]Quality Systems / TS / ISO, [300-24]Planning 400 - Experience [400-3]Minimum 3 years experience in similar position, [400-13]HR Management, [400-31]Team Work, [400-19]New Projects Development and Implementation, [400-14]Lean Manufacturing 500 - Skills [500-7]Judgement and Decision Making, [500-13]Change Adaptation, [500-24]Analytical 600 - Work Values [600-4]Honesty and Integrity | Z34: 623.48 | AA34: 623.48 | AB34: =15450/30 -> 515 | AC34: =18516/30 -> 617.2 | AD34: =18900/30 -> 630 | AE34: III.5B
A35: 26 | B35: 17-3029.05 | C35: IND | D35: SAL | E35: Quality Control | F35: Quality Control | G35: Quality Control Engineer | H35: * Plans and directs activities concerned with development, application, and maintenance of quality standards for industrial processes, materials, and products: Develops and initiates standards and methods for inspection, testing, and evaluation, utilizing knowledge in engineering fields such as chemical, electrical, or mechanical. * Devises sampling procedures and designs and develops forms and instructions for recording, evaluating, and reporting quality and reliability data. * Establishes program to evaluate precision and accuracy of production equipment and testing, measurement, and analytical equipment and facilities. * Develops and implements methods and procedures for disposition of discrepant material and devises methods to assess cost and responsibility.* Directs workers engaged in measuring and testing product and tabulating data concerning materials, product, or process quality and reliability. | I35: 100-2-009/100-2-007/100-2-014,200-1-001,300-20,300-21,300-22,300-23,300-25,300-24,300-26,300-27,400-3,400-13,400-31,400-19,400-14,500-7,500-13,500-24,600-4 | J35: 10.20.07 | K35: III.6B | L35: 620.124.361 | M35: 620.124.361 | N35: 620.124.361 | O35: 620.124.361 | P35: 620.124.361 | Q35: 620.124.361 | R35: 620.124.361 | W35: 100 - Education [100-2-009]Process Technology Engineer or [100-2-007]Industrial Engineer or [100-2-014]Industrial and Systems Engineer 200 - Language [200-1-001]Advanced English 300 - Knowledge [300-20]Quality Control, [300-21]Quality Assurance, [300-22]Measurement Equipment, [300-23]Quality Systems / TS / ISO, [300-25]FEMA, [300-24]Planning, [300-26]8 D's, [300-27]5 W's 400 - Experience [400-3]Minimum 3 years experience in similar position, [400-13]HR Management, [400-31]Team Work, [400-19]New Projects Development and Implementation, [400-14]Lean Manufacturing 500 - Skills [500-7]Judgement and Decision Making, [500-13]Change Adaptation, [500-24]Analytical 600 - Work Values [600-4]Honesty and Integrity | Z35: 714.0287857 | AA35: 714.0287857 | AB35: =20950/30 -> 698.3333333 | AC35: =25993/30 -> 866.4333333 | AD35: =28416/30 -> 947.2 | AE35: III.6B
A36: 27 | B36: 19-4099.01 | C36: IND | D36: HOU | E36: Quality Control | F36: Quality Control | G36: Quality Control Technician | H36: * Collect or prepare measurement, weight, or identification labels and attach them to products. * Document quantity, quality, type, weight, test result data, and value of materials or products to maintain shipping, receiving, and production records and files. * Compare product labels, tags, or tickets, shipping manifests, purchase orders, and bills of lading to verify accuracy of shipment contents, quality specifications, or weights. * Count or estimate quantities of materials, parts, or products received or shipped. * Weigh or measure materials, equipment, or products to maintain relevant records, using volume meters, scales, rules, or calipers. | I36: 100-4-006,200-1-002,300-23,300-44,400-1,400-20,500-16,500-13,500-24,500-14 | J36: 10.20.12 | K36: III.8B | L36: 620.128.430 | M36: 620.128.430 | N36: 620.128.430 | O36: 620.128.430 | P36: 620.128.430 | Q36: 620.128.430 | R36: 620.128.430 | W36: 100 - Education [100-4-006]Systems 200 - Language [200-1-002]Intermediate English 300 - Knowledge [300-23]Quality Systems / TS / ISO, [300-44]Detection of Problems and Failures 400 - Experience [400-1]Minimum 1 year experience in similar position, [400-20]Interpretation of Plans 500 - Skills [500-16]Team Work, [500-13]Change Adaptation, [500-24]Analytical, [500-14]Proactive | Z36: 273.952381 | AA36: 273.952381 | AB36: =6556/30 -> 218.5333333 | AC36: =8179/30 -> 272.6333333 | AD36: =9652/30 -> 321.7333333 | AE36: III.8B
A37: 28 | B37: 51-9061 | C37: IND | D37: HOU | E37: Quality Control | F37: Quality Control | G37: Quality Inspector | H37: * Perform dimensional, visual, electrical and mechanical inspection using standard documentation and procedures. * Utilize precision measuring tools to assist receiving inspection. * Provide acceptance or rejection for compliance to established standards and processes. * Verify conformance to applicable procedures and other approved documents. * Prepare procedures, update and maintain files as needed by ISO certification and quality enhancement. | I37: 100-6,300-23,300-32,400-1,400-21,400-28,400-22,500-16,500-13,500-14,500-26 | J37: 10.20.18 | K37: III.13 | L37: 620.128.411 | M37: 620.128.411 | N37: 620.128.411 | O37: 620.128.411 | P37: 620.128.411 | Q37: 620.128.411 | R37: 620.128.411 | W37: 100 - Education [100-6]Junior High School 300 - Knowledge [300-23]Quality Systems / TS / ISO, [300-32]Computer Sciences 400 - Experience [400-1]Minimum 1 year experience in similar position, [400-21]Quality Audits, [400-28]Production Support, [400-22]Quality Tools 500 - Skills [500-16]Team Work, [500-13]Change Adaptation, [500-14]Proactive, [500-26]Visual | Z37: 268.2871598 | AA37: 268.2871598 | AB37: =4916/30 -> 163.8666667 | AC37: =5778/30 -> 192.6 | AD37: =6019/30 -> 200.6333333 | AE37: III.13
A38: 29 | B38: 17-3029.02 | C38: IND | D38: SAL | E38: Quality Control | F38: Metrology Laboratory | G38: Metrology Engineer | H38: * Evaluate and implement solutions to problems and related to Metrology discipline. * Performs variety of technical tasks of calibration, installation and minor repairs on various equipment. *Applies learned technical knowledge to perform simple tasks in working on equipment. * Work typically involves such tasks as replacing components, wiring circuits and taking test readings, repairing simple electronic equipments and using tools, common test instruments (e.g pressure controllers, multi meters, audio signal generators, testers and oscilloscopes.) | I38: 100-2-018,200-1-001,300-22,300-41,300-24,300-33,300-34,400-3,400-23,400-20,500-14,500-13,500-24,600-4 | J38: 10.20.07 | K38: III.27 | W38: 100 - Education [100-2-018]Metrologist Engineer 200 - Language [200-1-001]Advanced English 300 - Knowledge [300-22]Measurement Equipment, [300-41]Graphics in SPC, [300-24]Planning, [300-33]Calibration, [300-34]Metrology 400 - Experience [400-3]Minimum 3 years experience in similar position, [400-23]Metrology Equipment Management, [400-20]Interpretation of Plans 500 - Skills [500-14]Proactive, [500-13]Change Adaptation, [500-24]Analytical 600 - Work Values [600-4]Honesty and Integrity | Z38: 1028.566667 | AA38: 1028.566667 | AB38: =21414/30 -> 713.8 | AC38: =30857/30 -> 1028.566667 | AD38: =37500/30 -> 1250 | AE38: III.27
A39: 30 | B39: 17-3023.01 | C39: IND | D39: SAL | E39: Quality Control | F39: Quality Laboratory | G39: Metrology Technician | H39: * Applies learned technical knowledge to perform simple tasks in working on equipment. * Work typically involves such tasks as replacing components, repairing simple electronic equipments and using tools. | I39: 100-4-010,200-1-002,300-22,300-41,300-24,300-33,300-34,400-1,400-22,400-20,500-14,500-13,500-24,600-4 | J39: 10.24.06 | K39: III.28 | W39: 100 - Education [100-4-010]Metrologist 200 - Language [200-1-002]Intermediate English 300 - Knowledge [300-22]Measurement Equipment, [300-41]Graphics in SPC, [300-24]Planning, [300-33]Calibration, [300-34]Metrology 400 - Experience [400-1]Minimum 1 year experience in similar position, [400-22]Quality Tools, [400-20]Interpretation of Plans 500 - Skills [500-14]Proactive, [500-13]Change Adaptation, [500-24]Analytical 600 - Work Values [600-4]Honesty and Integrity | Z39: 652.64 | AA39: 652.64 | AB39: =8998/30 -> 299.9333333 | AC39: =11300/30 -> 376.6666667 | AD39: =12768/30 -> 425.6 | AE39: III.28
A40: 31 | B40: 11-3051 | C40: ADM | D40: SAL | E40: Management | F40: Engineering | G40: Manufacturing Manager | H40: * Overseeing the production process, drawing up a production schedule. *Ensuring that the production is cost effective. *Making sure that products are produced on time and are of good quality. *Working out the human and material resources needed. *Estimating costs and setting the quality standards. | I40: 100-2-007/100-2-016/100-3-005,200-1-001,300-16,300-20,300-11,400-5,400-76,400-31,400-19,400-14,500-7,500-13,500-24,600-4 | J40: 10.30.02 | K40: II.2 | P40: 600.218.221 | Q40: 600.218.221 | R40: 600.218.221 | W40: 100 - Education [100-2-007]Industrial Engineer or [100-2-016]Industrial and Administrator Engineer or [100-3-005]Business Administration 200 - Language [200-1-001]Advanced English 300 - Knowledge [300-16]Production and Processing, [300-20]Quality Control, [300-11]Engineering and Technology 400 - Experience [400-5]Minimum 5 years experience in similar position, [400-76]Social Events Logistic, [400-31]Team Work, [400-19]New Projects Development and Implementation, [400-14]Lean Manufacturing 500 - Skills [500-7]Judgement and Decision Making, [500-13]Change Adaptation, [500-24]Analytical 600 - Work Values [600-4]Honesty and Integrity | Z40: 1901.9 | AA40: 1901.9 | AB40: =55829/30 -> 1860.966667 | AC40: =67609/30 -> 2253.633333 | AD40: =78724/30 -> 2624.133333 | AE40: II.2
A41: 32 | B41: 17-3026 | C41: IND | D41: SAL | E41: Manufacturing | F41: Engineering | G41: Process Engineering General Supervisor | H41: * Ensures compliance with any and all related Policies. *Process role definitions. *Identification of Critical Success Factors and Key Performance Indicators *Process advocacy and ensuring proper training is conducted. * Process integration with other processes. | I41: 100-2-007/100-2-012/100-2-014/100-2-016,200-1-001,300-11,300-16,300-28,300-31,400-3,400-14,400-19,400-28,500-7,500-9,600-2 | J41: 10.30.04 | K41: II.25 | L41: 510.704.230 | M41: 510.704.230 | N41: 510.704.230 | O41: 510.704.230 | P41: 510.704.230 | Q41: 510.704.230 | R41: 510.704.230 | W41: 100 - Education [100-2-007]Industrial Engineer or [100-2-012]Electronics Engineer or [100-2-014]Industrial and Systems Engineer or [100-2-016]Industrial and Administrator Engineer 200 - Language [200-1-001]Advanced English 300 - Knowledge [300-11]Engineering and Technology, [300-16]Production and Processing, [300-28]Continuous Improvement, [300-31]Intepretation of Plans 400 - Experience [400-3]Minimum 3 years experience in similar position, [400-14]Lean Manufacturing, [400-19]New Projects Development and Implementation, [400-28]Production Support 500 - Skills [500-7]Judgement and Decision Making, [500-9]Problem Sensitivity 600 - Work Values [600-2]Dependability and Responsability | Z41: 991.2961111 | AA41: 991.2961111 | AB41: =28892/30 -> 963.0666667 | AC41: =32000/30 -> 1066.666667 | AD41: =38500/30 -> 1283.333333 | AE41: II.25
A42: 33 | B42: 17-2112 | C42: IND | D42: SAL | E42: Manufacturing | F42: Engineering | G42: Product Design/Development Engineer | H42: * Identify the needs and goals for a new product, from function to aesthetics. * Coordinate with market researchers and materials suppliers to evaluate market needs, existing competition and potential costs. * Create a design using computer-aided design software and fabricate models that can be tested. *Analyze different materials, manufacturing processes, design tolerances and other factors in the developmental process. | I42: 100-2-007/100-2-012/100-2-014/100-2-016,200-1-001,300-1,300-23,300-36,300-37,400-3,400-13,400-19,400-14,400-25,500-24,600-2,600-4 | J42: 10.30.09 | K42: II.36 | L42: 500.630.350 | M42: 500.630.350 | N42: 500.630.350 | O42: 500.630.350 | P42: 500.630.350 | Q42: 500.630.350 | R42: 500.630.350 | V42: =IF(T42<>"",VLOOKUP(T42,ProgressivePositions,6,FALSE),"") ->  | W42: 100 - Education [100-2-007]Industrial Engineer or [100-2-012]Electronics Engineer or [100-2-014]Industrial and Systems Engineer or [100-2-016]Industrial and Administrator Engineer 200 - Language [200-1-001]Advanced English 300 - Knowledge [300-1]Administration and Management, [300-23]Quality Systems / TS / ISO, [300-36]Production Control, [300-37]Product Design 400 - Experience [400-3]Minimum 3 years experience in similar position, [400-13]HR Management, [400-19]New Projects Development and Implementation, [400-14]Lean Manufacturing, [400-25]Planning and Control 500 - Skills [500-24]Analytical 600 - Work Values [600-2]Dependability and Responsability, [600-4]Honesty and Integrity | Z42: 733.4416667 | AA42: 733.4416667 | AB42: =18750/30 -> 625 | AC42: =20617/30 -> 687.2333333 | AD42: =23589/30 -> 786.3 | AE42: II.36
A43: 34 | B43: 17-2112 | C43: IND | D43: SAL | E43: Manufacturing | F43: Engineering | G43: Project Engineer | H43: * Develops project objectives by reviewing project proposals and plans; conferring with management. * Determines project responsibilities by identifying project phases and elements; assigning personnel to phases and elements; reviewing bids from contractors. * Determines project specifications by studying product design, customer requirements, and performance standards; completing technical studies; preparing cost estimates. * Confirms product performance by designing and conducting tests. *Determines project schedule by studying project plan and specifications; calculating time requirements; sequencing project elements. | I43: 100-2-007/100-2-012/100-2-014,200-1-001,300-24,300-28,300-38,300-39,300-1,400-3,400-13,400-26,500-14,500-13,500-24,500-18,600-2,600-4 | J43: 10.40.07 | K43: II.65 | L43: 520.104.350 | M43: 520.104.350 | N43: 520.104.350 | O43: 520.104.350 | P43: 520.104.350 | Q43: 520.104.350 | R43: 520.104.350 | W43: 100 - Education [100-2-007]Industrial Engineer or [100-2-012]Electronics Engineer or [100-2-014]Industrial and Systems Engineer 200 - Language [200-1-001]Advanced English 300 - Knowledge [300-24]Planning, [300-28]Continuous Improvement, [300-38]Resource Management, [300-39]Suppliers and Contractors Management, [300-1]Administration and Management 400 - Experience [400-3]Minimum 3 years experience in similar position, [400-13]HR Management, [400-26]Production Equipment / Machinery 500 - Skills [500-14]Proactive, [500-13]Change Adaptation, [500-24]Analytical, [500-18]Stress management 600 - Work Values [600-2]Dependability and Responsability, [600-4]Honesty and Integrity | Z43: 951.6 | AA43: 951.6 | AB43: =23390/30 -> 779.6666667 | AC43: =28548/30 -> 951.6 | AD43: =36245/30 -> 1208.166667 | AE43: II.65
A44: 35 | B44: 51-4111 | C44: IND | D44: SAL | E44: Manufacturing | F44: Tool Manufacturing | G44: Tool Room Supervisor | H44: * Confer with management or subordinates to resolve worker problems, complaints, or grievances. * Enforce safety and sanitation regulations. * Inspect materials, products, or equipment to detect defects or malfunctions. * Confer with other supervisors to coordinate operations and activities within or between departments. * Recommend or implement measures to motivate employees and to improve production methods. | I44: 100-2-008,200-1-001,300-40,400-3,400-28,400-22,400-82,400-29,500-14,500-24,500-8,600-2,600-4 | J44: 10.30.12 | K44: II.17 | L44: 610.612.230 | M44: 610.612.230 | N44: 610.612.230 | O44: 610.612.230 | P44: 610.612.230 | Q44: 610.612.230 | R44: 610.612.230 | W44: 100 - Education [100-2-008]Mechanical Engineer 200 - Language [200-1-001]Advanced English 300 - Knowledge [300-40]Preventive and Corrective Maintenance 400 - Experience [400-3]Minimum 3 years experience in similar position, [400-28]Production Support, [400-22]Quality Tools, [400-82]Elaboration of Environmental and Safety Programs, [400-29]Continuous Improvement 500 - Skills [500-14]Proactive, [500-24]Analytical, [500-8]Communication and Oral Expression 600 - Work Values [600-2]Dependability and Responsability, [600-4]Honesty and Integrity | Z44: 561.1111111 | AA44: 561.1111111 | AB44: =18848/30 -> 628.2666667 | AC44: =27611/30 -> 920.3666667 | AD44: =30400/30 -> 1013.333333 | AE44: II.17
A45: 36 | B45: 17-2199.04 | C45: IND | D45: SAL | E45: Manufacturing | F45: Engineering | G45: Manufacturing Engineer | H45: * Planning managing budgets. * Maintaining statistical and financial records. * Supervising engineering and technical staff. * Purchasing and installing equipment. *Responding to breakdowns. | I45: 100-2-010/100-2-009,200-1-001,300-1,300-20,300-11,400-2,400-13,400-14,500-7,500-13,600-2 | J45: 10.30.14 | K45: Il.6B | L45: 510.704.350 | M45: 510.704.350 | N45: 510.704.350 | O45: 510.704.350 | P45: 510.704.350 | Q45: 510.704.350 | R45: 510.704.350 | W45: 100 - Education [100-2-010]Manufacturing Technology Engineer or [100-2-009]Process Technology Engineer 200 - Language [200-1-001]Advanced English 300 - Knowledge [300-1]Administration and Management, [300-20]Quality Control, [300-11]Engineering and Technology 400 - Experience [400-2]Minimum 2 years experience in similar position, [400-13]HR Management, [400-14]Lean Manufacturing 500 - Skills [500-7]Judgement and Decision Making, [500-13]Change Adaptation 600 - Work Values [600-2]Dependability and Responsability | Z45: 798.6124 | AA45: 798.6124 | AB45: =18810/30 -> 627 | AC45: =21750/30 -> 725 | AD45: =25149/30 -> 838.3 | AE45: Il.6B
A46: 37 | B46: 17-3026 | C46: IND | D46: SAL | E46: Manufacturing | F46: Engineering | G46: Manufacturing Technician | H46: * Interpret engineering drawings, schematic diagrams, or formulas and confer with management or engineering staff to determine quality and reliability standards. * Read worker logs, product processing sheets, or specification sheets to verify that records adhere to quality assurance specifications. * Observe worker using equipment to verify that equipment is being operated and maintained according to quality assurance standards. * Compile and evaluate statistical data to determine and maintain quality and reliability of products. * Prepare charts, graphs, or diagrams to illustrate workflow, routing, floor layouts, material handling, or machine utilization. * Study time, motion, methods, or speed involved in maintenance, production, or other operations to establish standard production rate or improve efficiency. * Design new equipment and materials or recommend revision to methods of operation, material handling, equipment layout, or other changes to increase production or improve standards. | I46: 100-4-008/100-4-006,200-1-002,300-20,300-11,400-1,400-28,400-60,400-31,500-14,500-8,600-2 | J46: 10.30.31 | K46: Il.7 | L46: 550.684.430 | M46: 550.684.430 | N46: 550.684.430 | O46: 550.684.430 | P46: 550.684.430 | Q46: 550.684.430 | R46: 550.684.430 | W46: 100 - Education [100-4-008]Administration or [100-4-006]Systems 200 - Language [200-1-002]Intermediate English 300 - Knowledge [300-20]Quality Control, [300-11]Engineering and Technology 400 - Experience [400-1]Minimum 1 year experience in similar position, [400-28]Production Support, [400-60]Technical support, [400-31]Team Work 500 - Skills [500-14]Proactive, [500-8]Communication and Oral Expression 600 - Work Values [600-2]Dependability and Responsability | Z46: 277 | AA46: 277 | AB46: =7472/30 -> 249.0666667 | AC46: =8344/30 -> 278.1333333 | AD46: =13850/30 -> 461.6666667 | AE46: Il.7
A47: 38 | B47: 49-2094 | C47: IND | D47: HOU | E47: Maintenance | F47: Electronic Maintenance | G47: Electronics Technician | H47: * Test faulty equipment to diagnose malfunctions, using test equipment or software, and applying knowledge of the functional operation of electronic units and systems. * Inspect components of industrial equipment for accurate assembly and installation or for defects, such as loose connections or frayed wires. * Install repaired equipment in various settings, such as industrial or military establishments. * Examine work orders and converse with equipment operators to detect equipment problems and to ascertain whether mechanical or human errors contributed to the problems. * Perform scheduled preventive maintenance tasks, such as checking, cleaning, or repairing equipment, to detect and prevent problems. * Study blueprints, schematics, manuals, or other specifications to determine installation procedures. * Set up and test industrial equipment to ensure that it functions properly. | I47: 100-2-012,300-40,300-43,400-1,400-28,500-24,500-19,600-2 | J47: 10.30.34 | K47: Il.16B | L47: 510.664.430 | M47: 510.664.420 | N47: 510.664.430 | O47: 510.664.430 | P47: 510.664.430 | Q47: 510.664.430 | R47: 510.664.430 | W47: 100 - Education [100-2-012]Electronics Engineer 300 - Knowledge [300-40]Preventive and Corrective Maintenance, [300-43]Diagnosis and Evaluation of Tablets 400 - Experience [400-1]Minimum 1 year experience in similar position, [400-28]Production Support 500 - Skills [500-24]Analytical, [500-19]Empathy 600 - Work Values [600-2]Dependability and Responsability | Z47: 304 | AA47: 304 | AB47: =7280/30 -> 242.6666667 | AC47: =9120/30 -> 304 | AD47: =10264/30 -> 342.1333333 | AE47: Il.16B
A48: 38 | B48: 49-2094 | C48: IND | D48: HOU | E48: Maintenance | F48: Electronic Maintenance | G48: Electrical and Electronics Repairer | H48: * Test faulty equipment to diagnose malfunctions, using test equipment or software, and applying knowledge of the functional operation of electronic units and systems. * Inspect components of industrial equipment for accurate assembly and installation or for defects, such as loose connections or frayed wires. * Install repaired equipment in various settings, such as industrial or military establishments. * Examine work orders and converse with equipment operators to detect equipment problems and to ascertain whether mechanical or human errors contributed to the problems. * Perform scheduled preventive maintenance tasks, such as checking, cleaning, or repairing equipment, to detect and prevent problems. * Study blueprints, schematics, manuals, or other specifications to determine installation procedures. * Set up and test industrial equipment to ensure that it functions properly. | I48: 100-2-012,300-40,300-43,400-1,400-28,500-24,500-19,600-2 | J48: 10.30.34 | K48: Il.16B | L48: 510.664.430 | M48: 510.664.420 | N48: 510.664.430 | O48: 510.664.430 | P48: 510.664.430 | Q48: 510.664.430 | R48: 510.664.430 | W48: 100 - Education [100-2-012]Electronics Engineer 300 - Knowledge [300-40]Preventive and Corrective Maintenance, [300-43]Diagnosis and Evaluation of Tablets 400 - Experience [400-1]Minimum 1 year experience in similar position, [400-28]Production Support 500 - Skills [500-24]Analytical, [500-19]Empathy 600 - Work Values [600-2]Dependability and Responsability | Z48: 304 | AA48: 304 | AB48: =7280/30 -> 242.6666667 | AC48: =9120/30 -> 304 | AD48: =10264/30 -> 342.1333333 | AE48: Il.16B
A49: 39 | B49: 51-4061 | C49: IND | D49: SAL | E49: Manufacturing | F49: Tool Manufacturing | G49: Molding Technician | H49: * Study blueprints, drawings, and sketches to determine material dimensions, required equipment, and operations sequences. * Set up and operate machines such as lathes, drill presses, punch presses, or bandsaws to fabricate prototypes or models. * Inspect and test products to verify conformance to specifications, using precision measuring instruments or circuit testers. * Cut, shape, and form metal parts, using lathes, power saws, snips, power brakes and shears, files, and mallets. * Lay out and mark reference points and dimensions on materials, using measuring instruments and drawing or scribing tools. * Drill, countersink, and ream holes in parts and assemblies for bolts, screws, and other fasteners, using power tools. * Grind, file, and sand parts to finished dimensions. | I49: 100-4-004,300-36,300-40,300-30,300-45,400-1,400-32,400-29,500-14,500-24,600-2 | J49: 10.30.46 | K49: Il.55B | L49: 550.682.430 | M49: 550.682.430 | N49: 550.682.430 | O49: 550.682.430 | P49: 550.682.430 | Q49: 550.682.430 | R49: 550.682.430 | W49: 100 - Education [100-4-004]Machinery and Tools 300 - Knowledge [300-36]Production Control, [300-40]Preventive and Corrective Maintenance, [300-30]Failure Analysis, [300-45]Machines and Tools 400 - Experience [400-1]Minimum 1 year experience in similar position, [400-32]Equipment Repair, [400-29]Continuous Improvement 500 - Skills [500-14]Proactive, [500-24]Analytical 600 - Work Values [600-2]Dependability and Responsability | Z49: 324.797 | AA49: 324.797 | AB49: =8995/30 -> 299.8333333 | AC49: =11232/30 -> 374.4 | AD49: =12552/30 -> 418.4 | AE49: Il.55B
A50: 39 | B50: 51-4061 | C50: IND | D50: SAL | E50: Manufacturing | F50: Tool Manufacturing | G50: Tool and Die Maker | H50: * Study blueprints, drawings, and sketches to determine material dimensions, required equipment, and operations sequences. * Set up and operate machines such as lathes, drill presses, punch presses, or bandsaws to fabricate prototypes or models. * Inspect and test products to verify conformance to specifications, using precision measuring instruments or circuit testers. * Cut, shape, and form metal parts, using lathes, power saws, snips, power brakes and shears, files, and mallets. * Lay out and mark reference points and dimensions on materials, using measuring instruments and drawing or scribing tools. * Drill, countersink, and ream holes in parts and assemblies for bolts, screws, and other fasteners, using power tools. * Grind, file, and sand parts to finished dimensions. | I50: 100-4-004,300-36,300-40,300-30,300-45,400-1,400-32,400-29,500-14,500-24,600-2 | J50: 10.30.46 | K50: Il.55B | L50: 550.682.430 | M50: 550.682.430 | N50: 550.682.430 | O50: 550.682.430 | P50: 550.682.430 | Q50: 550.682.430 | R50: 550.682.430 | V50: =IF(T50<>"",VLOOKUP(T50,ProgressivePositions,6,FALSE),"") ->  | W50: 100 - Education [100-4-004]Machinery and Tools 300 - Knowledge [300-36]Production Control, [300-40]Preventive and Corrective Maintenance, [300-30]Failure Analysis, [300-45]Machines and Tools 400 - Experience [400-1]Minimum 1 year experience in similar position, [400-32]Equipment Repair, [400-29]Continuous Improvement 500 - Skills [500-14]Proactive, [500-24]Analytical 600 - Work Values [600-2]Dependability and Responsability | Z50: 324.797 | AA50: 324.797 | AB50: =8995/30 -> 299.8333333 | AC50: =11232/30 -> 374.4 | AD50: =12552/30 -> 418.4 | AE50: Il.55B
A51: 40 | B51: 17-3012 | C51: IND | D51: SAL | E51: Manufacturing | F51: Engineering | G51: Electrical and Electronics Drafter | H51: * Consult with engineers to discuss and interpret design concepts, and determine requirements of detailed working drawings. * Examine electronic schematics and supporting documents to develop, compute, and verify specifications for drafting data, such as configuration of parts, dimensions, and tolerances. * Draft detail and assembly drawings of design components, circuitry and printed circuit boards, using computer-assisted equipment or standard drafting techniques and devices. * Locate files relating to specified design project in database library, load program into computer, and record completed job data. * Review work orders and procedural manuals and confer with vendors and design staff to resolve problems and modify design. | I51: 100-4-009,300-46,300-8,300-31,300-47,400-1,500-20,500-24,500-21,600-2 | K51: II.32 | L51: 510.656.360 | M51: 510.656.360 | N51: 510.656.360 | O51: 510.656.360 | P51: 510.656.360 | Q51: 510.656.360 | R51: 510.656.360 | W51: 100 - Education [100-4-009]Graphic Design 300 - Knowledge [300-46]Drawings and Strokes, [300-8]Design, [300-31]Intepretation of Plans, [300-47]Autocad 400 - Experience [400-1]Minimum 1 year experience in similar position 500 - Skills [500-20]Creativity, [500-24]Analytical, [500-21]Innovation 600 - Work Values [600-2]Dependability and Responsability | Z51: 533.3333333 | AA51: 533.3333333 | AB51: =10900/30 -> 363.3333333 | AC51: =16000/30 -> 533.3333333 | AD51: =16854/30 -> 561.8 | AE51: II.32
A52: 40 | B52: 17-3012 | C52: IND | D52: SAL | E52: Manufacturing | F52: Engineering | G52: Technical Draftsman | H52: * Consult with engineers to discuss and interpret design concepts, and determine requirements of detailed working drawings. * Examine electronic schematics and supporting documents to develop, compute, and verify specifications for drafting data, such as configuration of parts, dimensions, and tolerances. * Draft detail and assembly drawings of design components, circuitry and printed circuit boards, using computer-assisted equipment or standard drafting techniques and devices. * Locate files relating to specified design project in database library, load program into computer, and record completed job data. * Review work orders and procedural manuals and confer with vendors and design staff to resolve problems and modify design. | I52: 100-4-009,300-46,300-8,300-31,300-47,400-1,500-20,500-24,500-21,600-2 | K52: II.32 | L52: 510.656.360 | M52: 510.656.360 | N52: 510.656.360 | O52: 510.656.360 | P52: 510.656.360 | Q52: 510.656.360 | R52: 510.656.360 | W52: 100 - Education [100-4-009]Graphic Design 300 - Knowledge [300-46]Drawings and Strokes, [300-8]Design, [300-31]Intepretation of Plans, [300-47]Autocad 400 - Experience [400-1]Minimum 1 year experience in similar position 500 - Skills [500-20]Creativity, [500-24]Analytical, [500-21]Innovation 600 - Work Values [600-2]Dependability and Responsability | Z52: 533.3333333 | AA52: 533.3333333 | AB52: =10900/30 -> 363.3333333 | AC52: =16000/30 -> 533.3333333 | AD52: =16854/30 -> 561.8 | AE52: II.32
A53: 40 | B53: 17-3012 | C53: IND | D53: SAL | E53: Manufacturing | F53: Engineering | G53: CAD Designer | H53: * Consult with engineers to discuss and interpret design concepts, and determine requirements of detailed working drawings. * Examine electronic schematics and supporting documents to develop, compute, and verify specifications for drafting data, such as configuration of parts, dimensions, and tolerances. * Draft detail and assembly drawings of design components, circuitry and printed circuit boards, using computer-assisted equipment or standard drafting techniques and devices. * Locate files relating to specified design project in database library, load program into computer, and record completed job data. * Review work orders and procedural manuals and confer with vendors and design staff to resolve problems and modify design. | I53: 100-4-009,300-46,300-8,300-31,300-47,400-1,500-20,500-24,500-21,600-2 | K53: II.32 | L53: 510.656.360 | M53: 510.656.360 | N53: 510.656.360 | O53: 510.656.360 | P53: 510.656.360 | Q53: 510.656.360 | R53: 510.656.360 | V53: =IF(T53<>"",VLOOKUP(T53,ProgressivePositions,6,FALSE),"") ->  | W53: 100 - Education [100-4-009]Graphic Design 300 - Knowledge [300-46]Drawings and Strokes, [300-8]Design, [300-31]Intepretation of Plans, [300-47]Autocad 400 - Experience [400-1]Minimum 1 year experience in similar position 500 - Skills [500-20]Creativity, [500-24]Analytical, [500-21]Innovation 600 - Work Values [600-2]Dependability and Responsability | Z53: 533.3333333 | AA53: 533.3333333 | AB53: =10900/30 -> 363.3333333 | AC53: =16000/30 -> 533.3333333 | AD53: =16854/30 -> 561.8 | AE53: II.32
A54: 41 | B54: 11-9199 | C54: ADM | D54: SAL | E54: Management | F54: Maintenance | G54: Maintenance Manager | H54: * Inspecting the facility. * Checking electrical units. * Hiring other maintenance professionals. * Ordering parts and equipment. * Recording daily maintenance activity | I54: 100-2-008,200-1-001,300-40,300-48,300-28,400-15,400-34,400-35,400-26,400-38,500-7,500-8,600-1,600-2,600-8 | J54: 610.592.220 | K54: II.9 | L54: 610.592.220 | M54: 610.592.220 | N54: 610.592.220 | O54: 610.592.220 | P54: 610.592.220 | Q54: 610.592.220 | R54: 610.592.220 | V54: =IF(T54<>"",VLOOKUP(T54,ProgressivePositions,6,FALSE),"") ->  | W54: 100 - Education [100-2-008]Mechanical Engineer 200 - Language [200-1-001]Advanced English 300 - Knowledge [300-40]Preventive and Corrective Maintenance, [300-48]Administration of New Projects, [300-28]Continuous Improvement 400 - Experience [400-15]Management of Computer Programs , [400-34]Hydraulic, [400-35]Mechanics, [400-26]Production Equipment / Machinery, [400-38]Electrical Installation 500 - Skills [500-7]Judgement and Decision Making, [500-8]Communication and Oral Expression 600 - Work Values [600-1]Strong Work Ethic, [600-2]Dependability and Responsability, [600-8]Loyalty | Z54: 1524.4646 | AA54: 1524.4646 | AB54: =37701/30 -> 1256.7 | AC54: =46550/30 -> 1551.666667 | AD54: =58804/30 -> 1960.133333 | AE54: II.9
A55: 42 | B55: 49-9043 | C55: IND | D55: SAL | E55: Maintenance | F55: Equipment Maintenance | G55: Chief of Maintenance | H55: * Coordinates work with other administrative personnel to resolve system, security, maintenance, personnel, fiscal, budget and organizational problems. *Inspects, determines and recommends course of action to be taken on construction and renovation of State owned and leased facilities in a regional area. *Arranges, reviews and designs facilities support systems on initial plans. *Establishes procedures for maintenance, security, grounds and custodial operations; analyzes, recommends and implements policies and procedures as needed. | I55: 100-2-014,200-1-001,300-40,300-48,300-28,400-15,400-34,400-35,400-26,400-38,500-7,500-8,600-1,600-2 | J55: 10.40.04 | K55: II.21 | L55: 550.684.240 | M55: 550.684.240 | N55: 550.684.240 | O55: 550.684.240 | P55: 550.684.240 | Q55: 550.684.240 | R55: 550.684.240 | V55: =IF(T55<>"",VLOOKUP(T55,ProgressivePositions,6,FALSE),"") ->  | W55: 100 - Education [100-2-014]Industrial and Systems Engineer 200 - Language [200-1-001]Advanced English 300 - Knowledge [300-40]Preventive and Corrective Maintenance, [300-48]Administration of New Projects, [300-28]Continuous Improvement 400 - Experience [400-15]Management of Computer Programs , [400-34]Hydraulic, [400-35]Mechanics, [400-26]Production Equipment / Machinery, [400-38]Electrical Installation 500 - Skills [500-7]Judgement and Decision Making, [500-8]Communication and Oral Expression 600 - Work Values [600-1]Strong Work Ethic, [600-2]Dependability and Responsability | Z55: 935.2666667 | AA55: 935.2666667 | AB55: =27404/30 -> 913.4666667 | AC55: =28058/30 -> 935.2666667 | AD55: =29402/30 -> 980.0666667 | AE55: II.21
A56: 43 | B56: 49-1011 | C56: IND | D56: SAL | E56: Maintenance | F56: Building Maintenance | G56: Facilities Supervisor | H56: * Implement regular inspection in all facilities areas within campus for recreational purposes to ensure activities are conducted safely and appropriately. * Execute open, close, and secure facilities at mentioned times and check for safety and maintenance concerns. * Convey maintenance, custodial and security issues to apt SRC and campus personnel. * Educate and guide participants and student staff. * Ensure to enforce and comply with all established policies and procedures. | I56: 100-2-007/100-2-008/100-2-015,200-1-002,300-40,300-28,400-1,400-27,400-36,400-38,400-26,500-14,500-15,600-1,600-2,600-8 | J56: 10.40.09 | K56: II.21B | M56: 220.928.240 | N56: 220.928.240 | P56: 220.928.240 | Q56: 220.928.240 | R56: 220.928.240 | V56: =IF(T56<>"",VLOOKUP(T56,ProgressivePositions,6,FALSE),"") ->  | W56: 100 - Education [100-2-007]Industrial Engineer or [100-2-008]Mechanical Engineer or [100-2-015]Mechatronics Engineer 200 - Language [200-1-002]Intermediate English 300 - Knowledge [300-40]Preventive and Corrective Maintenance, [300-28]Continuous Improvement 400 - Experience [400-1]Minimum 1 year experience in similar position, [400-27]Productive Maintenance Equipment, [400-36]Installation and maintenance of air conditioning, [400-38]Electrical Installation , [400-26]Production Equipment / Machinery 500 - Skills [500-14]Proactive, [500-15]Leadership 600 - Work Values [600-1]Strong Work Ethic, [600-2]Dependability and Responsability, [600-8]Loyalty | Z56: 618.08 | AA56: 618.08 | AB56: =15810/30 -> 527 | AC56: =18264/30 -> 608.8 | AD56: =18295/30 -> 609.8333333 | AE56: II.21B
A57: 44 | B57: 49-9099 | C57: IND | D57: SAL | E57: Maintenance | F57: Equipment Maintenance | G57: Productive Equipment Maintenance Supervisor | H57: * Diagnose problems, replace or repair parts, test and make adjustments. *Perform regular preventive maintenance on machines, equipment and plant facilities. *Perform a variety of plumbing maintenance and carpentry functions. *Use a variety of hand and power tools, electric meters and material handling equipment in performing duties. | I57: 100-2-008/100-2-014,200-1-002,300-40,300-28,400-1,400-27,400-36,400-38,400-26,500-14,500-15,600-1,600-8 | J57: 10.40.10 | K57: II.22 | M57: 550.684.360 | N57: 550.684.360 | O57: 550.684.360 | P57: 550.684.360 | Q57: 550.684.360 | R57: 550.684.360 | W57: 100 - Education [100-2-008]Mechanical Engineer or [100-2-014]Industrial and Systems Engineer 200 - Language [200-1-002]Intermediate English 300 - Knowledge [300-40]Preventive and Corrective Maintenance, [300-28]Continuous Improvement 400 - Experience [400-1]Minimum 1 year experience in similar position, [400-27]Productive Maintenance Equipment, [400-36]Installation and maintenance of air conditioning, [400-38]Electrical Installation , [400-26]Production Equipment / Machinery 500 - Skills [500-14]Proactive, [500-15]Leadership 600 - Work Values [600-1]Strong Work Ethic, [600-8]Loyalty | Z57: 790.196 | AA57: 790.196 | AB57: =12922/30 -> 430.7333333 | AC57: =14850/30 -> 495 | AD57: =17189/30 -> 572.9666667 | AE57: II.22
A58: 45 | B58: 49-9043 | C58: IND | D58: SAL | E58: Maintenance | F58: Equipment Maintenance | G58: Maintenance Technician | H58: * Schedule and direct a crew of Maintenance Technicians involved in craft specialties. * Provide training, work direction and guidance while performing work in one or more of the skilled trades. * Assist supervisor in scheduling work and determining needs for equipment and supplies. * Report to supervisors regarding work completed referring unusual technical or personnel issues to the supervisor. * Provide input to performance reviews; monitor work of assigned crew members | I58: 100-4-005,300-40,300-28,400-1,400-34,400-35,400-26,400-39,400-38,600-2,600-1,600-5,600-7 | J58: 10.40.17 | K58: II.23 | M58: 510.652.430 | Q58: 510.652.430 | R58: 510.652.430 | V58: =IF(T58<>"",VLOOKUP(T58,ProgressivePositions,6,FALSE),"") ->  | W58: 100 - Education [100-4-005]Maintenance 300 - Knowledge [300-40]Preventive and Corrective Maintenance, [300-28]Continuous Improvement 400 - Experience [400-1]Minimum 1 year experience in similar position, [400-34]Hydraulic, [400-35]Mechanics, [400-26]Production Equipment / Machinery, [400-39]Repair of Machinery and Equipment, [400-38]Electrical Installation 600 - Work Values [600-2]Dependability and Responsability, [600-1]Strong Work Ethic, [600-5]Punctuality, [600-7]Strong Self-Confidence | Z58: 404.6370794 | AA58: 404.6370794 | AB58: =6080/30 -> 202.6666667 | AC58: =7600/30 -> 253.3333333 | AD58: =11000/30 -> 366.6666667 | AE58: II.23
A59: 46 | B59: 49-9071 | C59: IND | D59: SAL | E59: Maintenance | F59: Building Maintenance | G59: Facilities Technician | H59: * Manage card reader system to create employee ID badges, access codes and routine backup of database. * Provide customer service and information on different maintenance activities and employee ID badge request. * Develop and configure again workstations based on requirement. * Complete and process different work order assignments. * Head responsibility for entire facility maintenance in office. * Perform as contact point for building engineering team, outside vendors and contractors on special projects. | I59: 100-4-005,300-40,300-28,400-1,400-27,400-36,400-37,400-26,400-38,500-4,500-9,600-1,600-2,600-7 | J59: 10.40.20 | V59: =IF(T59<>"",VLOOKUP(T59,ProgressivePositions,6,FALSE),"") ->  | W59: 100 - Education [100-4-005]Maintenance 300 - Knowledge [300-40]Preventive and Corrective Maintenance, [300-28]Continuous Improvement 400 - Experience [400-1]Minimum 1 year experience in similar position, [400-27]Productive Maintenance Equipment, [400-36]Installation and maintenance of air conditioning, [400-37]Refrigeration Installation and Maintenance, [400-26]Production Equipment / Machinery, [400-38]Electrical Installation 500 - Skills [500-4]Social Perceptiveness, [500-9]Problem Sensitivity 600 - Work Values [600-1]Strong Work Ethic, [600-2]Dependability and Responsability, [600-7]Strong Self-Confidence | Z59: 315 | AA59: 315 | AB59: =8500/30 -> 283.3333333 | AC59: =9450/30 -> 315 | AD59: =10000/30 -> 333.3333333
A60: 47 | B60: 11-3071 | C60: IND | D60: SAL | E60: Management | F60: Materials | G60: Logistics and Materials Manager | H60: * Planning projects. * Working on new supply strategies. * Planning vehicle routes. * Using specialist knowledge, such as mechanical-handling systems, to provide consultancy services. | I60: 100-2-007/100-3-005/100-3-007,200-1-001,300-11,300-21,300-29,300-40,300-49,300-81,400-4,400-43,400-51,400-54,500-7,500-18,600-2,600-4 | J60: 20.10.02 | K60: IV.38 | L60: 610.592.220 | M60: 610.592.220 | N60: 610.592.220 | O60: 610.592.220 | P60: 610.592.220 | Q60: 610.592.220 | R60: 610.592.220 | V60: =IF(T60<>"",VLOOKUP(T60,ProgressivePositions,6,FALSE),"") ->  | W60: 100 - Education [100-2-007]Industrial Engineer or [100-3-005]Business Administration or [100-3-007]International Commerce 200 - Language [200-1-001]Advanced English 300 - Knowledge [300-11]Engineering and Technology, [300-21]Quality Assurance, [300-29]5's, [300-40]Preventive and Corrective Maintenance, [300-49]Materials Handling, [300-81]Customs Laws and Regulations 400 - Experience [400-4]Minimum 4 years experience in similar position, [400-43]Materialists Coordination, [400-51]Expedite of materials, [400-54]Materials Management and Planning 500 - Skills [500-7]Judgement and Decision Making, [500-18]Stress management 600 - Work Values [600-2]Dependability and Responsability, [600-4]Honesty and Integrity | Z60: 1604.6 | AA60: 1604.6 | AB60: =46823/30 -> 1560.766667 | AC60: =53146/30 -> 1771.533333 | AD60: =55600/30 -> 1853.333333 | AE60: IV.38
A61: 48 | B61: 43-5061 | C61: IND | D61: SAL | E61: Materials | F61: Materials Handling / Warehouse | G61: Materials Supervisor | H61: * Development of the solicitations and requests for proposals for equipment and materials. * Development of the contract management instructions and procedures for acquiring a company’s supplies, from paper clips to heavy equipment. * Implementation the company purchasing policies and often assist in purchasing policy preparation. | I61: 100-2-007,200-1-001,300-11,300-21,300-29,300-40,300-49,400-4,400-43,400-51,400-54,500-7,500-18,600-2,600-4 | J61: 20.10.04 | K61: IV.5 | M61: 610.604.240 | N61: 610.604.240 | O61: 610.604.240 | P61: 610.604.240 | Q61: 610.604.240 | R61: 610.604.240 | V61: =IF(T61<>"",VLOOKUP(T61,ProgressivePositions,6,FALSE),"") ->  | W61: 100 - Education [100-2-007]Industrial Engineer 200 - Language [200-1-001]Advanced English 300 - Knowledge [300-11]Engineering and Technology, [300-21]Quality Assurance, [300-29]5's, [300-40]Preventive and Corrective Maintenance, [300-49]Materials Handling 400 - Experience [400-4]Minimum 4 years experience in similar position, [400-43]Materialists Coordination, [400-51]Expedite of materials, [400-54]Materials Management and Planning 500 - Skills [500-7]Judgement and Decision Making, [500-18]Stress management 600 - Work Values [600-2]Dependability and Responsability, [600-4]Honesty and Integrity | Z61: 1371.23 | AA61: 1371.23 | AB61: =15200/30 -> 506.6666667 | AC61: =18000/30 -> 600 | AD61: =25392/30 -> 846.4 | AE61: IV.5
A62: 49 | B62: 53-7063 | C62: IND | D62: HOU | E62: Materials | F62: Materials | G62: Feeder | H62: * Inspect materials and products for defects, and to ensure conformance to specifications. * Remove materials and products from machines and equipment, and place them in boxes, trucks or conveyors, using hand tools and moving devices. * Push dual control buttons and move controls to start, stop, or adjust machinery and equipment. Identify and mark materials, products, and samples, following instructions. * Load materials and products into machines and equipment, or onto conveyors, using hand tools and moving devices. * Clean and maintain machinery, equipment, and work areas to ensure proper functioning and safe working conditions. * Weigh or measure materials or products to ensure conformance to specifications. | I62: 100-6,300-51,300-52,300-49,400-1,400-54,400-53,400-47,400-41,400-45,400-46,500-14,500-23,600-2 | J62: 20.10.06 | W62: 100 - Education [100-6]Junior High School 300 - Knowledge [300-51]Arrangement, Assortment, and Delivery of Materials, [300-52]Forklift Handling, [300-49]Materials Handling 400 - Experience [400-1]Minimum 1 year experience in similar position, [400-54]Materials Management and Planning, [400-53]Receipt of materials according to packing list, [400-47]Scrap Management , [400-41]FIFO Control, [400-45]Kanban Systems, [400-46]Supply Chain Improvement Programs 500 - Skills [500-14]Proactive, [500-23]Organization 600 - Work Values [600-2]Dependability and Responsability | Z62: 242.4713333 | AA62: 242.4713333 | AB62: =6510.07/30 -> 217.0023333 | AC62: =7274.14/30 -> 242.4713333 | AD62: =8777.7/30 -> 292.59
A63: 50 | B63: 11-3061 | C63: IND | D63: SAL | E63: Materials | F63: Purchasing | G63: Purchasing Supervisor | H63: * Responsible for supporting manufacturing operations with a sound and accurate purchasing schedules on a regular basis. * Assumes leadership role in managing key, strategic relationships with our customer’s divisions purchasing groups. * Assumes leadership role in working with key internal company personnel in order to establish sound and effective purchasing strategies. * Work with Sales and Manufacturing to find new raw materials and/or alternate raw materials to meet customer needs. | I63: 100-2-008/100-3-005,200-1-001,300-39,300-53,300-73,400-2,400-48,400-49,400-50,400-63,500-24,600-1,600-2,600-4, | J63: 20.20.03 | K63: IV.20B | L63: 610.572.230 | M63: 610.572.230 | N63: 610.572.230 | O63: 610.572.230 | P63: 610.572.230 | Q63: 610.572.230 | R63: 610.572.230 | W63: 100 - Education [100-2-008]Mechanical Engineer or [100-3-005]Business Administration 200 - Language [200-1-001]Advanced English 300 - Knowledge [300-39]Suppliers and Contractors Management, [300-53]Budgets, [300-73]Organizational Development 400 - Experience [400-2]Minimum 2 years experience in similar position, [400-48]Consolidation of requirements, [400-49]Business Negotiations , [400-50]Payment Procedures, [400-63]Financial statements development 500 - Skills [500-24]Analytical 600 - Work Values [600-1]Strong Work Ethic, [600-2]Dependability and Responsability, [600-4]Honesty and Integrity | Z63: 835.115 | AA63: 835.115 | AB63: =17000/30 -> 566.6666667 | AC63: =22500/30 -> 750 | AD63: =24750/30 -> 825 | AE63: IV.20B
A64: 51 | B64: 11-3071.02 | C64: IND | D64: SAL | E64: Materials | F64: Materials Handling / Warehouse | G64: Warehouse Supervisor | H64: * Accomplishes warehouse human resource objectives by selecting, orienting, training, assigning, scheduling, coaching, counseling, and disciplining employees; communicating job expectations; planning, monitoring, appraising job contributions; recommending compensation actions; adhering to policies and procedures. * Meets warehouse operational standards by contributing warehouse information to strategic plans and reviews; implementing production, productivity, quality, and customer-service standards; resolving problems; identifying warehouse system improvements. * Meets warehouse financial standards by providing annual budget information; monitoring expenditures; identifying variances; implementing corrective actions. * Moves inventory by scheduling materials to be moved to and from warehouse; coordinating inventory transfers with related departments. | I64: 100-2-016/100-3-005,200-1-002,300-49,300-50,300-51,300-52,400-3,400-43,400-44,400-41,400-42,400-46,500-14,500-23,600-2 | J64: 20.30.02 | K64: IV.39 | L64: 610.616.230 | M64: 610.616.230 | N64: 610.616.230 | O64: 610.616.230 | P64: 610.616.230 | Q64: 610.616.230 | R64: 610.616.230 | V64: =IF(T64<>"",VLOOKUP(T64,ProgressivePositions,6,FALSE),"") ->  | W64: 100 - Education [100-2-016]Industrial and Administrator Engineer or [100-3-005]Business Administration 200 - Language [200-1-002]Intermediate English 300 - Knowledge [300-49]Materials Handling, [300-50]Inventories, [300-51]Arrangement, Assortment, and Delivery of Materials, [300-52]Forklift Handling 400 - Experience [400-3]Minimum 3 years experience in similar position, [400-43]Materialists Coordination, [400-44]Physical Inventory Control, [400-41]FIFO Control, [400-42]Receipts and Shipments, [400-46]Supply Chain Improvement Programs 500 - Skills [500-14]Proactive, [500-23]Organization 600 - Work Values [600-2]Dependability and Responsability | Z64: 528.152 | AA64: 528.152 | AB64: =13005/30*1.16 -> 502.86 | AC64: =19000/30*1.16 -> 734.6666667 | AD64: =22121/30*1.16 -> 855.3453333 | AE64: IV.39
A65: 52 | B65: 43-5071 | C65: IND | D65: SAL | E65: Materials | F65: Materials Handling / Warehouse | G65: WarehouseMan | H65: * Prepares orders by processing requests and supply orders; pulling materials; packing boxes; placing orders in delivery area. * Completes deliveries by driving truck or van to and from vendors. * Maintains truck or van by completing preventive maintenance requirements; arranging for repairs. * Maintains inventory controls by collecting stock location orders and printing requests. * Maintains quality service by following organization standards. | I65: 100-5,300-52,300-51,300-50,400-1,400-54,400-42,500-23,600-2,600-4 | J65: 20.30.06 | K65: IV.41B | L65: 610.616.430 | M65: 610.616.430 | N65: 610.616.430 | O65: 610.616.430 | P65: 610.616.430 | Q65: 610.616.430 | R65: 610.616.430 | W65: 100 - Education [100-5]High School 300 - Knowledge [300-52]Forklift Handling, [300-51]Arrangement, Assortment, and Delivery of Materials, [300-50]Inventories 400 - Experience [400-1]Minimum 1 year experience in similar position, [400-54]Materials Management and Planning, [400-42]Receipts and Shipments 500 - Skills [500-23]Organization 600 - Work Values [600-2]Dependability and Responsability, [600-4]Honesty and Integrity | Z65: 188.3333333 | AA65: 188.3333333 | AB65: =4432/30 -> 147.7333333 | AC65: =5650/30 -> 188.3333333 | AD65: =6492/30 -> 216.4 | AE65: IV.41B
A66: 53 | B66: 43-5071 | C66: IND | D66: HOU | E66: Materials | F66: Materials Handling / Warehouse | G66: Receiving and Shipping Materials Operator | H66: * Examine shipment contents and compare with records such as manifests, invoices, or orders to verify accuracy. * Record shipment data, such as weight, charges, space availability, damages, or discrepancies for reporting, accounting, or recordkeeping purposes. * Prepare documents, such as work orders, bills of lading, or shipping orders, to route materials. * Requisition and store shipping materials and supplies to maintain inventory of stock. * Determine shipping methods, routes, or rates for materials to be shipped. | I66: 100-6,300-52,300-50,400-1,400-44,400-54,400-53,500-7,500-23,600-2,600-4 | J66: 20.30.11 | K66: IV.42 | L66: 610.616.430 | M66: 610.616.430 | O66: 610.616.430 | Q66: 610.616.430 | R66: 610.616.430 | W66: 100 - Education [100-6]Junior High School 300 - Knowledge [300-52]Forklift Handling, [300-50]Inventories 400 - Experience [400-1]Minimum 1 year experience in similar position, [400-44]Physical Inventory Control, [400-54]Materials Management and Planning, [400-53]Receipt of materials according to packing list 500 - Skills [500-7]Judgement and Decision Making, [500-23]Organization 600 - Work Values [600-2]Dependability and Responsability, [600-4]Honesty and Integrity | Z66: 257.0825 | AA66: 257.0825 | AB66: =4011/30 -> 133.7 | AC66: =4693/30 -> 156.4333333 | AD66: =5400/30 -> 180 | AE66: IV.42
A67: 53 | B67: 43-5071 | C67: IND | D67: HOU | E67: Materials | F67: Materials Handling / Warehouse | G67: Shipping and Receiving | H67: * Examine shipment contents and compare with records such as manifests, invoices, or orders to verify accuracy. * Record shipment data, such as weight, charges, space availability, damages, or discrepancies for reporting, accounting, or recordkeeping purposes. * Prepare documents, such as work orders, bills of lading, or shipping orders, to route materials. * Requisition and store shipping materials and supplies to maintain inventory of stock. * Determine shipping methods, routes, or rates for materials to be shipped. | I67: 100-6,300-52,300-50,400-1,400-44,400-54,400-53,500-7,500-23,600-2,600-4 | J67: 20.30.11 | K67: IV.42 | L67: 610.616.430 | M67: 610.616.430 | O67: 610.616.430 | Q67: 610.616.430 | R67: 610.616.430 | W67: 100 - Education [100-6]Junior High School 300 - Knowledge [300-52]Forklift Handling, [300-50]Inventories 400 - Experience [400-1]Minimum 1 year experience in similar position, [400-44]Physical Inventory Control, [400-54]Materials Management and Planning, [400-53]Receipt of materials according to packing list 500 - Skills [500-7]Judgement and Decision Making, [500-23]Organization 600 - Work Values [600-2]Dependability and Responsability, [600-4]Honesty and Integrity | Z67: 257.0825 | AA67: 257.0825 | AB67: =4011/30 -> 133.7 | AC67: =4693/30 -> 156.4333333 | AD67: =5400/30 -> 180 | AE67: IV.42
A68: 54 | B68: 13-1081 | C68: IND | D68: SAL | E68: Materials | F68: Production Control | G68: Planning and Production Control Supervisor | H68: * Responsible for coordinating the production, storage, and shipment of all manufactured items at the facility they work. * Train personnel and provide recommendations for improving management. | I68: 100-2-016/100-3-005/100-3-007,200-1-001,300-49,300-50,300-51,400-2,400-43,400-44,400-55,500-23,600-2,600-4 | J68: 20.50.03 | K68: IV.31 | L68: 610.588.350 | M68: 610.588.350 | O68: 610.588.350 | P68: 610.588.350 | Q68: 610.588.350 | R68: 610.588.350 | W68: 100 - Education [100-2-016]Industrial and Administrator Engineer or [100-3-005]Business Administration or [100-3-007]International Commerce 200 - Language [200-1-001]Advanced English 300 - Knowledge [300-49]Materials Handling, [300-50]Inventories, [300-51]Arrangement, Assortment, and Delivery of Materials 400 - Experience [400-2]Minimum 2 years experience in similar position, [400-43]Materialists Coordination, [400-44]Physical Inventory Control, [400-55]Shipments of finished product 500 - Skills [500-23]Organization 600 - Work Values [600-2]Dependability and Responsability, [600-4]Honesty and Integrity | Z68: 662.0333333 | AA68: 662.0333333 | AB68: =15323/30 -> 510.7666667 | AC68: =19861/30 -> 662.0333333 | AD68: =19950/30 -> 665 | AE68: IV.31
A69: 55 | B69: 51-9060 | C69: IND | D69: SAL | E69: Materials | F69: Production Control | G69: Quality Assurance Inspector | H69: * Quality assurance inspectors ensure that products manufactured by their employers meet industry and federal standards. *Their goal is to assure that products can withstand regular use and that products work as intended. * inspectors analyze products, using either machinery or direct sensory observation, and determine whether they're suitable for the marketplace. | I69: 100-2-009/100-2-007/100-2-014,200-1-001,300-20,300-21,300-22,300-23,300-24,400-3,400-13,400-31,400-19,400-14,500-7,500-13,500-24,600-4 | J69: 10.21.07 | K69: III.12 | L69: 620.128.411 | M69: 620.128.411 | N69: 620.128.411 | O69: 620.128.411 | P69: 620.128.411 | Q69: 620.128.411 | R69: 620.128.411 | W69: 100 - Education [100-2-009]Process Technology Engineer or [100-2-007]Industrial Engineer or [100-2-014]Industrial and Systems Engineer 200 - Language [200-1-001]Advanced English 300 - Knowledge [300-20]Quality Control, [300-21]Quality Assurance, [300-22]Measurement Equipment, [300-23]Quality Systems / TS / ISO, [300-24]Planning 400 - Experience [400-3]Minimum 3 years experience in similar position, [400-13]HR Management, [400-31]Team Work, [400-19]New Projects Development and Implementation, [400-14]Lean Manufacturing 500 - Skills [500-7]Judgement and Decision Making, [500-13]Change Adaptation, [500-24]Analytical 600 - Work Values [600-4]Honesty and Integrity | Z69: 184.4333333 | AA69: 184.4333333 | AB69: =4164/30 -> 138.8 | AC69: =5533/30 -> 184.4333333 | AD69: =6137/30 -> 204.5666667 | AE69: III.12
A70: 56 | B70: 13-1081 | C70: IND | D70: SAL | E70: Materials | F70: Production Control | G70: Production Planner | H70: * Maintain and develop positive business relationships with a customer's key personnel involved in or directly relevant to a logistics activity. * Develop an understanding of customers' needs and take actions to ensure that such needs are met. * Direct availability and allocation of materials, supplies, and finished products. * Collaborate with other departments as necessary to meet customer requirements, to take advantage of sales opportunities or, in the case of shortages, to minimize negative impacts on a business. * Protect and control proprietary materials. * Review logistics performance with customers against targets, benchmarks and service agreements. | I70: 100-2-016/100-3-005/100-3-007,200-1-001,300-49,300-50,300-51,400-2,400-44,400-51,400-56,400-57,500-23,500-8,600-2,600-4 | J70: 20.50.06 | K70: IV.27 | L70: 600.725.360 | M70: 600.725.360 | N70: 600.725.360 | P70: 600.725.360 | Q70: 600.725.360 | R70: 600.725.360 | W70: 100 - Education [100-2-016]Industrial and Administrator Engineer or [100-3-005]Business Administration or [100-3-007]International Commerce 200 - Language [200-1-001]Advanced English 300 - Knowledge [300-49]Materials Handling, [300-50]Inventories, [300-51]Arrangement, Assortment, and Delivery of Materials 400 - Experience [400-2]Minimum 2 years experience in similar position, [400-44]Physical Inventory Control, [400-51]Expedite of materials, [400-56]Programming and production control, [400-57]Inventory Management 500 - Skills [500-23]Organization, [500-8]Communication and Oral Expression 600 - Work Values [600-2]Dependability and Responsability, [600-4]Honesty and Integrity | Z70: 714.5165516 | AA70: 714.5165516 | AB70: =18000/30 -> 600 | AC70: =22358/30 -> 745.2666667 | AD70: =28500/30 -> 950 | AE70: IV.27
A71: 57 | B71: 13-1199 | C71: ADM | D71: SAL | E71: Management | F71: Customs | G71: Traffic and Customs Manager | H71: * Enforce adherence to work-flow processes and deadlines. * Development and maintenance of traffic management guidelines documentation. * Work with administrative as necessary for Purchase Order requests. * Maintain workload data for monthly and quarterly metric output. | I71: 100-3-005/100-3-004/100-3-007,200-1-001,300-36,300-79,300-81,300-80,400-5,400-44,400-91,400-89,400-90,400-92,500-15,500-7,500-9,500-14,500-24,600-2,600-4 | J71: 20.10.02 | K71: IV.13B | W71: 100 - Education [100-3-005]Business Administration or [100-3-004]International Relations or [100-3-007]International Commerce 200 - Language [200-1-001]Advanced English 300 - Knowledge [300-36]Production Control, [300-79]International Commerce, [300-81]Customs Laws and Regulations, [300-80]Customs Systems (Annex 24) 400 - Experience [400-5]Minimum 5 years experience in similar position, [400-44]Physical Inventory Control, [400-91]Administrative procedures in Customs, [400-89]Customs Reports, [400-90]Preparation of Annual Statements, [400-92]Mexican customs audit 500 - Skills [500-15]Leadership, [500-7]Judgement and Decision Making, [500-9]Problem Sensitivity, [500-14]Proactive, [500-24]Analytical 600 - Work Values [600-2]Dependability and Responsability, [600-4]Honesty and Integrity | Z71: 825.3 | AA71: 825.3 | AB71: =32000/30 -> 1066.666667 | AC71: =38282/30 -> 1276.066667 | AD71: =40570/30 -> 1352.333333 | AE71: IV.13B
A72: 58 | B72: 13-1199.03 | C72: ADM | D72: SAL | E72: Materials | F72: Customs | G72: Customs Supervisor | H72: * Development and maintenance of traffic management guidelines documentation. * Work with administrative as necessary for Purchase Order requests. | I72: 100-3-005/100-3-004/100-3-007,200-1-002,300-79,300-81,400-3,400-89,500-3,500-11,500-23,600-2 | J72: 20.60.02 | K72: IV.14 | M72: 610.610.230 | P72: 610.610.230 | Q72: 610.610.230 | R72: 610.610.230 | W72: 100 - Education [100-3-005]Business Administration or [100-3-004]International Relations or [100-3-007]International Commerce 200 - Language [200-1-002]Intermediate English 300 - Knowledge [300-79]International Commerce, [300-81]Customs Laws and Regulations 400 - Experience [400-3]Minimum 3 years experience in similar position, [400-89]Customs Reports 500 - Skills [500-3]Monitoring, [500-11]Written Expression, [500-23]Organization 600 - Work Values [600-2]Dependability and Responsability | Z72: 847.308 | AA72: 847.308 | AB72: =20299/30 -> 676.6333333 | AC72: =24928/30 -> 830.9333333 | AD72: =32695/30 -> 1089.833333 | AE72: IV.14
A73: 59 | B73: 11-3021 | C73: ADM | D73: SAL | E73: Management | F73: MIS | G73: Information Technologies Manager | H73: * Review project plans to plan and coordinate project activity. *Manage backup, security and user help systems. *Develop and interpret organizational goals, policies, and procedures. *Develop computer information resources, providing for data security and control, strategic computing, and disaster recovery. *Consult with users, management, vendors, and technicians to assess computing needs and system requirements. | I73: 100-2-002/100-2-003,200-1-001,300-1,300-62,300-63,300-61,400-5,400-59,400-29,500-8,500-9,600-1 | J73: 50.10.02 | K73: VII.1 | L73: 310.100.210 | M73: 310.100.210 | P73: 310.100.210 | Q73: 310.100.210 | R73: 310.100.210 | W73: 100 - Education [100-2-002]Computer Systems Engineer in Hardware or [100-2-003]Computer Systems Engineer in Software 200 - Language [200-1-001]Advanced English 300 - Knowledge [300-1]Administration and Management, [300-62]Hardware, [300-63]Sofware, [300-61]Communication Systems 400 - Experience [400-5]Minimum 5 years experience in similar position, [400-59]Communications equipment configuration, [400-29]Continuous Improvement 500 - Skills [500-8]Communication and Oral Expression , [500-9]Problem Sensitivity 600 - Work Values [600-1]Strong Work Ethic | Z73: 1836.166667 | AA73: 1836.166667 | AB73: =53293/30 -> 1776.433333 | AC73: =55085/30 -> 1836.166667 | AD73: =57989/30 -> 1932.966667 | AE73: VII.1
A74: 59 | B74: 11-3021 | C74: ADM | D74: SAL | E74: Management | F74: MIS | G74: Computer and Information Systems Manager | H74: * Review project plans to plan and coordinate project activity. *Manage backup, security and user help systems. *Develop and interpret organizational goals, policies, and procedures. *Develop computer information resources, providing for data security and control, strategic computing, and disaster recovery. *Consult with users, management, vendors, and technicians to assess computing needs and system requirements. | I74: 100-2-002/100-2-003,200-1-001,300-1,300-62,300-63,300-61,400-5,400-59,400-29,500-8,500-9,600-1 | J74: 50.10.02 | K74: VII.1 | L74: 310.100.210 | M74: 310.100.210 | P74: 310.100.210 | Q74: 310.100.210 | R74: 310.100.210 | V74: =IF(T74<>"",VLOOKUP(T74,ProgressivePositions,6,FALSE),"") ->  | W74: 100 - Education [100-2-002]Computer Systems Engineer in Hardware or [100-2-003]Computer Systems Engineer in Software 200 - Language [200-1-001]Advanced English 300 - Knowledge [300-1]Administration and Management, [300-62]Hardware, [300-63]Sofware, [300-61]Communication Systems 400 - Experience [400-5]Minimum 5 years experience in similar position, [400-59]Communications equipment configuration, [400-29]Continuous Improvement 500 - Skills [500-8]Communication and Oral Expression , [500-9]Problem Sensitivity 600 - Work Values [600-1]Strong Work Ethic | Z74: 1836.166667 | AA74: 1836.166667 | AB74: =53293/30 -> 1776.433333 | AC74: =55085/30 -> 1836.166667 | AD74: =57989/30 -> 1932.966667 | AE74: VII.1
A75: 60 | B75: 15-1133 | C75: IND | D75: SAL | E75: Administrative | F75: MIS | G75: Systems Engineer | H75: * Modify existing software to correct errors, to adapt it to new hardware, or to upgrade interfaces and improve performance. * Develop or direct software system testing or validation procedures. * Direct software programming and development of documentation. * Consult with customers or other departments on project status, proposals, or technical issues, such as software system design or maintenance. * Analyze information to determine, recommend, and plan installation of a new system or modification of an existing system. * Consult with engineering staff to evaluate interface between hardware and software, develop specifications and performance requirements, or resolve customer problems. | I75: 100-2-002/100-2-003,200-1-001,300-62,300-63,300-61,400-3,400-59,400-56,400-62,500-10,500-12,600-2 | J75: 50.10.04 | K75: VII.5B | L75: 320.409.360 | P75: 320.409.360 | Q75: 320.409.360 | R75: 320.409.360 | W75: 100 - Education [100-2-002]Computer Systems Engineer in Hardware or [100-2-003]Computer Systems Engineer in Software 200 - Language [200-1-001]Advanced English 300 - Knowledge [300-62]Hardware, [300-63]Sofware, [300-61]Communication Systems 400 - Experience [400-3]Minimum 3 years experience in similar position, [400-59]Communications equipment configuration, [400-56]Programming and production control, [400-62]Data capture 500 - Skills [500-10]Written Comprenhension, [500-12]Information Ordering 600 - Work Values [600-2]Dependability and Responsability | Z75: 600.4 | AA75: 600.4 | AB75: =14286/30 -> 476.2 | AC75: =18012/30 -> 600.4 | AD75: =22623/30 -> 754.1 | AE75: VII.5B
A76: 60 | B76: 15-1133 | C76: IND | D76: SAL | E76: Administrative | F76: MIS | G76: Software Engineer | H76: * Modify existing software to correct errors, to adapt it to new hardware, or to upgrade interfaces and improve performance. * Develop or direct software system testing or validation procedures. * Direct software programming and development of documentation. * Consult with customers or other departments on project status, proposals, or technical issues, such as software system design or maintenance. * Analyze information to determine, recommend, and plan installation of a new system or modification of an existing system. * Consult with engineering staff to evaluate interface between hardware and software, develop specifications and performance requirements, or resolve customer problems. | I76: 100-2-002/100-2-003,200-1-001,300-62,300-63,300-61,400-3,400-59,400-56,400-62,500-10,500-12,600-2 | J76: 50.10.04 | K76: VII.5B | L76: 320.409.360 | P76: 320.409.360 | Q76: 320.409.360 | R76: 320.409.360 | V76: =IF(T76<>"",VLOOKUP(T76,ProgressivePositions,6,FALSE),"") ->  | W76: 100 - Education [100-2-002]Computer Systems Engineer in Hardware or [100-2-003]Computer Systems Engineer in Software 200 - Language [200-1-001]Advanced English 300 - Knowledge [300-62]Hardware, [300-63]Sofware, [300-61]Communication Systems 400 - Experience [400-3]Minimum 3 years experience in similar position, [400-59]Communications equipment configuration, [400-56]Programming and production control, [400-62]Data capture 500 - Skills [500-10]Written Comprenhension, [500-12]Information Ordering 600 - Work Values [600-2]Dependability and Responsability | Z76: 600.4 | AA76: 600.4 | AB76: =14286/30 -> 476.2 | AC76: =18012/30 -> 600.4 | AD76: =22623/30 -> 754.1 | AE76: VII.5B
A77: 61 | B77: 15-1151 | C77: IND | D77: SAL | E77: Administrative | F77: MIS | G77: Systems Technician | H77: * Writing programs to handle data for a wide variety of applications * Operating and coordinating automated networks, datalinks and circuits. * Applying diagnostic, corrective and recovery techniques to information systems. * Analyzing communication signals. * Providing telecommunications and computer-related training and assistance | I77: 100-4-006,200-1-003,300-62,300-61,400-1,400-60,500-3,600-2,600-4 | J77: 50.10.06 | K77: VII.8 | V77: =IF(T77<>"",VLOOKUP(T77,ProgressivePositions,6,FALSE),"") ->  | W77: 100 - Education [100-4-006]Systems 200 - Language [200-1-003]Basic English 300 - Knowledge [300-62]Hardware, [300-61]Communication Systems 400 - Experience [400-1]Minimum 1 year experience in similar position, [400-60]Technical support 500 - Skills [500-3]Monitoring 600 - Work Values [600-2]Dependability and Responsability, [600-4]Honesty and Integrity | Z77: 491.485 | AA77: 491.485 | AB77: =8077/30 -> 269.2333333 | AC77: =11274/30 -> 375.8 | AD77: =13542/30 -> 451.4 | AE77: VII.8
A78: 62 | B78: 15-1151 | C78: ADM | D78: SAL | E78: Administrative | F78: MIS | G78: Help Desk Engineer | H78: *Receive, manage and record IT help desk requests receiving either by telephone or email. *Dealing with and resolving helpdesk requests e.g. adding users, Active Directory updating, e-mail account creation, general IT trouble shooting. *Maintain appropriate logs of equipment, users and operational activities | I78: 100-2-002/100-2-003,200-1-001,300-11,300-39,400-3,400-62,400-77,500-1,500-12,500-14,600-2 | J78: 50.60.02 | K78: VII.10 | M78: 330.404.420 | O78: 330.404.420 | P78: 330.404.420 | Q78: 330.404.420 | R78: 330.404.420 | V78: =IF(T78<>"",VLOOKUP(T78,ProgressivePositions,6,FALSE),"") ->  | W78: 100 - Education [100-2-002]Computer Systems Engineer in Hardware or [100-2-003]Computer Systems Engineer in Software 200 - Language [200-1-001]Advanced English 300 - Knowledge [300-11]Engineering and Technology, [300-39]Suppliers and Contractors Management 400 - Experience [400-3]Minimum 3 years experience in similar position, [400-62]Data capture, [400-77]Files Administration 500 - Skills [500-1]Active Listening, [500-12]Information Ordering, [500-14]Proactive 600 - Work Values [600-2]Dependability and Responsability | Z78: 928.6333333 | AA78: 928.6333333 | AB78: =16448/30 -> 548.2666667 | AC78: =27859/30 -> 928.6333333 | AD78: =36993/30 -> 1233.1 | AE78: VII.10
A79: 63 | B79: 43-9021 | C79: IND | D79: SAL | E79: Administrative | F79: MIS | G79: Data Entry Clerk | H79: * Prepares source data for computer entry by compiling and sorting information; establishing entry priorities. * Processes customer and account source documents by reviewing data for deficiencies; resolving discrepancies by using standard procedures or returning incomplete documents to the team leader for resolution. * Enters customer and account data by inputting alphabetic and numeric information on keyboard or optical scanner according to screen format. * Maintains data entry requirements by following data program techniques and procedures. * Verifies entered customer and account data by reviewing, correcting, deleting, or reentering data; combining data from both systems when account information is incomplete; purging files to eliminate duplication of data. | I79: 100-5,300-60,400-1,400-13,400-61,400-62,400-77,600-2,600-4 | J79: 50.50.04 | K79: VII.12 | M79: 220.118.420 | P79: 220.118.420 | Q79: 220.118.420 | R79: 220.118.420 | V79: =IF(T79<>"",VLOOKUP(T79,ProgressivePositions,6,FALSE),"") ->  | W79: 100 - Education [100-5]High School 300 - Knowledge [300-60]Office 400 - Experience [400-1]Minimum 1 year experience in similar position, [400-13]HR Management, [400-61]Computer Systems, [400-62]Data capture, [400-77]Files Administration 600 - Work Values [600-2]Dependability and Responsability, [600-4]Honesty and Integrity | Z79: 160.2666667 | AA79: 160.2666667 | AB79: =4475/30 -> 149.1666667 | AC79: =4808/30 -> 160.2666667 | AD79: =5140/30 -> 171.3333333 | AE79: VII.12
A80: 64 | B80: 43-3031 | C80: ADM | D80: SAL | E80: Administrative | F80: General Accounting | G80: Accounting Supervisor | H80: * Accomplishes accounting human resource objectives by selecting, orienting, training, assigning, scheduling, coaching, counseling, and disciplining employees; communicating job expectations; planning, monitoring, appraising job contributions; recommending compensation actions; adhering to policies and procedures. * Meets accounting operational standards by contributing financial information to strategic plans and reviews; implementing production, productivity, quality, and customer-service standards; resolving problems; identifying system improvements. * Meets accounting financial standards by providing accounting department annual budget information; monitoring expenditures; identifying variances; implementing corrective actions. | I80: 100-3-006,200-1-001,300-64,300-69,400-5,400-65,400-66,400-67,500-6,500-10,500-24,600-2,600-4 | J80: 40.20.02 | K80: VI.6 | L80: 210.340.230 | M80: 320.409.360 | O80: 210.340.230 | P80: 210.340.230 | Q80: 210.340.230 | R80: 210.340.230 | V80: =IF(T80<>"",VLOOKUP(T80,ProgressivePositions,6,FALSE),"") ->  | W80: 100 - Education [100-3-006]Public Accountant 200 - Language [200-1-001]Advanced English 300 - Knowledge [300-64]General Accounting, [300-69]Accounting Systems 400 - Experience [400-5]Minimum 5 years experience in similar position, [400-65]Tax Calculation and Refunds, [400-66]Reconciliations, [400-67]Accounting records 500 - Skills [500-6]Complex Problem Solving, [500-10]Written Comprenhension, [500-24]Analytical 600 - Work Values [600-2]Dependability and Responsability, [600-4]Honesty and Integrity | Z80: 946 | AA80: 946 | AB80: =22818/30 -> 760.6 | AC80: =28380/30 -> 946 | AD80: =31541/30 -> 1051.366667 | AE80: VI.6
A81: 65 | B81: 13-2011 | C81: IND | D81: SAL | E81: Administrative | F81: General Accounting | G81: Accountant | H81: * Prepares asset, liability, and capital account entries by compiling and analyzing account information. *Documents financial transactions by entering account information. *Recommends financial actions by analyzing accounting options. *Summarizes current financial status by collecting information; preparing balance sheet, profit and loss statement, and other reports. *Substantiates financial transactions by auditing documents. *Maintains accounting controls by preparing and recommending policies and procedures. | I81: 100-3-006,200-1-001,300-64,300-65,300-69,400-4,400-67,400-90,500-12,500-18,500-23,500-24,600,2,600-4 | J81: 40.20.04 | K81: VI.7 | M81: 210.316.360 | O81: 210.340.230 | P81: 210.340.230 | Q81: 210.340.230 | R81: 210.340.230 | W81: 100 - Education [100-3-006]Public Accountant 200 - Language [200-1-001]Advanced English, [2] 300 - Knowledge [300-64]General Accounting, [300-65]ISR, IMSS, taxes, LFT and other laws related with the function, [300-69]Accounting Systems 400 - Experience [400-4]Minimum 4 years experience in similar position, [400-67]Accounting records, [400-90]Preparation of Annual Statements 500 - Skills [500-12]Information Ordering, [500-18]Stress management, [500-23]Organization, [500-24]Analytical 600 - Work Values [600], [600-4]Honesty and Integrity | Z81: 926.2333333 | AA81: 926.2333333 | AB81: =20861/30 -> 695.3666667 | AC81: =27787/30 -> 926.2333333 | AD81: =29750/30 -> 991.6666667 | AE81: VI.7
A82: 65 | B82: 13-2011 | C82: IND | D82: SAL | E82: Administrative | F82: General Accounting | G82: Cost Accountant | H82: * Prepares asset, liability, and capital account entries by compiling and analyzing account information. *Documents financial transactions by entering account information. *Recommends financial actions by analyzing accounting options. *Summarizes current financial status by collecting information; preparing balance sheet, profit and loss statement, and other reports. *Substantiates financial transactions by auditing documents. *Maintains accounting controls by preparing and recommending policies and procedures. | I82: 100-3-006,200-1-001,300-64,300-65,300-69,400-4,400-67,400-90,500-12,500-18,500-23,500-24,600,2,600-4 | J82: 40.20.04 | K82: VI.7 | M82: 210.316.360 | O82: 210.340.230 | P82: 210.340.230 | Q82: 210.340.230 | R82: 210.340.230 | V82: =IF(T82<>"",VLOOKUP(T82,ProgressivePositions,6,FALSE),"") ->  | W82: 100 - Education [100-3-006]Public Accountant 200 - Language [200-1-001]Advanced English, [2] 300 - Knowledge [300-64]General Accounting, [300-65]ISR, IMSS, taxes, LFT and other laws related with the function, [300-69]Accounting Systems 400 - Experience [400-4]Minimum 4 years experience in similar position, [400-67]Accounting records, [400-90]Preparation of Annual Statements 500 - Skills [500-12]Information Ordering, [500-18]Stress management, [500-23]Organization, [500-24]Analytical 600 - Work Values [600], [600-4]Honesty and Integrity | Z82: 926.2333333 | AA82: 926.2333333 | AB82: =20861/30 -> 695.3666667 | AC82: =27787/30 -> 926.2333333 | AD82: =29750/30 -> 991.6666667 | AE82: VI.7
A83: 66 | B83: 43-3051 | C83: IND | D83: SAL | E83: Human Resources | F83: Payroll | G83: Payroll General Supervisor | H83: * Checking people's hours. * Making the monthly payments on time. * Working out tax and national insurance deductions. * Setting up new members of staff. * Calculating overtime. | I83: 100-3-006/100-3-002/100-3-008,200-1-002,300-64,300-65,300-68,300-74,400-4,400-13,400-69,500-24,600-4 | J83: 40.30.02 | K83: V.6 | L83: 120.256.230 | M83: 120.256.230 | O83: 120.256.230 | P83: 120.256.230 | Q83: 120.256.230 | R83: 120.256.230 | V83: =IF(T83<>"",VLOOKUP(T83,ProgressivePositions,6,FALSE),"") ->  | W83: 100 - Education [100-3-006]Public Accountant or [100-3-002]Financial Administration or [100-3-008]Human Resources 200 - Language [200-1-002]Intermediate English 300 - Knowledge [300-64]General Accounting, [300-65]ISR, IMSS, taxes, LFT and other laws related with the function, [300-68]Payroll Systems, [300-74]Payroll Management 400 - Experience [400-4]Minimum 4 years experience in similar position, [400-13]HR Management, [400-69]Payroll calculation 500 - Skills [500-24]Analytical 600 - Work Values [600-4]Honesty and Integrity | Z83: 785.8333333 | AA83: 785.8333333 | AB83: =21863/30 -> 728.7666667 | AC83: =23575/30 -> 785.8333333 | AD83: =25288/30 -> 842.9333333 | AE83: V.6
A84: 67 | B84: 43-3031 | C84: IND | D84: SAL | E84: Administrative | F84: General Accounting | G84: Accounts Payable Supervisor | H84: * Ensure the smooth running of the Accounts Payable department. * Performing the month end closing process and reconciliation of the ledgers. * Maintain excellent working relationship with external supplier. * Ensure the Accounts Payable team are replying to all queries in a timely manner and all queries are dealt with correctly and efficiently. * Provide day to day management of the Purchase Ledger team - motivating and leading the team you will also lead the way in developing processes and efficiencies. * Performance management of staff and monthly appraisals. | I84: 100-3-006/100-3-008/100-3-002,200-1-002,300-1,300-64,300-65,400-5,400-13,400-68,400-69,500-24,600-2,600-4 | J84: 40.40.02 | K84: VI.15 | M84: 210.320.230 | O84: 210.320.230 | P84: 210.320.230 | Q84: 210.320.230 | R84: 210.320.230 | V84: =IF(T84<>"",VLOOKUP(T84,ProgressivePositions,6,FALSE),"") ->  | W84: 100 - Education [100-3-006]Public Accountant or [100-3-008]Human Resources or [100-3-002]Financial Administration 200 - Language [200-1-002]Intermediate English 300 - Knowledge [300-1]Administration and Management, [300-64]General Accounting, [300-65]ISR, IMSS, taxes, LFT and other laws related with the function 400 - Experience [400-5]Minimum 5 years experience in similar position, [400-13]HR Management, [400-68]Elaboration of Reports, [400-69]Payroll calculation 500 - Skills [500-24]Analytical 600 - Work Values [600-2]Dependability and Responsability, [600-4]Honesty and Integrity | Z84: 582.7333333 | AA84: 582.7333333 | AB84: =15400/30 -> 513.3333333 | AC84: =17482/30 -> 582.7333333 | AD84: =19601/30 -> 653.3666667 | AE84: VI.15
A85: 68 | B85: 43-3031 | C85: ADM | D85: SAL | E85: Administrative | F85: General Accounting | G85: Accounting Clerk | H85: * Maintains accounting records by making copies; filing documents. * Reconciles bank statements by comparing statements with general ledger. * Maintains accounting databases by entering data into the computer; processing backups. * Verifies financial reports by running performance analysis software program. | I85: 100-4-007,200-1-002,300-64,300-69,400-2,400-67,400-68,500-10,500-12,500-24,600-2 | J85: 40.20.07 | K85: VI.8 | L85: 210.316.430 | M85: 210.316.430 | P85: 210.316.430 | Q85: 210.316.430 | R85: 210.316.430 | V85: =IF(T85<>"",VLOOKUP(T85,ProgressivePositions,6,FALSE),"") ->  | W85: 100 - Education [100-4-007]Accounting 200 - Language [200-1-002]Intermediate English 300 - Knowledge [300-64]General Accounting, [300-69]Accounting Systems 400 - Experience [400-2]Minimum 2 years experience in similar position, [400-67]Accounting records, [400-68]Elaboration of Reports 500 - Skills [500-10]Written Comprenhension, [500-12]Information Ordering, [500-24]Analytical 600 - Work Values [600-2]Dependability and Responsability | Z85: 458.0666667 | AA85: 458.0666667 | AB85: =10526/30 -> 350.8666667 | AC85: =13742/30 -> 458.0666667 | AD85: =15925/30 -> 530.8333333 | AE85: VI.8
A86: 69 | B86: 43-3051 | C86: ADM | D86: SAL | E86: Human Resources | F86: Payroll | G86: Payroll Assistant | H86: * Maintains payroll information by collecting, calculating, and entering data. * Updates payroll records by entering changes in exemptions, insurance coverage, savings deductions, and job title and department/division transfers. * Prepares reports by compiling summaries of earnings, taxes, deductions, leave, disability, and nontaxable wages. * Determines payroll liabilities by calculating employee federal and state income and social security taxes and employer's social security, unemployment, and workers compensation payments. | I86: 100-4-008,200-1-003,300-68,300-74,400-2,500-7,500-8,600-2,600-4 | J86: 40.30.04 | K86: VI.13B | L86: 120.256.360 | M86: 120.256.360 | P86: 120.256.360 | Q86: 120.256.360 | R86: 120.256.360 | W86: 100 - Education [100-4-008]Administration 200 - Language [200-1-003]Basic English 300 - Knowledge [300-68]Payroll Systems, [300-74]Payroll Management 400 - Experience [400-2]Minimum 2 years experience in similar position 500 - Skills [500-7]Judgement and Decision Making, [500-8]Communication and Oral Expression 600 - Work Values [600-2]Dependability and Responsability, [600-4]Honesty and Integrity | Z86: 465.2666667 | AA86: 465.2666667 | AB86: =12370/30 -> 412.3333333 | AC86: =13958/30 -> 465.2666667 | AD86: =15895/30 -> 529.8333333 | AE86: VI.13B
A87: 70 | B87: 11-3121 | C87: ADM | D87: SAL | E87: Management | F87: Human Resources | G87: Human Resources Manager | H87: * Serve as a link between management and employees by handling questions, interpreting and administering contracts and helping resolve work-related problems. * Analyze and modify compensation and benefits policies to establish competitive programs and ensure compliance with legal requirements. * Advise managers on organizational policy matters such as equal employment opportunity and sexual harassment, and recommend needed changes. * Perform difficult staffing duties, including dealing with understaffing, refereeing disputes, firing employees, and administering disciplinary procedures. * Plan and conduct new employee orientation to foster positive attitude toward organizational objectives. * Identify staff vacancies and recruit, interview and select applicants. * Plan, direct, supervise, and coordinate work activities of subordinates and staff relating to employment, compensation, labor relations, and employee relations. | I87: 100-3-008/100-3-005,200-1-001,300-65,300-71,300-70,300-72,300-73,300-74,400-5,400-13,400-74,500-8,500-1,500-8,500-19,600-2,600-4 | J87: 30.12.02 | K87: V.4 | L87: 120.100.220 | M87: 120.100.220 | N87: 120.100.220 | O87: 120.100.220 | P87: 120.100.220 | Q87: 120.100.220 | R87: 120.100.220 | V87: =IF(T87<>"",VLOOKUP(T87,ProgressivePositions,6,FALSE),"") ->  | W87: 100 - Education [100-3-008]Human Resources or [100-3-005]Business Administration 200 - Language [200-1-001]Advanced English 300 - Knowledge [300-65]ISR, IMSS, taxes, LFT and other laws related with the function, [300-71]Labor Relations Management, [300-70]Training, [300-72]Recruitment and Selection process, [300-73]Organizational Development, [300-74]Payroll Management 400 - Experience [400-5]Minimum 5 years experience in similar position, [400-13]HR Management, [400-74]HR Planning 500 - Skills [500-8]Communication and Oral Expression , [500-1]Active Listening, [500-8]Communication and Oral Expression , [500-19]Empathy 600 - Work Values [600-2]Dependability and Responsability, [600-4]Honesty and Integrity | Z87: 1464.166667 | AA87: 1464.166667 | AB87: =42023/30 -> 1400.766667 | AC87: =43925/30 -> 1464.166667 | AD87: =46234/30 -> 1541.133333 | AE87: V.4
A88: 70 | B88: 11-3121 | C88: ADM | D88: SAL | E88: Management | F88: Human Resources | G88: Employee Relations Manager | H88: * Serve as a link between management and employees by handling questions, interpreting and administering contracts and helping resolve work-related problems. * Analyze and modify compensation and benefits policies to establish competitive programs and ensure compliance with legal requirements. * Advise managers on organizational policy matters such as equal employment opportunity and sexual harassment, and recommend needed changes. * Perform difficult staffing duties, including dealing with understaffing, refereeing disputes, firing employees, and administering disciplinary procedures. * Plan and conduct new employee orientation to foster positive attitude toward organizational objectives. * Identify staff vacancies and recruit, interview and select applicants. * Plan, direct, supervise, and coordinate work activities of subordinates and staff relating to employment, compensation, labor relations, and employee relations. | I88: 100-3-008/100-3-005,200-1-001,300-65,300-71,300-70,300-72,300-73,300-74,400-5,400-13,400-74,500-8,500-1,500-8,500-19,600-2,600-4 | J88: 30.12.02 | K88: V.4 | L88: 120.100.220 | M88: 120.100.220 | N88: 120.100.220 | O88: 120.100.220 | P88: 120.100.220 | Q88: 120.100.220 | R88: 120.100.220 | V88: =IF(T88<>"",VLOOKUP(T88,ProgressivePositions,6,FALSE),"") ->  | W88: 100 - Education [100-3-008]Human Resources or [100-3-005]Business Administration 200 - Language [200-1-001]Advanced English 300 - Knowledge [300-65]ISR, IMSS, taxes, LFT and other laws related with the function, [300-71]Labor Relations Management, [300-70]Training, [300-72]Recruitment and Selection process, [300-73]Organizational Development, [300-74]Payroll Management 400 - Experience [400-5]Minimum 5 years experience in similar position, [400-13]HR Management, [400-74]HR Planning 500 - Skills [500-8]Communication and Oral Expression , [500-1]Active Listening, [500-8]Communication and Oral Expression , [500-19]Empathy 600 - Work Values [600-2]Dependability and Responsability, [600-4]Honesty and Integrity | Z88: 1464.166667 | AA88: 1464.166667 | AB88: =42023/30 -> 1400.766667 | AC88: =43925/30 -> 1464.166667 | AD88: =46234/30 -> 1541.133333 | AE88: V.4
A89: 71 | B89: 13-1071 | C89: IND | D89: SAL | E89: Human Resources | F89: Personnel Management | G89: Human Resources General Supervisor | H89: * Assists in scheduling a variety of meetings and employee events for the purpose of meeting the needs of the department, District and employees. * Audits monthly personnel actions prepared by staff for the purpose of to ensure consistency with position control report (PCR) and to ensure that errors are kept to a minimum and that correct account numbers are used. * Communicates with other employees, departments, administrators, applicants and the public for the purpose of providing information and assistance concerning employment, recruitment, transfers, personnel records, leaves. licenses, and related legal requirements. | I89: 100-3-005/100-3-008,200-1-001,300-65,300-70,300-71,300-72,300-74,400-3,400-75,500-1,500-8,600-2,600-4 | J89: 30.10.03 | K89: V.7 | L89: 120.252.230 | M89: 120.252.230 | P89: 120.252.230 | Q89: 120.252.230 | R89: 120.252.230 | W89: 100 - Education [100-3-005]Business Administration or [100-3-008]Human Resources 200 - Language [200-1-001]Advanced English 300 - Knowledge [300-65]ISR, IMSS, taxes, LFT and other laws related with the function, [300-70]Training, [300-71]Labor Relations Management, [300-72]Recruitment and Selection process, [300-74]Payroll Management 400 - Experience [400-3]Minimum 3 years experience in similar position, [400-75]HR Process Management 500 - Skills [500-1]Active Listening, [500-8]Communication and Oral Expression 600 - Work Values [600-2]Dependability and Responsability, [600-4]Honesty and Integrity | Z89: 858.8333333 | AA89: 858.8333333 | AB89: =23034/30 -> 767.8 | AC89: =25765/30 -> 858.8333333 | AD89: =28195/30 -> 939.8333333 | AE89: V.7
A90: 72 | B90: 13-1071 | C90: IND | D90: SAL | E90: Human Resources | F90: Personnel Management | G90: Human Resources Assistant | H90: * Substantiates applicants' skills by administering and scoring tests. * Schedules examinations by coordinating appointments. * Welcomes new employees to the organization by conducting orientation. * Provides payroll information by collecting time and attendance records. * Submits employee data reports by assembling, preparing, and analyzing data. | I90: 100-4-008/100-5,200-1-003,300-72,300-74,300-76,400-1,400-62,500-8,600-2,600-4 | J90: 30.10.07 | K90: V.9 | L90: 120.252.360 | M90: 120.252.360 | P90: 120.252.360 | Q90: 120.252.360 | R90: 120.252.360 | V90: =IF(T90<>"",VLOOKUP(T90,ProgressivePositions,6,FALSE),"") ->  | W90: 100 - Education [100-4-008]Administration or [100-5]High School 200 - Language [200-1-003]Basic English 300 - Knowledge [300-72]Recruitment and Selection process, [300-74]Payroll Management, [300-76]HR Management Systems 400 - Experience [400-1]Minimum 1 year experience in similar position, [400-62]Data capture 500 - Skills [500-8]Communication and Oral Expression 600 - Work Values [600-2]Dependability and Responsability, [600-4]Honesty and Integrity | Z90: 416.9333333 | AA90: 416.9333333 | AB90: =9478/30 -> 315.9333333 | AC90: =12508/30 -> 416.9333333 | AD90: =14246/30 -> 474.8666667 | AE90: V.9
A91: 73 | B91: 43-6014 | C91: IND | D91: SAL | E91: Administrative | F91: Administrative Support | G91: Bilingual Receptionist | H91: * Provide administrative support to the staff, including, filing, answering phones, faxing, mail distribution, supply orders, develop forms & surveys, maintenance of grant files and reports, general correspondence and billing systems. * Maintain a clean and organized work space. * Receive and direct incoming phone calls and direct visitors/clients; transmit messages in a timely, courteous and accurate manner. * Complete work orders for building maintenance requests. * Assist with office equipment operations; order office supplies. * Maintain lobby, personal space and common areas orderly. | I91: 100-3-005/100-5,200-1-001,300-60,400-1,400-62,400-77,400-78,500-8,600-2 | J91: 30.10.08 | K91: V.20 | L91: 220.368.420 | M91: 220.368.420 | P91: 220.368.420 | Q91: 220.368.420 | R91: 220.368.420 | W91: 100 - Education [100-3-005]Business Administration or [100-5]High School 200 - Language [200-1-001]Advanced English 300 - Knowledge [300-60]Office 400 - Experience [400-1]Minimum 1 year experience in similar position, [400-62]Data capture, [400-77]Files Administration, [400-78]Customer Service 500 - Skills [500-8]Communication and Oral Expression 600 - Work Values [600-2]Dependability and Responsability | Z91: 648.1266667 | AA91: 648.1266667 | AB91: =11782/30 -> 392.7333333 | AC91: =12979/30 -> 432.6333333 | AD91: =14250/30 -> 475 | AE91: V.20
A92: 73 | B92: 43-6014 | C92: IND | D92: SAL | E92: Administrative | F92: Administrative Support | G92: Bilingual Assistant-Management | H92: * Perform administrative duties including preparation of letters, memos, and various reports. * Maintain schedules and calendars using computer software. * Enter, update, and maintain data in various databases using a computer. * Receive messages and communicate via telephone, email, and in person with citizens, department personnel, and other staff members.* Establish and maintain paper records and files. * Proofread written materials for accuracy including proper spelling, grammar, vocabulary and punctuation. | I92: 100-3-005/100-5,200-1-001,300-60,400-2,400-62,400-77,400-78,500-8,500-14,600-2,600-4 | J92: 30.10.08 | K92: V.20 | L92: 220.368.420 | M92: 220.368.420 | P92: 220.368.420 | Q92: 220.368.420 | R92: 220.368.420 | W92: 100 - Education [100-3-005]Business Administration or [100-5]High School 200 - Language [200-1-001]Advanced English 300 - Knowledge [300-60]Office 400 - Experience [400-2]Minimum 2 years experience in similar position, [400-62]Data capture, [400-77]Files Administration, [400-78]Customer Service 500 - Skills [500-8]Communication and Oral Expression , [500-14]Proactive 600 - Work Values [600-2]Dependability and Responsability, [600-4]Honesty and Integrity | Z92: 648.1266667 | AA92: 648.1266667 | AB92: =11782/30 -> 392.7333333 | AC92: =12979/30 -> 432.6333333 | AD92: =14250/30 -> 475 | AE92: V.20
A93: 73 | B93: 43-6011 | C93: IND | D93: SAL | E93: Administrative | F93: Administrative Support | G93: Administrative Assistant | H93: * Perform administrative duties including preparation of letters, memos, and various reports. * Enter, update, and maintain data in various databases using a computer. * Receive messages and communicate via telephone, email, and in person with citizens, department personnel, and other staff members.* Establish and maintain paper records and files. * Proofread written materials for accuracy including proper spelling, grammar, vocabulary and punctuation. | I93: 100-3-005/100-5,200-1-001,300-60,400-2,400-62,400-77,400-78,500-8,500-14,600-2,600-4 | J93: 30.10.08 | K93: V.20 | L93: 220.368.420 | M93: 220.368.420 | P93: 220.368.420 | Q93: 220.368.420 | R93: 220.368.420 | W93: 100 - Education [100-3-005]Business Administration or [100-5]High School 200 - Language [200-1-001]Advanced English 300 - Knowledge [300-60]Office 400 - Experience [400-2]Minimum 2 years experience in similar position, [400-62]Data capture, [400-77]Files Administration, [400-78]Customer Service 500 - Skills [500-8]Communication and Oral Expression , [500-14]Proactive 600 - Work Values [600-2]Dependability and Responsability, [600-4]Honesty and Integrity | Z93: 648.1266667 | AA93: 648.1266667 | AB93: =11782/30 -> 392.7333333 | AC93: =12979/30 -> 432.6333333 | AD93: =14250/30 -> 475 | AE93: V.20
A94: 74 | B94: 17-2081 | C94: IND | D94: SAL | E94: Environmental | F94: Environmental | G94: Environmental Engineer | H94: * Design or supervise the design of systems, processes, or equipment for control, management, or remediation of water, air, or soil quality. * Green Task Statement Advise corporations or government agencies of procedures to follow in cleaning up contaminated sites to protect people and the environment. * Green Task Statement Collaborate with environmental scientists, planners, hazardous waste technicians, engineers, experts in law or business, or other specialists to address environmental problems. * Green Task Statement Obtain, update, or maintain plans, permits, or standard operating procedures. * Green Task Statement Serve as liaison with federal, state, or local agencies or officials on issues pertaining to solid or hazardous waste program requirements. * Green Task Statement Provide technical support for environmental remediation or litigation projects, including remediation system design or determination of regulatory applicability | I94: 100-2-011,200-1-001,300-77,300-78,300-28,400-5,400-79,400-82,400-83,400-84,400-85,500-17,600-2 | J94: 30.60.03 | K94: V.23 | M94: 510.668.350 | W94: 100 - Education [100-2-011]Environmental Engineer 200 - Language [200-1-001]Advanced English 300 - Knowledge [300-77]Mexican Environmental Standards, [300-78]Environmental Self-management Programs, [300-28]Continuous Improvement 400 - Experience [400-5]Minimum 5 years experience in similar position, [400-79]Elaboration of Contingency Plans, [400-82]Elaboration of Environmental and Safety Programs, [400-83]Accident Prevention Programs and Health, [400-84]Reports and Environmental Impact Programs, [400-85]Environmental Procedures 500 - Skills [500-17]Self-management 600 - Work Values [600-2]Dependability and Responsability | Z94: 379.8333333 | AA94: 379.8333333 | AB94: =20096/30 -> 669.8666667 | AC94: =24768/30 -> 825.6 | AD94: =28810/30 -> 960.3333333 | AE94: V.23
A95: 74 | B95: 17-2081 | C95: IND | D95: SAL | E95: Environmental | F95: Environmental | G95: Environmental Analyst | H95: * Design or supervise the design of systems, processes, or equipment for control, management, or remediation of water, air, or soil quality. * Green Task Statement Advise corporations or government agencies of procedures to follow in cleaning up contaminated sites to protect people and the environment. * Green Task Statement Collaborate with environmental scientists, planners, hazardous waste technicians, engineers, experts in law or business, or other specialists to address environmental problems. * Green Task Statement Obtain, update, or maintain plans, permits, or standard operating procedures. * Green Task Statement Serve as liaison with federal, state, or local agencies or officials on issues pertaining to solid or hazardous waste program requirements. * Green Task Statement Provide technical support for environmental remediation or litigation projects, including remediation system design or determination of regulatory applicability | I95: 100-2-011,200-1-001,300-77,300-78,300-28,400-5,400-79,400-82,400-83,400-84,400-85,500-17,600-2 | J95: 30.60.04 | K95: V.24 | M95: 510.668.350 | W95: 100 - Education [100-2-011]Environmental Engineer 200 - Language [200-1-001]Advanced English 300 - Knowledge [300-77]Mexican Environmental Standards, [300-78]Environmental Self-management Programs, [300-28]Continuous Improvement 400 - Experience [400-5]Minimum 5 years experience in similar position, [400-79]Elaboration of Contingency Plans, [400-82]Elaboration of Environmental and Safety Programs, [400-83]Accident Prevention Programs and Health, [400-84]Reports and Environmental Impact Programs, [400-85]Environmental Procedures 500 - Skills [500-17]Self-management 600 - Work Values [600-2]Dependability and Responsability | Z95: 379.8333333 | AA95: 379.8333333 | AB95: =20096/30 -> 669.8666667 | AC95: =24768/30 -> 825.6 | AD95: =28810/30 -> 960.3333333 | AE95: V.24
A96: 75 | B96: 29-9012 | C96: IND | D96: SAL | E96: Environmental | F96: Hygene and Security | G96: Health & Safety Technician | H96: * Examine credentials, licenses, or permits to ensure compliance with licensing requirements. * Help direct rescue and firefighting operations in the event of a fire or an explosion. * Maintain all required records and documentation. * Maintain logbooks of daily activities, including areas visited and activities performed. * Plan emergency response drills. | I96: 100-4-008,300-26,300-77,400-2,400-82,400-79,400-83,500-16,500-14,600-2,600-4 | J96: 30.70.05 | K96: V.30 | M96: 510.240.360 | N96: 510.240.360 | P96: 510.240.360 | Q96: 510.240.360 | R96: 510.240.360 | W96: 100 - Education [100-4-008]Administration 300 - Knowledge [300-26]8 D's, [300-77]Mexican Environmental Standards 400 - Experience [400-2]Minimum 2 years experience in similar position, [400-82]Elaboration of Environmental and Safety Programs, [400-79]Elaboration of Contingency Plans, [400-83]Accident Prevention Programs and Health 500 - Skills [500-16]Team Work, [500-14]Proactive 600 - Work Values [600-2]Dependability and Responsability, [600-4]Honesty and Integrity | Z96: 346.5 | AA96: 346.5 | AB96: =9376/30 -> 312.5333333 | AC96: =10395/30 -> 346.5 | AD96: =11930/30 -> 397.6666667 | AE96: V.30
A97: 76 | B97: 29-1171 | C97: IND | D97: SAL | E97: Human Resources | F97: Medical Assistance | G97: Nurse | H97: * Assessing and planning nursing care requirements. * Providing pre- and post-operation care. * Monitoring and administering medication and intravenous infusions taking patient samples, pulses, temperatures and blood pressures. * Writing records. * Supervising junior staff | I97: 100-4-012,300-83,400-2,400-83,500-8,500-16,600-2,600-4 | J97: 30.70.12 | K97: V.37 | M97: 600.240.330 | P97: 600.240.330 | Q97: 600.240.330 | R97: 600.240.330 | W97: 100 - Education [100-4-012]Nursing 300 - Knowledge [300-83]Clinical History Records 400 - Experience [400-2]Minimum 2 years experience in similar position, [400-83]Accident Prevention Programs and Health 500 - Skills [500-8]Communication and Oral Expression , [500-16]Team Work 600 - Work Values [600-2]Dependability and Responsability, [600-4]Honesty and Integrity | Z97: 400 | AA97: 400 | AB97: =9243/30 -> 308.1 | AC97: =10064/30 -> 335.4666667 | AD97: =11203/30 -> 373.4333333 | AE97: V.37
A98: 77 | B98: 43-5021 | C98: ADM | D98: SAL | E98: Administrative | F98: Administrative Support | G98: Chauffeur/Messenger | H98: * Receive and record communication and other materials to be delivered, and secure information on recipients. * Sort items to be delivered according to the delivery route, load and/or unload the same. * Plan and follow the most efficient routes for delivering said items. * Deliver communications, parcel, packages and other items to other establishments and offices as directed. | I98: 100-7,400-1,400-78,600-2,600-4 | J98: 60.10.12 | K98: V.21 | M98: 220.112.431 | O98: 220.112.431 | P98: 220.112.431 | Q98: 220.112.431 | R98: 220.112.431 | W98: 100 - Education [100-7]Elementary School 400 - Experience [400-1]Minimum 1 year experience in similar position, [400-78]Customer Service 600 - Work Values [600-2]Dependability and Responsability, [600-4]Honesty and Integrity | Z98: 329.3333333 | AA98: 329.3333333 | AB98: =6862/30 -> 228.7333333 | AC98: =9880/30 -> 329.3333333 | AD98: =11288/30 -> 376.2666667 | AE98: V.21
A99: 78 | B99: 53-7062 | C99: IND | D99: SAL | E99: Materials | F99: Materials Handling / Warehouse | G99: Material Handler | H99: * Loads, unloads, and moves materials within or near plant, yard, or work site, performing any combination of following duties: Reads work order or follows oral instructions to ascertain materials or containers to be moved. * Loads and unloads materials onto or from pallets, trays, racks, and shelves by hand. * Loads materials into vehicles and installs strapping, bracing, or padding to prevent shifting or damage in transit, using handtools. * Conveys materials to or from storage or work sites to designated area, using handtruck, electric dolly, wheelbarrow, or other device. | I99: 100-4-004/100-5,300-21,300-40,300-49,400-2,400-51,600-2,600-4 | J99: 20.10.05 | K99: IV.7B | W99: 100 - Education [100-4-004]Machinery and Tools or [100-5]High School 300 - Knowledge [300-21]Quality Assurance, [300-40]Preventive and Corrective Maintenance, [300-49]Materials Handling 400 - Experience [400-2]Minimum 2 years experience in similar position, [400-51]Expedite of materials 600 - Work Values [600-2]Dependability and Responsability, [600-4]Honesty and Integrity | Z99: 267.7619048 | AA99: 267.7619048 | AB99: =7496/30 -> 249.8666667 | AC99: =8683/30 -> 289.4333333 | AD99: =11060/30 -> 368.6666667 | AE99: IV.7B
A100: 79 | B100: 17-2112 | C100: IND | D100: SAL | E100: Manufacturing | F100: Engineering | G100: Industrial Engineer | H100: * Plan and establish sequence of operations to fabricate and assemble parts or products and to promote efficient utilization. * Review production schedules, engineering specifications, orders, and related information to obtain knowledge of manufacturing methods, procedures, and activities. * Estimate production costs, cost saving methods, and the effects of product design changes on expenditures for management review, action, and control. * Draft and design layout of equipment, materials, and workspace to illustrate maximum efficiency using drafting tools and computer. * Coordinate and implement quality control objectives, activities, or procedures to resolve production problems, maximize product reliability, or minimize costs. | I100: 100-2-007,200-1-001,300-23,300-36,300-28,300-42,400-4,400-14,400-25,400-19,500-7,500-13,600-1,600-2 | J100: 10.30.59 | K100: II.30B | M100: 510.676.360 | O100: 510.676.360 | P100: 510.676.360 | Q100: 510.676.360 | R100: 510.676.360 | V100: =IF(T100<>"",VLOOKUP(T100,ProgressivePositions,6,FALSE),"") ->  | W100: 100 - Education [100-2-007]Industrial Engineer 200 - Language [200-1-001]Advanced English 300 - Knowledge [300-23]Quality Systems / TS / ISO, [300-36]Production Control, [300-28]Continuous Improvement, [300-42]Standardization of Processes 400 - Experience [400-4]Minimum 4 years experience in similar position, [400-14]Lean Manufacturing, [400-25]Planning and Control, [400-19]New Projects Development and Implementation 500 - Skills [500-7]Judgement and Decision Making, [500-13]Change Adaptation 600 - Work Values [600-1]Strong Work Ethic, [600-2]Dependability and Responsability | Z100: 614.2644444 | AA100: 614.2644444 | AB100: =19049/30 -> 634.9666667 | AC100: =25000/30 -> 833.3333333 | AD100: =28994/30 -> 966.4666667 | AE100: II.30B
A101: 79 | B101: 17-2112 | C101: IND | D101: SAL | E101: Manufacturing | F101: Engineering | G101: Tool Engineer | H101: * Plan and establish sequence of operations to fabricate and assemble parts or products and to promote efficient utilization. * Review production schedules, engineering specifications, orders, and related information to obtain knowledge of manufacturing methods, procedures, and activities. * Estimate production costs, cost saving methods, and the effects of product design changes on expenditures for management review, action, and control. * Draft and design layout of equipment, materials, and workspace to illustrate maximum efficiency using drafting tools and computer. * Coordinate and implement quality control objectives, activities, or procedures to resolve production problems, maximize product reliability, or minimize costs. | I101: 100-2-007,200-1-001,300-23,300-36,300-28,300-42,400-4,400-14,400-25,400-19,500-7,500-13,600-1,600-2 | J101: 10.30.59 | K101: II.30B | M101: 510.676.360 | O101: 510.676.360 | P101: 510.676.360 | Q101: 510.676.360 | R101: 510.676.360 | W101: 100 - Education [100-2-007]Industrial Engineer 200 - Language [200-1-001]Advanced English 300 - Knowledge [300-23]Quality Systems / TS / ISO, [300-36]Production Control, [300-28]Continuous Improvement, [300-42]Standardization of Processes 400 - Experience [400-4]Minimum 4 years experience in similar position, [400-14]Lean Manufacturing, [400-25]Planning and Control, [400-19]New Projects Development and Implementation 500 - Skills [500-7]Judgement and Decision Making, [500-13]Change Adaptation 600 - Work Values [600-1]Strong Work Ethic, [600-2]Dependability and Responsability | Z101: 614.2644444 | AA101: 614.2644444 | AB101: =19049/30 -> 634.9666667 | AC101: =25000/30 -> 833.3333333 | AD101: =28994/30 -> 966.4666667 | AE101: II.30B
A102: 79 | B102: 17-2112 | C102: IND | D102: SAL | E102: Manufacturing | F102: Engineering | G102: Production Engineer | H102: * Plan and establish sequence of operations to fabricate and assemble parts or products and to promote efficient utilization. * Review production schedules, engineering specifications, orders, and related information to obtain knowledge of manufacturing methods, procedures, and activities. * Estimate production costs, cost saving methods, and the effects of product design changes on expenditures for management review, action, and control. * Draft and design layout of equipment, materials, and workspace to illustrate maximum efficiency using drafting tools and computer. * Coordinate and implement quality control objectives, activities, or procedures to resolve production problems, maximize product reliability, or minimize costs. | I102: 100-2-007,200-1-001,300-23,300-36,300-28,300-42,400-4,400-14,400-25,400-19,500-7,500-13,600-1,600-2 | J102: 10.30.59 | K102: II.30B | M102: 510.676.360 | O102: 510.676.360 | P102: 510.676.360 | Q102: 510.676.360 | R102: 510.676.360 | W102: 100 - Education [100-2-007]Industrial Engineer 200 - Language [200-1-001]Advanced English 300 - Knowledge [300-23]Quality Systems / TS / ISO, [300-36]Production Control, [300-28]Continuous Improvement, [300-42]Standardization of Processes 400 - Experience [400-4]Minimum 4 years experience in similar position, [400-14]Lean Manufacturing, [400-25]Planning and Control, [400-19]New Projects Development and Implementation 500 - Skills [500-7]Judgement and Decision Making, [500-13]Change Adaptation 600 - Work Values [600-1]Strong Work Ethic, [600-2]Dependability and Responsability | Z102: 614.2644444 | AA102: 614.2644444 | AB102: =19049/30 -> 634.9666667 | AC102: =25000/30 -> 833.3333333 | AD102: =28994/30 -> 966.4666667 | AE102: II.30B
A103: 80 | B103: 17-2071 | C103: IND | D103: SAL | E103: Manufacturing | F103: Engineering | G103: Electrical Process Engineer | H103: * Prepare technical drawings, specifications of electrical systems, or topographical maps to ensure that installation and operations conform to standards and customer requirements. * Operate computer-assisted engineering or design software or equipment to perform engineering tasks. * Confer with engineers, customers, or others to discuss existing or potential engineering projects or products. * Direct or coordinate manufacturing, construction, installation, maintenance, support, documentation, or testing activities to ensure compliance with specifications, codes, or customer requirements. * Design, implement, maintain, or improve electrical instruments, equipment, facilities, components, products, or systems for commercial, industrial, or domestic purposes. | I103: 100-2-012,200-1-001,300-23,300-36,300-37,400-3,400-13,400-19,400-14,400-25,500-13,600-2,600-4 | K103: III.23 | L103: 510.704.360 | M103: 510.704.360 | N103: 510.704.360 | O103: 510.704.360 | P103: 510.704.360 | Q103: 510.704.360 | R103: 510.704.360 | W103: 100 - Education [100-2-012]Electronics Engineer 200 - Language [200-1-001]Advanced English 300 - Knowledge [300-23]Quality Systems / TS / ISO, [300-36]Production Control, [300-37]Product Design 400 - Experience [400-3]Minimum 3 years experience in similar position, [400-13]HR Management, [400-19]New Projects Development and Implementation, [400-14]Lean Manufacturing, [400-25]Planning and Control 500 - Skills [500-13]Change Adaptation 600 - Work Values [600-2]Dependability and Responsability, [600-4]Honesty and Integrity | Z103: 933.3333333 | AA103: 933.3333333 | AB103: =23875/30 -> 795.8333333 | AC103: =28000/30 -> 933.3333333 | AD103: =33993/30 -> 1133.1 | AE103: III.23
A104: 80 | B104: 17-2071 | C104: IND | D104: SAL | E104: Manufacturing | F104: Engineering | G104: Test Engineer | H104: * Prepare technical drawings, specifications of electrical systems, or topographical maps to ensure that installation and operations conform to standards and customer requirements. * Operate computer-assisted engineering or design software or equipment to perform engineering tasks. * Confer with engineers, customers, or others to discuss existing or potential engineering projects or products. * Direct or coordinate manufacturing, construction, installation, maintenance, support, documentation, or testing activities to ensure compliance with specifications, codes, or customer requirements. * Design, implement, maintain, or improve electrical instruments, equipment, facilities, components, products, or systems for commercial, industrial, or domestic purposes. | I104: 100-2-012,200-1-001,300-23,300-36,300-37,400-3,400-13,400-19,400-14,400-25,500-13,600-2,600-4 | K104: III.23 | L104: 510.704.360 | M104: 510.704.360 | N104: 510.704.360 | O104: 510.704.360 | P104: 510.704.360 | Q104: 510.704.360 | R104: 510.704.360 | W104: 100 - Education [100-2-012]Electronics Engineer 200 - Language [200-1-001]Advanced English 300 - Knowledge [300-23]Quality Systems / TS / ISO, [300-36]Production Control, [300-37]Product Design 400 - Experience [400-3]Minimum 3 years experience in similar position, [400-13]HR Management, [400-19]New Projects Development and Implementation, [400-14]Lean Manufacturing, [400-25]Planning and Control 500 - Skills [500-13]Change Adaptation 600 - Work Values [600-2]Dependability and Responsability, [600-4]Honesty and Integrity | Z104: 933.3333333 | AA104: 933.3333333 | AB104: =23875/30 -> 795.8333333 | AC104: =28000/30 -> 933.3333333 | AD104: =33993/30 -> 1133.1 | AE104: III.23
A105: 81 | B105: 19-4099.01 | C105: IND | D105: SAL | E105: Quality Control | F105: ISO Quality | G105: Quality Systems Coord. & Training | H105: * Support the co-ordination of all regional training activities, building the capacity, financial sustainability and effectiveness of the regional operation. * Ensure all internal documents used to support the delivery of HIA Training. * Co-ordinate training resources and manage these resources within budget allocations. | I105: 100-2-007/100-2-014,200-1-001,300-20,300-21,300-29,400-3,400-14,400-17,400-18,500-16,500-8,500-13,600-1,600-2 | K105: Vll.5B | P105: 330.418.430 | Q105: 330.418.430 | R105: 330.418.430 | W105: 100 - Education [100-2-007]Industrial Engineer or [100-2-014]Industrial and Systems Engineer 200 - Language [200-1-001]Advanced English 300 - Knowledge [300-20]Quality Control, [300-21]Quality Assurance, [300-29]5's 400 - Experience [400-3]Minimum 3 years experience in similar position, [400-14]Lean Manufacturing, [400-17]Development Plans of Implementation and Certification of quality systems, [400-18]Documents Control System 500 - Skills [500-16]Team Work, [500-8]Communication and Oral Expression , [500-13]Change Adaptation 600 - Work Values [600-1]Strong Work Ethic, [600-2]Dependability and Responsability | Z105: 600.4 | AA105: 600.4 | AB105: =14286/30 -> 476.2 | AC105: =18012/30 -> 600.4 | AD105: =22623/30 -> 754.1 | AE105: Vll.5B
A106: 82 | B106: 43-5111 | C106: IND | D106: HOU | E106: Quality Control | F106: Quality Laboratory | G106: Test Laboratory Technician | H106: * Organizes work by matching computer orders with specimen labeling; sorting specimens; checking labeling; logging specimens; arranging reports for delivery; keeping work surfaces clean and orderly.* Maintains quality results by running standards and controls, verifying equipment function through routine equipment maintenance and advanced trouble shooting; calibrating equipment utilizing approved testing procedures; monitoring quality control measures and protocols. * Serves as technical resource by participating in staff training; answering questions of other professionals; participating in educational opportunities; reading professional publications; maintaining personal networks; participating in professional organizations. | I106: 100-4-010,300-22,300-33,300-34,400-1,400-23,500-5,500-26,600-2,600-4 | J106: 10.24.03 | K106: III.34 | L106: 510.704.360 | M106: 510.704.360 | O106: 510.704.360 | P106: 510.704.360 | Q106: 510.704.360 | R106: 510.704.360 | W106: 100 - Education [100-4-010]Metrologist 300 - Knowledge [300-22]Measurement Equipment, [300-33]Calibration, [300-34]Metrology 400 - Experience [400-1]Minimum 1 year experience in similar position, [400-23]Metrology Equipment Management 500 - Skills [500-5]Active Learning, [500-26]Visual 600 - Work Values [600-2]Dependability and Responsability, [600-4]Honesty and Integrity | Z106: 275.47 | AA106: 275.47 | AB106: 217.23 | AC106: 275.47 | AD106: 317.6 | AE106: III.34
A107: 83 | B107: 11-9041 | C107: ADM | D107: SAL | E107: Management | F107: Engineering | G107: Process Engineering Manager | H107: * Manage and maintain the business process systems. * Ensure that the process standards, procedures and specifications are in place for the assets. * Identify and manage resources for operations of process systems. * Develop process maintenance system based on risk and reliability management principle. * Develop process engineering initiatives to manage project implementation. * Recruit, train and guide resources to improve total performance and productivity. | I107: 100-2-007/100-2-009,200-1-001,300-23,300-36,400-7,400-13,400-31,400-19,400-14,400-25,500-7,500-13,600-4 | J107: 10.30.02 | K107: II.24 | L107: 510.704.220 | M107: 510.704.220 | O107: 510.704.220 | P107: 510.704.220 | Q107: 510.704.220 | R107: 510.704.220 | W107: 100 - Education [100-2-007]Industrial Engineer or [100-2-009]Process Technology Engineer 200 - Language [200-1-001]Advanced English 300 - Knowledge [300-23]Quality Systems / TS / ISO, [300-36]Production Control 400 - Experience [400-7]Minimum 7 years experience in similar position, [400-13]HR Management, [400-31]Team Work, [400-19]New Projects Development and Implementation, [400-14]Lean Manufacturing, [400-25]Planning and Control 500 - Skills [500-7]Judgement and Decision Making, [500-13]Change Adaptation 600 - Work Values [600-4]Honesty and Integrity | Z107: 2182.633333 | AA107: 2182.633333 | AB107: =48660/30 -> 1622 | AC107: =65479/30 -> 2182.633333 | AD107: =80310/30 -> 2677 | AE107: II.24
A108: 84 | B108: 17-2199.04 | C108: IND | D108: SAL | E108: Manufacturing | F108: Engineering | G108: Process Engineer | H108: * Assessing processes for their relevance, and assessing the adequacy of engineering equipment. * Reviewing existing data (also lab analysis) to see if more research and information need to be collated. * Designing, installing and commissioning new production units, monitoring modifications and upgrades, and troubleshooting existing processes. * Applying the principles of mass, momentum and heat transfer to process and equipment design, including conceptual, scheme and detail design. | I108: 100-2-007/100-2-009,200-1-001,300-23,300-36,300-37,300-28,300-42,400-2,400-14,400-25,500-7,500-13,600-4 | J108: 10.30.04 | L108: 510.704.360 | M108: 510.704.360 | N108: 510.704.360 | O108: 510.704.360 | P108: 510.704.360 | Q108: 510.704.360 | R108: 510.704.360 | W108: 100 - Education [100-2-007]Industrial Engineer or [100-2-009]Process Technology Engineer 200 - Language [200-1-001]Advanced English 300 - Knowledge [300-23]Quality Systems / TS / ISO, [300-36]Production Control, [300-37]Product Design, [300-28]Continuous Improvement, [300-42]Standardization of Processes 400 - Experience [400-2]Minimum 2 years experience in similar position, [400-14]Lean Manufacturing, [400-25]Planning and Control 500 - Skills [500-7]Judgement and Decision Making, [500-13]Change Adaptation 600 - Work Values [600-4]Honesty and Integrity | Z108: 1337.923333 | AA108: 1337.923333 | AB108: =35064.49/30 -> 1168.816333 | AC108: =40137.7/30 -> 1337.923333 | AD108: =43388.18/30 -> 1446.272667
A109: 85 | B109: 43-4151 | C109: IND | D109: SAL | E109: Materials | F109: Customs | G109: Customs Assistant | H109: * General support in the fulfillment of the customs manager duties. * Development, understanding and maintenance of traffic management guidelines documentation. | I109: 100-4-008,200-1-002,300-1,300-79,300-81,400-1,400-77,400-88,500-23,500-24,600-2 | J109: 20.60.05 | K109: IV.17B | L109: 610.610.360 | M109: 610.610.360 | O109: 610.610.360 | P109: 610.610.360 | Q109: 610.610.360 | R109: 610.610.360 | W109: 100 - Education [100-4-008]Administration 200 - Language [200-1-002]Intermediate English 300 - Knowledge [300-1]Administration and Management, [300-79]International Commerce, [300-81]Customs Laws and Regulations 400 - Experience [400-1]Minimum 1 year experience in similar position, [400-77]Files Administration, [400-88]Import and Export Processes 500 - Skills [500-23]Organization, [500-24]Analytical 600 - Work Values [600-2]Dependability and Responsability | Z109: 372.3666667 | AA109: 372.3666667 | AB109: =8698/30 -> 289.9333333 | AC109: =11171/30 -> 372.3666667 | AD109: =13494/30 -> 449.8 | AE109: IV.17B
A110: 86 | B110: 51-9023 | C110: DIR | D110: HOU | E110: Manufacturing | F110: Production | G110: Operator Aerospace - Sheet Metal Assembly Trainee | H110: * Responsible to the Production Supervisor or Group Leader for complying with the process objectives; may perform backing activities covering other positions. | I110: 100-6,400-94,500-5,500-25,500-26 | T110: OP01 | U110: 1 | W110: 100 - Education [100-6]Junior High School 400 - Experience [400-94]Recruitment to 30 days 500 - Skills [500-5]Active Learning, [500-25]Basic Math, [500-26]Visual | Z110: 171.4615385 | AA110: 171.4615385 | AB110: 102.83 | AC110: 117.52 | AD110: 132.21
A111: 87 | B111: 51-9023 | C111: DIR | D111: HOU | E111: Manufacturing | F111: Production | G111: Operator Aerospace - Sheet Metal Assembly A | H111: * Responsible to the Production Supervisor or Group Leader for complying with the process objectives; may perform backing activities covering other positions. | I111: 100-6,300-54,300-55,400-95,500-5,500-25,500-26 | T111: OP01 | U111: 2 | W111: 100 - Education [100-6]Junior High School 300 - Knowledge [300-54]Basic Training Course, [300-55]Performance Assessment 400 - Experience [400-95]31 to 90 days 500 - Skills [500-5]Active Learning, [500-25]Basic Math, [500-26]Visual | Z111: 196.7692308 | AA111: 196.7692308 | AB111: 108.29 | AC111: 123.76 | AD111: 139.23
A112: 88 | B112: 51-9023 | C112: DIR | D112: HOU | E112: Manufacturing | F112: Production | G112: Operator Aerospace - Sheet Metal Assembly B | H112: * Responsible to the Production Supervisor or Group Leader for complying with the process objectives; may perform backing activities covering other positions. | I112: 100-6,300-54,300-55,400-96,500-5,500-25,500-26 | T112: OP01 | U112: 4 | V112: =IF(T112<>"",VLOOKUP(T112,ProgressivePositions,6,FALSE),"") ->  | W112: 100 - Education [100-6]Junior High School 300 - Knowledge [300-54]Basic Training Course, [300-55]Performance Assessment 400 - Experience [400-96]91 to 180 days 500 - Skills [500-5]Active Learning, [500-25]Basic Math, [500-26]Visual | Z112: 219.0769231 | AA112: 219.0769231 | AB112: 118.3 | AC112: 135.2 | AD112: 152.1
A113: 89 | B113: 51-9023 | C113: DIR | D113: HOU | E113: Manufacturing | F113: Production | G113: Operator Aerospace - Sheet Metal Assembly C | H113: * Responsible to the Production Supervisor or Group Leader for complying with the process objectives; may perform backing activities covering other positions. | I113: 100-6,300-54,300-55,400-97,500-5,500-25,500-26 | T113: OP01 | U113: 7 | W113: 100 - Education [100-6]Junior High School 300 - Knowledge [300-54]Basic Training Course, [300-55]Performance Assessment 400 - Experience [400-97]181 to 270 days 500 - Skills [500-5]Active Learning, [500-25]Basic Math, [500-26]Visual | Z113: 249.998 | AA113: 249.998 | AB113: 150.15 | AC113: 171.6 | AD113: 193.05
A114: 90 | B114: 51-9023 | C114: DIR | D114: HOU | E114: Manufacturing | F114: Production | G114: Operator Aerospace - Sheet Metal Assembly D | H114: * Responsible to the Production Supervisor or Group Leader for complying with the process objectives; may perform backing activities covering other positions. | I114: 100-6,300-54,300-55,400-98,500-5,500-25,500-26 | T114: OP01 | U114: 10 | W114: 100 - Education [100-6]Junior High School 300 - Knowledge [300-54]Basic Training Course, [300-55]Performance Assessment 400 - Experience [400-98]271 to 365 days 500 - Skills [500-5]Active Learning, [500-25]Basic Math, [500-26]Visual | Z114: 262.8333333 | AA114: 262.8333333 | AB114: 155.61 | AC114: 177.84 | AD114: 200.07
A115: 91 | B115: 51-9023 | C115: DIR | D115: HOU | E115: Manufacturing | F115: Production | G115: Operator Aerospace - Sheet Metal Assembly E | H115: * Responsible to the Production Supervisor or Group Leader for complying with the process objectives; may perform backing activities covering other positions. | I115: 100-6,300-54,300-55,400-99,500-5,500-25,500-26 | T115: OP01 | U115: 13 | W115: 100 - Education [100-6]Junior High School 300 - Knowledge [300-54]Basic Training Course, [300-55]Performance Assessment 400 - Experience [400-99]366 and up 500 - Skills [500-5]Active Learning, [500-25]Basic Math, [500-26]Visual | Z115: 293 | AA115: 293 | AB115: 161.07 | AC115: 184.08 | AD115: 207.09
A116: 92 | B116: 51-9023 | C116: DIR | D116: HOU | E116: Manufacturing | F116: Production | G116: Operator Aerospace - Wire harnesses Trainee | H116: * Responsible to the Production Supervisor or Group Leader for following all instructions required by each client, in compliance with production objectives. | I116: 100-6,400-94,500-5,500-25,500-26 | T116: OP02 | U116: 1 | W116: 100 - Education [100-6]Junior High School 400 - Experience [400-94]Recruitment to 30 days 500 - Skills [500-5]Active Learning, [500-25]Basic Math, [500-26]Visual | Z116: 143 | AA116: 143 | AB116: 100.625 | AC116: 115 | AD116: 129.375
A117: 93 | B117: 51-9023 | C117: DIR | D117: HOU | E117: Manufacturing | F117: Production | G117: Operator Aerospace - Wire harnesses A | H117: * Responsible to the Production Supervisor or Group Leader for following all instructions required by each client, in compliance with production objectives. | I117: 100-6,300-54,300-55,400-95,500-5,500-25,500-26 | T117: OP02 | U117: 2 | W117: 100 - Education [100-6]Junior High School 300 - Knowledge [300-54]Basic Training Course, [300-55]Performance Assessment 400 - Experience [400-95]31 to 90 days 500 - Skills [500-5]Active Learning, [500-25]Basic Math, [500-26]Visual | Z117: 164.125 | AA117: 164.125 | AB117: 113.75 | AC117: 130 | AD117: 146.25
A118: 94 | B118: 51-9023 | C118: DIR | D118: HOU | E118: Manufacturing | F118: Production | G118: Operator Aerospace - Wire harnesses B | H118: * Responsible to the Production Supervisor or Group Leader for following all instructions required by each client, in compliance with production objectives. | I118: 100-6,300-54,300-55,400-96,500-5,500-25,500-26 | T118: OP02 | U118: 4 | V118: =IF(T118<>"",VLOOKUP(T118,ProgressivePositions,6,FALSE),"") ->  | W118: 100 - Education [100-6]Junior High School 300 - Knowledge [300-54]Basic Training Course, [300-55]Performance Assessment 400 - Experience [400-96]91 to 180 days 500 - Skills [500-5]Active Learning, [500-25]Basic Math, [500-26]Visual | Z118: 184 | AA118: 184 | AB118: 121.625 | AC118: 139 | AD118: 156.375
A119: 95 | B119: 51-9023 | C119: DIR | D119: HOU | E119: Manufacturing | F119: Production | G119: Operator Aerospace - Wire harnesses C | H119: * Responsible to the Production Supervisor or Group Leader for following all instructions required by each client, in compliance with production objectives. | I119: 100-6,300-54,300-55,400-97,500-5,500-25,500-26 | T119: OP02 | U119: 7 | W119: 100 - Education [100-6]Junior High School 300 - Knowledge [300-54]Basic Training Course, [300-55]Performance Assessment 400 - Experience [400-97]181 to 270 days 500 - Skills [500-5]Active Learning, [500-25]Basic Math, [500-26]Visual | Z119: 210.3 | AA119: 210.3 | AB119: 126.875 | AC119: 145 | AD119: 163.125
A120: 96 | B120: 51-9023 | C120: DIR | D120: HOU | E120: Manufacturing | F120: Production | G120: Operator Aerospace - Wire harnesses D | H120: * Responsible to the Production Supervisor or Group Leader for following all instructions required by each client, in compliance with production objectives. | I120: 100-6,300-54,300-55,400-98,500-5,500-25,500-26 | T120: OP02 | U120: 10 | W120: 100 - Education [100-6]Junior High School 300 - Knowledge [300-54]Basic Training Course, [300-55]Performance Assessment 400 - Experience [400-98]271 to 365 days 500 - Skills [500-5]Active Learning, [500-25]Basic Math, [500-26]Visual | Z120: 211.0733333 | AA120: 211.0733333 | AB120: 133 | AC120: 152 | AD120: 171
A121: 97 | B121: 51-9023 | C121: DIR | D121: HOU | E121: Manufacturing | F121: Production | G121: Operator Aerospace - Wire harnesses E | H121: * Responsible to the Production Supervisor or Group Leader for following all instructions required by each client, in compliance with production objectives. | I121: 100-6,300-54,300-55,400-99,500-5,500-25,500-26 | T121: OP02 | U121: 13 | W121: 100 - Education [100-6]Junior High School 300 - Knowledge [300-54]Basic Training Course, [300-55]Performance Assessment 400 - Experience [400-99]366 and up 500 - Skills [500-5]Active Learning, [500-25]Basic Math, [500-26]Visual | Z121: 232.6153846 | AA121: 232.6153846 | AB121: 138.25 | AC121: 158 | AD121: 177.75
A122: 98 | B122: 51-9023 | C122: DIR | D122: HOU | E122: Manufacturing | F122: Production | G122: Operator Aerospace - Machining Trainee | H122: * Responsible to the Production Supervisor or Group Leader for following all instructions required by each client, in compliance with production objectives. | I122: 100-6,400-94,500-5,500-25,500-26 | T122: OP03 | U122: 1 | W122: 100 - Education [100-6]Junior High School 400 - Experience [400-94]Recruitment to 30 days 500 - Skills [500-5]Active Learning, [500-25]Basic Math, [500-26]Visual | Z122: 208 | AA122: 208 | AB122: 175 | AC122: 208 | AD122: 225
A123: 99 | B123: 51-9023 | C123: DIR | D123: HOU | E123: Manufacturing | F123: Production | G123: Operator Aerospace - Machining A | H123: * Responsible to the Production Supervisor or Group Leader for following all instructions required by each client, in compliance with production objectives. | I123: 100-6,300-54,300-55,400-95,500-5,500-25,500-16,500-26 | T123: OP03 | U123: 2 | W123: 100 - Education [100-6]Junior High School 300 - Knowledge [300-54]Basic Training Course, [300-55]Performance Assessment 400 - Experience [400-95]31 to 90 days 500 - Skills [500-5]Active Learning, [500-25]Basic Math, [500-16]Team Work, [500-26]Visual | Z123: 244.4 | AA123: 244.4 | AB123: 205.625 | AC123: 244.4 | AD123: 264.375
A124: 100 | B124: 51-9023 | C124: DIR | D124: HOU | E124: Manufacturing | F124: Production | G124: Operator Aerospace - Machining B | H124: * Responsible to the Production Supervisor or Group Leader for following all instructions required by each client, in compliance with production objectives. | I124: 100-6,300-54,300-55,400-96,500-5,500-25,500-16,500-26 | T124: OP03 | U124: 4 | W124: 100 - Education [100-6]Junior High School 300 - Knowledge [300-54]Basic Training Course, [300-55]Performance Assessment 400 - Experience [400-96]91 to 180 days 500 - Skills [500-5]Active Learning, [500-25]Basic Math, [500-16]Team Work, [500-26]Visual | Z124: 253.76 | AA124: 253.76 | AB124: 213.5 | AC124: 253.76 | AD124: 274.5
A125: 101 | B125: 51-9023 | C125: DIR | D125: HOU | E125: Manufacturing | F125: Production | G125: Operator Aerospace - Machining C | H125: * Responsible to the Production Supervisor or Group Leader for following all instructions required by each client, in compliance with production objectives. | I125: 100-6,300-54,300-55,400-97,500-5,500-25,500-16,500-26 | T125: OP03 | U125: 7 | W125: 100 - Education [100-6]Junior High School 300 - Knowledge [300-54]Basic Training Course, [300-55]Performance Assessment 400 - Experience [400-97]181 to 270 days 500 - Skills [500-5]Active Learning, [500-25]Basic Math, [500-16]Team Work, [500-26]Visual | Z125: 270.4 | AA125: 270.4 | AB125: 227.5 | AC125: 270.4 | AD125: 292.5
A126: 102 | B126: 51-9023 | C126: DIR | D126: HOU | E126: Manufacturing | F126: Production | G126: Operator Aerospace - Machining D | H126: * Responsible to the Production Supervisor or Group Leader for following all instructions required by each client, in compliance with production objectives. | I126: 100-6,300-54,300-55,400-98,500-5,500-25,500-16,500-26 | T126: OP03 | U126: 10 | W126: 100 - Education [100-6]Junior High School 300 - Knowledge [300-54]Basic Training Course, [300-55]Performance Assessment 400 - Experience [400-98]271 to 365 days 500 - Skills [500-5]Active Learning, [500-25]Basic Math, [500-16]Team Work, [500-26]Visual | Z126: 317.2 | AA126: 317.2 | AB126: 266.875 | AC126: 317.2 | AD126: 343.125
A127: 103 | B127: 51-9023 | C127: DIR | D127: HOU | E127: Manufacturing | F127: Production | G127: Operator Aerospace - Machining E | H127: * Responsible to the Production Supervisor or Group Leader for following all instructions required by each client, in compliance with production objectives. | I127: 100-6,300-54,300-55,400-99,500-5,500-25,500-16,500-26 | T127: OP03 | U127: 13 | W127: 100 - Education [100-6]Junior High School 300 - Knowledge [300-54]Basic Training Course, [300-55]Performance Assessment 400 - Experience [400-99]366 and up 500 - Skills [500-5]Active Learning, [500-25]Basic Math, [500-16]Team Work, [500-26]Visual | Z127: 348.4 | AA127: 348.4 | AB127: 293.125 | AC127: 348.4 | AD127: 376.875
A128: 104 | B128: 51-9023 | C128: DIR | D128: HOU | E128: Manufacturing | F128: Production | G128: Operator Automotive - Metal Mechanic Trainee | H128: * Responsible to the Production Supervisor or Group Leader for following all instructions required by each client, in compliance with production objectives. | I128: 100-6,400-94,500-5,500-25,500-26 | T128: OP04 | U128: 1 | W128: 100 - Education [100-6]Junior High School 400 - Experience [400-94]Recruitment to 30 days 500 - Skills [500-5]Active Learning, [500-25]Basic Math, [500-26]Visual | Z128: 95 | AA128: 95 | AB128: 71.91 | AC128: 80.82 | AD128: 90.9225
A129: 105 | B129: 51-9023 | C129: DIR | D129: HOU | E129: Manufacturing | F129: Production | G129: Operator Automotive - Metal Mechanic A | H129: * Responsible to the Production Supervisor or Group Leader for following all instructions required by each client, in compliance with production objectives. | I129: 100-6,300-54,300-55,400-95,500-33,500-25,500-23 | T129: OP04 | U129: 2 | W129: 100 - Education [100-6]Junior High School 300 - Knowledge [300-54]Basic Training Course, [300-55]Performance Assessment 400 - Experience [400-95]31 to 90 days 500 - Skills [500-33], [500-25]Basic Math, [500-23]Organization | Z129: 109 | AA129: 109 | AB129: 82.3375 | AC129: 94.1 | AD129: 105.8625
A130: 106 | B130: 51-9023 | C130: DIR | D130: HOU | E130: Manufacturing | F130: Production | G130: Operator Automotive - Metal Mechanic B | H130: * Responsible to the Production Supervisor or Group Leader for following all instructions required by each client, in compliance with production objectives. | I130: 100-6,300-54,300-55,400-96,500-33,500-25,500-23 | T130: OP04 | U130: 4 | W130: 100 - Education [100-6]Junior High School 300 - Knowledge [300-54]Basic Training Course, [300-55]Performance Assessment 400 - Experience [400-96]91 to 180 days 500 - Skills [500-33], [500-25]Basic Math, [500-23]Organization | Z130: 114 | AA130: 114 | AB130: 100.625 | AC130: 115 | AD130: 129.375
A131: 107 | B131: 51-9023 | C131: DIR | D131: HOU | E131: Manufacturing | F131: Production | G131: Operator Automotive - Metal Mechanic C | H131: * Responsible to the Production Supervisor or Group Leader for following all instructions required by each client, in compliance with production objectives. | I131: 100-6,300-54,300-55,400-97,500-33,500-25,500-23 | T131: OP04 | U131: 7 | W131: 100 - Education [100-6]Junior High School 300 - Knowledge [300-54]Basic Training Course, [300-55]Performance Assessment 400 - Experience [400-97]181 to 270 days 500 - Skills [500-33], [500-25]Basic Math, [500-23]Organization | Z131: 120 | AA131: 120 | AB131: 103.25 | AC131: 118 | AD131: 132.75
A132: 108 | B132: 51-9023 | C132: DIR | D132: HOU | E132: Manufacturing | F132: Production | G132: Operator Automotive - Metal Mechanic D | H132: * Responsible to the Production Supervisor or Group Leader for following all instructions required by each client, in compliance with production objectives. | I132: 100-6,300-54,300-55,400-98,500-33,500-25,500-23 | T132: OP04 | U132: 10 | W132: 100 - Education [100-6]Junior High School 300 - Knowledge [300-54]Basic Training Course, [300-55]Performance Assessment 400 - Experience [400-98]271 to 365 days 500 - Skills [500-33], [500-25]Basic Math, [500-23]Organization | Z132: 134 | AA132: 134 | AB132: 114.625 | AC132: 131 | AD132: 147.375
A133: 109 | B133: 51-9023 | C133: DIR | D133: HOU | E133: Manufacturing | F133: Production | G133: Operator Automotive - Metal Mechanic E | H133: * Responsible to the Production Supervisor or Group Leader for following all instructions required by each client, in compliance with production objectives. | I133: 100-6,300-54,300-55,400-99,500-33,500-25,500-23 | T133: OP04 | U133: 13 | W133: 100 - Education [100-6]Junior High School 300 - Knowledge [300-54]Basic Training Course, [300-55]Performance Assessment 400 - Experience [400-99]366 and up 500 - Skills [500-33], [500-25]Basic Math, [500-23]Organization | Z133: 147 | AA133: 147 | AB133: 116.375 | AC133: 133 | AD133: 149.625
A134: 110 | B134: 51-9023 | C134: DIR | D134: HOU | E134: Manufacturing | F134: Production | G134: Operator (Automotive - Plastic Injection Molding) Entry level | H134: * Responsible to the Production Supervisor or Group Leader for following all instructions required by each client, in compliance with production objectives. | I134: 100-6,400-94,500-5,500-25,500-26 | T134: OP05 | U134: 1 | W134: 100 - Education [100-6]Junior High School 400 - Experience [400-94]Recruitment to 30 days 500 - Skills [500-5]Active Learning, [500-25]Basic Math, [500-26]Visual | Z134: 112.7 | AA134: 112.7 | AB134: 77 | AC134: 95 | AD134: 99
A135: 111 | B135: 51-9023 | C135: DIR | D135: HOU | E135: Manufacturing | F135: Production | G135: Operator (Automotive - Plastic Injection Molding) A | H135: * Responsible to the Production Supervisor or Group Leader for following all instructions required by each client, in compliance with production objectives. | I135: 100-6,300-54,300-55,400-95,500-5,500-25,500-26 | T135: OP05 | U135: 2 | W135: 100 - Education [100-6]Junior High School 300 - Knowledge [300-54]Basic Training Course, [300-55]Performance Assessment 400 - Experience [400-95]31 to 90 days 500 - Skills [500-5]Active Learning, [500-25]Basic Math, [500-26]Visual | Z135: 118.65 | AA135: 118.65 | AB135: 91 | AC135: 104 | AD135: 117
A136: 112 | B136: 51-9023 | C136: DIR | D136: HOU | E136: Manufacturing | F136: Production | G136: Operator (Automotive - Plastic Injection Molding) B | H136: * Responsible to the Production Supervisor or Group Leader for following all instructions required by each client, in compliance with production objectives. | I136: 100-6,300-54,300-55,400-96,500-5,500-25,500-26 | T136: OP05 | U136: 4 | W136: 100 - Education [100-6]Junior High School 300 - Knowledge [300-54]Basic Training Course, [300-55]Performance Assessment 400 - Experience [400-96]91 to 180 days 500 - Skills [500-5]Active Learning, [500-25]Basic Math, [500-26]Visual | Z136: 145.52 | AA136: 145.52 | AB136: 113.75 | AC136: 130 | AD136: 146.25
A137: 113 | B137: 51-9023 | C137: DIR | D137: HOU | E137: Manufacturing | F137: Production | G137: Operator (Automotive - Plastic Injection Molding) C | H137: * Responsible to the Production Supervisor or Group Leader for following all instructions required by each client, in compliance with production objectives. | I137: 100-6,300-54,300-55,400-97,500-5,500-25,500-26 | T137: OP05 | U137: 7 | W137: 100 - Education [100-6]Junior High School 300 - Knowledge [300-54]Basic Training Course, [300-55]Performance Assessment 400 - Experience [400-97]181 to 270 days 500 - Skills [500-5]Active Learning, [500-25]Basic Math, [500-26]Visual | Z137: 150.99 | AA137: 150.99 | AB137: 118.125 | AC137: 135 | AD137: 151.875
A138: 114 | B138: 51-9023 | C138: DIR | D138: HOU | E138: Manufacturing | F138: Production | G138: Operator (Automotive - Plastic Injection Molding) D | H138: * Responsible to the Production Supervisor or Group Leader for following all instructions required by each client, in compliance with production objectives. | I138: 100-6,300-54,300-55,400-98,500-5,500-25,500-26 | T138: OP05 | U138: 10 | W138: 100 - Education [100-6]Junior High School 300 - Knowledge [300-54]Basic Training Course, [300-55]Performance Assessment 400 - Experience [400-98]271 to 365 days 500 - Skills [500-5]Active Learning, [500-25]Basic Math, [500-26]Visual | Z138: 176.09 | AA138: 176.09 | AB138: 128.625 | AC138: 147 | AD138: 165.375
A139: 115 | B139: 51-9023 | C139: DIR | D139: HOU | E139: Manufacturing | F139: Production | G139: Operator Automotive Wire Harnesses Trainee | H139: * Responsible to the Production Supervisor or Group Leader for following all instructions required by each client, in compliance with production objectives. | I139: 100-6,400-94,500-5,500-25,500-26 | T139: OP06 | U139: 1 | W139: 100 - Education [100-6]Junior High School 400 - Experience [400-94]Recruitment to 30 days 500 - Skills [500-5]Active Learning, [500-25]Basic Math, [500-26]Visual | Z139: 80 | AA139: 80 | AB139: 100.625 | AC139: 115 | AD139: 129.375
A140: 116 | B140: 51-9023 | C140: DIR | D140: HOU | E140: Manufacturing | F140: Production | G140: Operator Automotive Wire Harnesses A | H140: * Responsible to the Production Supervisor or Group Leader for following all instructions required by each client, in compliance with production objectives. | I140: 100-6,300-54,300-55,400-95,500-3,500-5,500-25,500-26,600-4 | T140: OP06 | U140: 2 | W140: 100 - Education [100-6]Junior High School 300 - Knowledge [300-54]Basic Training Course, [300-55]Performance Assessment 400 - Experience [400-95]31 to 90 days 500 - Skills [500-3]Monitoring, [500-5]Active Learning, [500-25]Basic Math, [500-26]Visual 600 - Work Values [600-4]Honesty and Integrity | Z140: 85 | AA140: 85 | AB140: 113.75 | AC140: 130 | AD140: 146.25
A141: 117 | B141: 51-9023 | C141: DIR | D141: HOU | E141: Manufacturing | F141: Production | G141: Operator Automotive Wire Harnesses B | H141: * Responsible to the Production Supervisor or Group Leader for following all instructions required by each client, in compliance with production objectives. | I141: 100-6,300-54,300-55,400-96,500-3,500-5,500-25,500-26,600-4 | T141: OP06 | U141: 4 | W141: 100 - Education [100-6]Junior High School 300 - Knowledge [300-54]Basic Training Course, [300-55]Performance Assessment 400 - Experience [400-96]91 to 180 days 500 - Skills [500-3]Monitoring, [500-5]Active Learning, [500-25]Basic Math, [500-26]Visual 600 - Work Values [600-4]Honesty and Integrity | Z141: 93.26 | AA141: 93.26 | AB141: 121.625 | AC141: 139 | AD141: 156.375
A142: 118 | B142: 51-9023 | C142: DIR | D142: HOU | E142: Manufacturing | F142: Production | G142: Operator Automotive Wire Harnesses C | H142: * Responsible to the Production Supervisor or Group Leader for following all instructions required by each client, in compliance with production objectives. | I142: 100-6,300-54,300-55,400-97,500-3,500-5,500-25,500-26,600-4 | T142: OP06 | U142: 7 | W142: 100 - Education [100-6]Junior High School 300 - Knowledge [300-54]Basic Training Course, [300-55]Performance Assessment 400 - Experience [400-97]181 to 270 days 500 - Skills [500-3]Monitoring, [500-5]Active Learning, [500-25]Basic Math, [500-26]Visual 600 - Work Values [600-4]Honesty and Integrity | Z142: 102.14 | AA142: 102.14 | AB142: 126.875 | AC142: 145 | AD142: 163.125
A143: 119 | B143: 51-9023 | C143: DIR | D143: HOU | E143: Manufacturing | F143: Production | G143: Operator Automotive Wire Harnesses D | H143: * Responsible to the Production Supervisor or Group Leader for following all instructions required by each client, in compliance with production objectives. | I143: 100-6,300-54,300-55,400-98,500-3,500-5,500-25,500-26,600-4 | T143: OP06 | U143: 10 | W143: 100 - Education [100-6]Junior High School 300 - Knowledge [300-54]Basic Training Course, [300-55]Performance Assessment 400 - Experience [400-98]271 to 365 days 500 - Skills [500-3]Monitoring, [500-5]Active Learning, [500-25]Basic Math, [500-26]Visual 600 - Work Values [600-4]Honesty and Integrity | Z143: 113.48 | AA143: 113.48 | AB143: 133 | AC143: 152 | AD143: 171
A144: 120 | B144: 47-2141 | C144: DIR | D144: HOU | E144: Manufacturing | F144: Production | G144: Operator Automotive Wire Harnesses E | H144: * Responsible to the Production Supervisor or Group Leader for following all instructions required by each client, in compliance with production objectives. | I144: 100-6,300-54,300-55,400-99,500-3,500-5,500-25,500-26,600-4 | T144: OP06 | U144: 13 | W144: 100 - Education [100-6]Junior High School 300 - Knowledge [300-54]Basic Training Course, [300-55]Performance Assessment 400 - Experience [400-99]366 and up 500 - Skills [500-3]Monitoring, [500-5]Active Learning, [500-25]Basic Math, [500-26]Visual 600 - Work Values [600-4]Honesty and Integrity | Z144: 118 | AA144: 118 | AB144: 138.25 | AC144: 158 | AD144: 177.75
A145: 121 | B145: 47-2141 | C145: DIR | D145: HOU | E145: Manufacturing | F145: Production | G145: Painting Operator Automotive - Machining 1 | H145: * Cover surfaces with dropcloths or masking tape and paper to protect surfaces during painting. * Fill cracks, holes, or joints with caulk, putty, plaster, or other fillers, using caulking guns or putty knives. * Apply primers or sealers to prepare new surfaces, such as bare wood or metal, for finish coats. * Apply paint, stain, varnish, enamel, or other finishes to equipment, buildings, bridges, or other structures, using brushes, spray guns, or rollers. * Calculate amounts of required materials and estimate costs, based on surface measurements or work orders. * Read work orders or receive instructions from supervisors or homeowners to determine work requirements. | I145: 100-6,300-54,300-55,300-56,300-57,400-94,500-5,500-25,500-14,500-26 | T145: PNT01 | U145: 1 | W145: 100 - Education [100-6]Junior High School 300 - Knowledge [300-54]Basic Training Course, [300-55]Performance Assessment, [300-56]Paint Handling, [300-57]Solvent Handling 400 - Experience [400-94]Recruitment to 30 days 500 - Skills [500-5]Active Learning, [500-25]Basic Math, [500-14]Proactive, [500-26]Visual | Z145: 294 | AA145: 294 | AB145: 103.8411458 | AC145: 123.422619 | AD145: 133.5100446
A146: 122 | B146: 47-2141 | C146: DIR | D146: HOU | E146: Manufacturing | F146: Production | G146: Painting Operator Automotive - Machining 2 | H146: * Cover surfaces with dropcloths or masking tape and paper to protect surfaces during painting. * Fill cracks, holes, or joints with caulk, putty, plaster, or other fillers, using caulking guns or putty knives. * Apply primers or sealers to prepare new surfaces, such as bare wood or metal, for finish coats. * Apply paint, stain, varnish, enamel, or other finishes to equipment, buildings, bridges, or other structures, using brushes, spray guns, or rollers. * Calculate amounts of required materials and estimate costs, based on surface measurements or work orders. * Read work orders or receive instructions from supervisors or homeowners to determine work requirements. | I146: 100-6,300-54,300-55,300-56,300-57,400-95,500-5,500-25,500-14,500-26 | T146: PNT01 | U146: 2 | W146: 100 - Education [100-6]Junior High School 300 - Knowledge [300-54]Basic Training Course, [300-55]Performance Assessment, [300-56]Paint Handling, [300-57]Solvent Handling 400 - Experience [400-95]31 to 90 days 500 - Skills [500-5]Active Learning, [500-25]Basic Math, [500-14]Proactive, [500-26]Visual | Z146: 294 | AA146: 294 | AB146: 115.546875 | AC146: 137.3357143 | AD146: 148.5602679
A147: 123 | B147: 47-2141 | C147: DIR | D147: HOU | E147: Manufacturing | F147: Production | G147: Painting Operator Automotive - Machining 3 | H147: * Cover surfaces with dropcloths or masking tape and paper to protect surfaces during painting. * Fill cracks, holes, or joints with caulk, putty, plaster, or other fillers, using caulking guns or putty knives. * Apply primers or sealers to prepare new surfaces, such as bare wood or metal, for finish coats. * Apply paint, stain, varnish, enamel, or other finishes to equipment, buildings, bridges, or other structures, using brushes, spray guns, or rollers. * Calculate amounts of required materials and estimate costs, based on surface measurements or work orders. * Read work orders or receive instructions from supervisors or homeowners to determine work requirements. | I147: 100-6,300-54,300-55,300-56,300-57,400-96,500-5,500-25,500-14,500-26 | T147: PNT01 | U147: 4 | W147: 100 - Education [100-6]Junior High School 300 - Knowledge [300-54]Basic Training Course, [300-55]Performance Assessment, [300-56]Paint Handling, [300-57]Solvent Handling 400 - Experience [400-96]91 to 180 days 500 - Skills [500-5]Active Learning, [500-25]Basic Math, [500-14]Proactive, [500-26]Visual | Z147: 150.8 | AA147: 150.8 | AB147: 126.875 | AC147: 150.8 | AD147: 163.125
A148: 124 | B148: 47-2141 | C148: DIR | D148: HOU | E148: Manufacturing | F148: Production | G148: Painting Operator Automotive - Machining 4 | H148: * Cover surfaces with dropcloths or masking tape and paper to protect surfaces during painting. * Fill cracks, holes, or joints with caulk, putty, plaster, or other fillers, using caulking guns or putty knives. * Apply primers or sealers to prepare new surfaces, such as bare wood or metal, for finish coats. * Apply paint, stain, varnish, enamel, or other finishes to equipment, buildings, bridges, or other structures, using brushes, spray guns, or rollers. * Calculate amounts of required materials and estimate costs, based on surface measurements or work orders. * Read work orders or receive instructions from supervisors or homeowners to determine work requirements. | I148: 100-6,300-54,300-55,300-56,300-57,400-97,500-5,500-25,500-14,500-26 | T148: PNT01 | U148: 7 | W148: 100 - Education [100-6]Junior High School 300 - Knowledge [300-54]Basic Training Course, [300-55]Performance Assessment, [300-56]Paint Handling, [300-57]Solvent Handling 400 - Experience [400-97]181 to 270 days 500 - Skills [500-5]Active Learning, [500-25]Basic Math, [500-14]Proactive, [500-26]Visual | Z148: 187.5328 | AA148: 187.5328 | AB148: 157.78 | AC148: 187.5328 | AD148: 202.86
A149: 125 | B149: 51-9023 | C149: DIR | D149: HOU | E149: Manufacturing | F149: Production | G149: Painting Operator Automotive - Machining 5 | H149: * Cover surfaces with dropcloths or masking tape and paper to protect surfaces during painting. * Fill cracks, holes, or joints with caulk, putty, plaster, or other fillers, using caulking guns or putty knives. * Apply primers or sealers to prepare new surfaces, such as bare wood or metal, for finish coats. * Apply paint, stain, varnish, enamel, or other finishes to equipment, buildings, bridges, or other structures, using brushes, spray guns, or rollers. * Calculate amounts of required materials and estimate costs, based on surface measurements or work orders. * Read work orders or receive instructions from supervisors or homeowners to determine work requirements. | I149: 100-6,300-54,300-55,300-56,300-57,400-98,500-5,500-25,500-14,500-26 | T149: PNT01 | U149: 10 | W149: 100 - Education [100-6]Junior High School 300 - Knowledge [300-54]Basic Training Course, [300-55]Performance Assessment, [300-56]Paint Handling, [300-57]Solvent Handling 400 - Experience [400-98]271 to 365 days 500 - Skills [500-5]Active Learning, [500-25]Basic Math, [500-14]Proactive, [500-26]Visual | Z149: 203.84 | AA149: 203.84 | AB149: 171.5 | AC149: 203.84 | AD149: 220.5
A150: 126 | B150: 51-9023 | C150: DIR | D150: HOU | E150: Manufacturing | F150: Production | G150: Operator Electronic - Assembly Trainee | H150: * Responsible to the Production Supervisor or Group Leader for executing specialized functions in the process; he/she must be multifunctional; requieres training or certification to carry out his/her activities. | I150: 100-6,400-94,500-5,500-25,500-26 | T150: OP07 | U150: 1 | W150: 100 - Education [100-6]Junior High School 400 - Experience [400-94]Recruitment to 30 days 500 - Skills [500-5]Active Learning, [500-25]Basic Math, [500-26]Visual | Z150: 88.92 | AA150: 88.92 | AB150: 74.8125 | AC150: 88.92 | AD150: 96.1875
A151: 127 | B151: 51-9023 | C151: DIR | D151: HOU | E151: Manufacturing | F151: Production | G151: Operator Electronic - Assembly A | H151: * Responsible to the Production Supervisor or Group Leader for executing specialized functions in the process; he/she must be multifunctional; requieres training or certification to carry out his/her activities. | I151: 100-6,300-54,300-55,400-95,500-5,500-25,500-26 | T151: OP07 | U151: 2 | W151: 100 - Education [100-6]Junior High School 300 - Knowledge [300-54]Basic Training Course, [300-55]Performance Assessment 400 - Experience [400-95]31 to 90 days 500 - Skills [500-5]Active Learning, [500-25]Basic Math, [500-26]Visual | Z151: 90.48 | AA151: 90.48 | AB151: 76.125 | AC151: 90.48 | AD151: 97.875
A152: 128 | B152: 51-9023 | C152: DIR | D152: HOU | E152: Manufacturing | F152: Production | G152: Operator Electronic - Assembly B | H152: * Responsible to the Production Supervisor or Group Leader for executing specialized functions in the process; he/she must be multifunctional; requieres training or certification to carry out his/her activities. | I152: 100-6,300-54,300-55,400-96,500-5,500-25,500-26 | T152: OP07 | U152: 4 | W152: 100 - Education [100-6]Junior High School 300 - Knowledge [300-54]Basic Training Course, [300-55]Performance Assessment 400 - Experience [400-96]91 to 180 days 500 - Skills [500-5]Active Learning, [500-25]Basic Math, [500-26]Visual | Z152: 92.56 | AA152: 92.56 | AB152: 77.875 | AC152: 92.56 | AD152: 100.125
A153: 129 | B153: 51-9023 | C153: DIR | D153: HOU | E153: Manufacturing | F153: Production | G153: Operator Electronic - Assembly C | H153: * Responsible to the Production Supervisor or Group Leader for executing specialized functions in the process; he/she must be multifunctional; requieres training or certification to carry out his/her activities. | I153: 100-6,300-54,300-55,400-97,500-5,500-25,500-26 | T153: OP07 | U153: 7 | W153: 100 - Education [100-6]Junior High School 300 - Knowledge [300-54]Basic Training Course, [300-55]Performance Assessment 400 - Experience [400-97]181 to 270 days 500 - Skills [500-5]Active Learning, [500-25]Basic Math, [500-26]Visual | Z153: 112.32 | AA153: 112.32 | AB153: 94.5 | AC153: 112.32 | AD153: 121.5
A154: 130 | B154: 51-9023 | C154: DIR | D154: HOU | E154: Manufacturing | F154: Production | G154: Operator Electronic - Assembly D | H154: * Responsible to the Production Supervisor or Group Leader for executing specialized functions in the process; he/she must be multifunctional; requieres training or certification to carry out his/her activities. | I154: 100-6,300-54,300-55,400-98,500-5,500-25,500-26 | T154: OP07 | U154: 10 | W154: 100 - Education [100-6]Junior High School 300 - Knowledge [300-54]Basic Training Course, [300-55]Performance Assessment 400 - Experience [400-98]271 to 365 days 500 - Skills [500-5]Active Learning, [500-25]Basic Math, [500-26]Visual | Z154: 127.92 | AA154: 127.92 | AB154: 107.625 | AC154: 127.92 | AD154: 138.375
A155: 131 | B155: 51-9023 | C155: DIR | D155: HOU | E155: Manufacturing | F155: Production | G155: Operator Electronic - Assembly E | H155: * Responsible to the Production Supervisor or Group Leader for executing specialized functions in the process; he/she must be multifunctional; requieres training or certification to carry out his/her activities. | I155: 100-6,300-54,300-55,400-99,500-5,500-25,500-26 | T155: OP07 | U155: 13 | W155: 100 - Education [100-6]Junior High School 300 - Knowledge [300-54]Basic Training Course, [300-55]Performance Assessment 400 - Experience [400-99]366 and up 500 - Skills [500-5]Active Learning, [500-25]Basic Math, [500-26]Visual | Z155: 154.96 | AA155: 154.96 | AB155: 130.375 | AC155: 154.96 | AD155: 167.625
A156: 132 | B156: 51-9023 | C156: DIR | D156: HOU | E156: Manufacturing | F156: Production | G156: Operator Electronic - Repair Trainee | H156: * Responsible to the Production Supervisor or Group Leader for executing specialized functions in the process; he/she must be multifunctional; requieres training or certification to carry out his/her activities. | I156: 100-6,400-94,500-5,500-25,500-26 | T156: OP08 | U156: 1 | W156: 100 - Education [100-6]Junior High School 400 - Experience [400-94]Recruitment to 30 days 500 - Skills [500-5]Active Learning, [500-25]Basic Math, [500-26]Visual | Z156: 86.85 | AA156: 86.85 | AB156: 77 | AC156: 91.52 | AD156: 99
A157: 133 | B157: 51-9023 | C157: DIR | D157: HOU | E157: Manufacturing | F157: Production | G157: Operator Electronic - Repair A | H157: * Responsible to the Production Supervisor or Group Leader for executing specialized functions in the process; he/she must be multifunctional; requieres training or certification to carry out his/her activities. | I157: 100-6,300-54,300-55,400-95,500-5,500-25,500-26 | T157: OP08 | U157: 2 | W157: 100 - Education [100-6]Junior High School 300 - Knowledge [300-54]Basic Training Course, [300-55]Performance Assessment 400 - Experience [400-95]31 to 90 days 500 - Skills [500-5]Active Learning, [500-25]Basic Math, [500-26]Visual | Z157: 102.21 | AA157: 102.21 | AB157: 79.625 | AC157: 94.64 | AD157: 102.375
A158: 134 | B158: 51-9023 | C158: DIR | D158: HOU | E158: Manufacturing | F158: Production | G158: Operator Electronic - Repair B | H158: * Responsible to the Production Supervisor or Group Leader for executing specialized functions in the process; he/she must be multifunctional; requieres training or certification to carry out his/her activities. | I158: 100-6,300-54,300-55,400-96,500-5,500-25,500-26 | T158: OP08 | U158: 4 | W158: 100 - Education [100-6]Junior High School 300 - Knowledge [300-54]Basic Training Course, [300-55]Performance Assessment 400 - Experience [400-96]91 to 180 days 500 - Skills [500-5]Active Learning, [500-25]Basic Math, [500-26]Visual | Z158: 144.09 | AA158: 144.09 | AB158: 83.125 | AC158: 98.8 | AD158: 106.875
A159: 135 | B159: 51-9023 | C159: DIR | D159: HOU | E159: Manufacturing | F159: Production | G159: Operator Automotive - Assembly Entry Level | H159: * Responsible to the Production Supervisor or Group Leader for executing specialized functions in the process; he/she must be multifunctional; requieres training or certification to carry out his/her activities. | I159: 100-6,400-94,500-5,500-25,500-26 | T159: OP09 | U159: 1 | W159: 100 - Education [100-6]Junior High School 400 - Experience [400-94]Recruitment to 30 days 500 - Skills [500-5]Active Learning, [500-25]Basic Math, [500-26]Visual | Z159: 112.7 | AA159: 112.7 | AB159: 67.665 | AC159: 73 | AD159: 82.125
A160: 136 | B160: 51-9023 | C160: DIR | D160: HOU | E160: Manufacturing | F160: Production | G160: Operator Automotive - Assembly A | H160: * Responsible to the Production Supervisor or Group Leader for executing specialized functions in the process; he/she must be multifunctional; requieres training or certification to carry out his/her activities. | I160: 100-6,300-54,300-55,400-95,500-5,500-25,500-26 | T160: OP09 | U160: 2 | W160: 100 - Education [100-6]Junior High School 300 - Knowledge [300-54]Basic Training Course, [300-55]Performance Assessment 400 - Experience [400-95]31 to 90 days 500 - Skills [500-5]Active Learning, [500-25]Basic Math, [500-26]Visual | Z160: 118.65 | AA160: 118.65 | AB160: 74.375 | AC160: 85 | AD160: 103.375
A161: 137 | B161: 51-9023 | C161: DIR | D161: HOU | E161: Manufacturing | F161: Production | G161: Operator Automotive - Assembly B | H161: * Responsible to the Production Supervisor or Group Leader for executing specialized functions in the process; he/she must be multifunctional; requieres training or certification to carry out his/her activities. | I161: 100-6,300-54,300-55,400-96,500-5,500-25,500-26 | T161: OP09 | U161: 4 | W161: 100 - Education [100-6]Junior High School 300 - Knowledge [300-54]Basic Training Course, [300-55]Performance Assessment 400 - Experience [400-96]91 to 180 days 500 - Skills [500-5]Active Learning, [500-25]Basic Math, [500-26]Visual | Z161: 139.65 | AA161: 139.65 | AB161: 87.5 | AC161: 100 | AD161: 104.375
A162: 138 | B162: 51-9023 | C162: DIR | D162: HOU | E162: Manufacturing | F162: Production | G162: Operator Automotive - Assembly C | H162: * Responsible to the Production Supervisor or Group Leader for executing specialized functions in the process; he/she must be multifunctional; requieres training or certification to carry out his/her activities. | I162: 100-6,300-54,300-55,400-97,500-5,500-25,500-26 | T162: OP09 | U162: 7 | W162: 100 - Education [100-6]Junior High School 300 - Knowledge [300-54]Basic Training Course, [300-55]Performance Assessment 400 - Experience [400-97]181 to 270 days 500 - Skills [500-5]Active Learning, [500-25]Basic Math, [500-26]Visual | Z162: 145.52 | AA162: 145.52 | AB162: 89.25 | AC162: 102 | AD162: 105.375
A163: 139 | B163: 51-9023 | C163: DIR | D163: HOU | E163: Manufacturing | F163: Production | G163: Operator Automotive - Assembly D | H163: * Responsible to the Production Supervisor or Group Leader for executing specialized functions in the process; he/she must be multifunctional; requieres training or certification to carry out his/her activities. | I163: 100-6,300-54,300-55,400-98,500-5,500-25,500-26 | T163: OP09 | U163: 10 | W163: 100 - Education [100-6]Junior High School 300 - Knowledge [300-54]Basic Training Course, [300-55]Performance Assessment 400 - Experience [400-98]271 to 365 days 500 - Skills [500-5]Active Learning, [500-25]Basic Math, [500-26]Visual | Z163: 150.99 | AA163: 150.99 | AB163: 95.375 | AC163: 109 | AD163: 106.375
A164: 140 | B164: 51-1011 | C164: IND | D164: SAL | E164: Maintenance | F164: Equipment Maintenance | G164: Maintenance | H164: * Enforce safety and sanitation regulations. * Direct and coordinate the activities of employees engaged in the production or processing of goods, such as inspectors, machine setters, and fabricators. * Confer with other supervisors to coordinate operations and activities within or between departments. * Plan and establish work schedules, assignments, and production sequences to meet production goals. * Inspect materials, products, or equipment to detect defects or malfunctions. * Observe work and monitor gauges, dials, and other indicators to ensure that operators conform to production or processing standards. * Conduct employee training in equipment operations or work and safety procedures, or assign employee training to experienced workers. | I164: 100-2-008/100-2-007,200-1-002,300-40,300-28,400-1,400-34,400-35,400-26,400-38,600-5,600-1,600-7,600-2 | J164: 550.684.241 | K164: II.13 | L164: 550.684.241 | M164: 550.684.241 | N164: 550.684.241 | O164: 550.684.241 | P164: 550.684.241 | Q164: 550.684.241 | R164: 550.684.241 | W164: 100 - Education [100-2-008]Mechanical Engineer or [100-2-007]Industrial Engineer 200 - Language [200-1-002]Intermediate English 300 - Knowledge [300-40]Preventive and Corrective Maintenance, [300-28]Continuous Improvement 400 - Experience [400-1]Minimum 1 year experience in similar position, [400-34]Hydraulic, [400-35]Mechanics, [400-26]Production Equipment / Machinery, [400-38]Electrical Installation 600 - Work Values [600-5]Punctuality, [600-1]Strong Work Ethic, [600-7]Strong Self-Confidence, [600-2]Dependability and Responsability | Z164: 1544.3 | AA164: 1544.3 | AB164: =13317/30 -> 443.9 | AC164: =15186/30 -> 506.2 | AD164: =17502/30 -> 583.4 | AE164: II.13
A165: 140 | B165: 51-1011 | C165: IND | D165: SAL | E165: Maintenance | F165: Equipment Maintenance | G165: Production Supervisor Manufacturing | H165: * Enforce safety and sanitation regulations. * Direct and coordinate the activities of employees engaged in the production or processing of goods, such as inspectors, machine setters, and fabricators. * Confer with other supervisors to coordinate operations and activities within or between departments. * Plan and establish work schedules, assignments, and production sequences to meet production goals. * Inspect materials, products, or equipment to detect defects or malfunctions. * Observe work and monitor gauges, dials, and other indicators to ensure that operators conform to production or processing standards. * Conduct employee training in equipment operations or work and safety procedures, or assign employee training to experienced workers. | I165: 100-2-008/100-2-007,200-1-002,300-40,300-28,400-1,400-34,400-35,400-26,400-38,600-5,600-1,600-7,600-2 | J165: 550.684.241 | K165: II.13 | L165: 550.684.241 | M165: 550.684.241 | N165: 550.684.241 | O165: 550.684.241 | P165: 550.684.241 | Q165: 550.684.241 | R165: 550.684.241 | W165: 100 - Education [100-2-008]Mechanical Engineer or [100-2-007]Industrial Engineer 200 - Language [200-1-002]Intermediate English 300 - Knowledge [300-40]Preventive and Corrective Maintenance, [300-28]Continuous Improvement 400 - Experience [400-1]Minimum 1 year experience in similar position, [400-34]Hydraulic, [400-35]Mechanics, [400-26]Production Equipment / Machinery, [400-38]Electrical Installation 600 - Work Values [600-5]Punctuality, [600-1]Strong Work Ethic, [600-7]Strong Self-Confidence, [600-2]Dependability and Responsability | Z165: 1544.3 | AA165: 1544.3 | AB165: =13317/30 -> 443.9 | AC165: =15186/30 -> 506.2 | AD165: =17502/30 -> 583.4 | AE165: II.13
A166: 140 | B166: 51-1011 | C166: IND | D166: SAL | E166: Maintenance | F166: Equipment Maintenance | G166: Shift Supervisor | H166: * Enforce safety and sanitation regulations. * Direct and coordinate the activities of employees engaged in the production or processing of goods, such as inspectors, machine setters, and fabricators. * Confer with other supervisors to coordinate operations and activities within or between departments. * Plan and establish work schedules, assignments, and production sequences to meet production goals. * Inspect materials, products, or equipment to detect defects or malfunctions. * Observe work and monitor gauges, dials, and other indicators to ensure that operators conform to production or processing standards. * Conduct employee training in equipment operations or work and safety procedures, or assign employee training to experienced workers. | I166: 100-2-008/100-2-007,200-1-002,300-40,300-28,400-1,400-34,400-35,400-26,400-38,600-5,600-1,600-7,600-2 | J166: 550.684.241 | K166: II.13 | L166: 550.684.241 | M166: 550.684.241 | N166: 550.684.241 | O166: 550.684.241 | P166: 550.684.241 | Q166: 550.684.241 | R166: 550.684.241 | V166: =IF(T166<>"",VLOOKUP(T166,ProgressivePositions,6,FALSE),"") ->  | W166: 100 - Education [100-2-008]Mechanical Engineer or [100-2-007]Industrial Engineer 200 - Language [200-1-002]Intermediate English 300 - Knowledge [300-40]Preventive and Corrective Maintenance, [300-28]Continuous Improvement 400 - Experience [400-1]Minimum 1 year experience in similar position, [400-34]Hydraulic, [400-35]Mechanics, [400-26]Production Equipment / Machinery, [400-38]Electrical Installation 600 - Work Values [600-5]Punctuality, [600-1]Strong Work Ethic, [600-7]Strong Self-Confidence, [600-2]Dependability and Responsability | Z166: 1544.3 | AA166: 1544.3 | AB166: =13317/30 -> 443.9 | AC166: =15186/30 -> 506.2 | AD166: =17502/30 -> 583.4 | AE166: II.13
A167: 141 | B167: 13-2011.02 | C167: IND | D167: SAL | E167: Administrative | F167: General Accounting | G167: Molding Supervisor | H167: * Collect and analyze data to detect deficient controls, duplicated effort, extravagance, fraud, or non-compliance with laws, regulations, and management policies. * Prepare detailed reports on audit findings. * Supervise auditing of establishments, and determine scope of investigation required. * Report to management about asset utilization and audit results, and recommend changes in operations and financial activities. * Inspect account books and accounting systems for efficiency, effectiveness, and use of accepted accounting procedures to record transactions. * Examine records and interview workers to ensure recording of transactions and compliance with laws and regulations. * Examine and evaluate financial and information systems, recommending controls to ensure system reliability and data integrity. | I167: 100-3-006/100-3-002,200-1-001,300-12,300-64,300-65,300-66,300-68,300-69,300-74,400-5,400-11,400-21,500-7,500-24,600-4 | K167: II.11B | V167: =IF(T167<>"",VLOOKUP(T167,ProgressivePositions,6,FALSE),"") ->  | W167: 100 - Education [100-3-006]Public Accountant or [100-3-002]Financial Administration 200 - Language [200-1-001]Advanced English 300 - Knowledge [300-12]Law and Government, [300-64]General Accounting, [300-65]ISR, IMSS, taxes, LFT and other laws related with the function, [300-66]Assets Control, [300-68]Payroll Systems, [300-69]Accounting Systems, [300-74]Payroll Management 400 - Experience [400-5]Minimum 5 years experience in similar position, [400-11]Licensing exam , [400-21]Quality Audits 500 - Skills [500-7]Judgement and Decision Making, [500-24]Analytical 600 - Work Values [600-4]Honesty and Integrity | Z167: 885.2 | AA167: 885.2 | AB167: =17919/30 -> 597.3 | AC167: =26556/30 -> 885.2 | AD167: =28759/30 -> 958.6333333 | AE167: II.11B
A168: 142 | B168: 11-3031 | C168: ADM | D168: SAL | E168: Administrative | F168: Administrative Support | G168: Auditor | H168: * Supervise employees performing financial reporting, accounting, billing, collections, payroll, and budgeting duties. * Coordinate and direct the financial planning, budgeting, procurement, or investment activities of all or part of an organization. * Develop internal control policies, guidelines, and procedures for activities such as budget administration, cash and credit management, and accounting. * Maintain current knowledge of organizational policies and procedures, federal and state policies and directives, and current accounting standards. * Prepare or direct preparation of financial statements, business activity reports, financial position forecasts, annual budgets, or reports required by regulatory agencies. | I168: 100-3-002,200-1-001,300-9,300-68,300-66,300-69,400-9,400-63,400-66,400-67,400-68,500-6,500-7,500-18,600-1 | J168: 10.20.13 | K168: CHI | M168: 550.684.241 | P168: 550.684.241 | Q168: 550.684.241 | R168: 550.684.241 | V168: =IF(T168<>"",VLOOKUP(T168,ProgressivePositions,6,FALSE),"") ->  | W168: 100 - Education [100-3-002]Financial Administration 200 - Language [200-1-001]Advanced English 300 - Knowledge [300-9]Economics and Accounting , [300-68]Payroll Systems, [300-66]Assets Control, [300-69]Accounting Systems 400 - Experience [400-9]Minimum 9 years experience in similar position, [400-63]Financial statements development, [400-66]Reconciliations, [400-67]Accounting records, [400-68]Elaboration of Reports 500 - Skills [500-6]Complex Problem Solving, [500-7]Judgement and Decision Making, [500-18]Stress management 600 - Work Values [600-1]Strong Work Ethic | Z168: 379.6333333 | AA168: 379.6333333 | AB168: =10699/30 -> 356.6333333 | AC168: =11389/30 -> 379.6333333 | AD168: =12813/30 -> 427.1 | AE168: CHI
A169: 143 | B169: 11-3031.01 | C169: ADM | D169: SAL | E169: Administrative | F169: Administrative Support | G169: Finance Manager | H169: * Responsible before the Plant Manager; implementing specific control programs and best management of Financial Resources and Investments. * Keeps inventory control, audits, fixed assets and costs. * Makes analysis presenting financial statements of each internal project under accounting outlines. | I169: 100-3-002/100-3-006,200-1-001,300-65,300-69,400-8,400-66,400-67,400-73,500-7,500-8,500-24,600-1 | J169: 40.10.02 | K169: VI.2 | L169: 210.100.220 | M169: 210.100.220 | O169: 210.100.220 | P169: 210.100.220 | Q169: 210.100.220 | R169: 210.100.220 | W169: 100 - Education [100-3-002]Financial Administration or [100-3-006]Public Accountant 200 - Language [200-1-001]Advanced English 300 - Knowledge [300-65]ISR, IMSS, taxes, LFT and other laws related with the function, [300-69]Accounting Systems 400 - Experience [400-8]Minimum 8 years experience in similar position, [400-66]Reconciliations, [400-67]Accounting records, [400-73]Elaboration and implementation of policies 500 - Skills [500-7]Judgement and Decision Making, [500-8]Communication and Oral Expression , [500-24]Analytical 600 - Work Values [600-1]Strong Work Ethic | Z169: 3133.333333 | AA169: 3133.333333 | AB169: =88020/30 -> 2934 | AC169: =94000/30 -> 3133.333333 | AD169: =99927/30 -> 3330.9 | AE169: VI.2
A170: 144 | B170: 11 3061 | C170: ADM | D170: SAL | E170: Administrative | F170: Administrative Support | G170: Comptroller | H170: *Represent companies in negotiating contracts and formulating policies with suppliers. *Direct and coordinate activities of personnel engaged in buying, selling, and distributing materials, equipment, machinery, and supplies. *Interview and hire staff, and oversee staff training. *Locate vendors of materials, equipment or supplies, and interview them to determine product availability and terms of sales. *Prepare and process requisitions and purchase orders for supplies and equipment. *Develop and implement purchasing and contract management instructions, policies, and procedures. | I170: 100-3-005/100-3-009/100-3-010,200-1-001,300-19,300-38,300-39,400-5,400-49,400-71,500-12,500-22,600-1,600-4 | K170: VI.2 | W170: 100 - Education [100-3-005]Business Administration or [100-3-009]Public Relations or [100-3-010]Marketing 200 - Language [200-1-001]Advanced English 300 - Knowledge [300-19]Sales and Marketing , [300-38]Resource Management, [300-39]Suppliers and Contractors Management 400 - Experience [400-5]Minimum 5 years experience in similar position, [400-49]Business Negotiations , [400-71]Supplier Management 500 - Skills [500-12]Information Ordering, [500-22]Negotiation 600 - Work Values [600-1]Strong Work Ethic, [600-4]Honesty and Integrity | Z170: 2133.333333 | AA170: 2133.333333 | AB170: =60218/30 -> 2007.266667 | AC170: =64000/30 -> 2133.333333 | AD170: =99927/30 -> 3330.9 | AE170: VI.2
A171: 145 | B171: 11 3061 | C171: ADM | D171: SAL | E171: Administrative | F171: Administrative Support | G171: Purchasing Manager | H171: *Represent companies in negotiating contracts and formulating policies with suppliers. *Direct and coordinate activities of personnel engaged in buying, selling, and distributing materials, equipment, machinery, and supplies. *Interview and hire staff, and oversee staff training. *Locate vendors of materials, equipment or supplies, and interview them to determine product availability and terms of sales. *Prepare and process requisitions and purchase orders for supplies and equipment. *Develop and implement purchasing and contract management instructions, policies, and procedures. | I171: 100-3-005/100-3-009/100-3-010,200-1-001,300-19,300-38,300-39,400-5,400-49,400-71,500-12,500-22,600-1,600-4 | J171: 810.572.220 | K171: VI.4 | L171: 810.572.220 | M171: 810.572.220 | O171: 810.572.220 | P171: 810.572.220 | Q171: 810.572.220 | R171: 810.572.220 | W171: 100 - Education [100-3-005]Business Administration or [100-3-009]Public Relations or [100-3-010]Marketing 200 - Language [200-1-001]Advanced English 300 - Knowledge [300-19]Sales and Marketing , [300-38]Resource Management, [300-39]Suppliers and Contractors Management 400 - Experience [400-5]Minimum 5 years experience in similar position, [400-49]Business Negotiations , [400-71]Supplier Management 500 - Skills [500-12]Information Ordering, [500-22]Negotiation 600 - Work Values [600-1]Strong Work Ethic, [600-4]Honesty and Integrity | Z171: 1473.666667 | AA171: 1473.666667 | AB171: =37105/30 -> 1236.833333 | AC171: =44210/30 -> 1473.666667 | AD171: =66195/30 -> 2206.5 | AE171: VI.4
A172: 146 | B172: 11 3071 | C172: ADM | D172: SAL | E172: Warehouse | F172: Distribution | G172: Procurement Manager | H172: *Analyze expenditures and other financial information to develop plans, policies, or budgets for increasing profits or improving services. *Set operations policies and standards, including determining safety procedures for the handling of dangerous goods. *Plan, organize, or manage the work of subordinate staff to ensure that the work is accomplished in a manner consistent with organizational requirements. *Negotiate and authorize contracts with equipment and materials suppliers, and monitor contract fulfillment. | I172: 100-3-005/100-3-008,200-1-001,300-39,300-49,300-50,300-51,400-5,400-43,400-44,400-54,400-57,500-6,500-12,600-2,600-4 | J172: 610.596.220 | K172: II.24 | M172: 610.596.220 | O172: 610.596.220 | P172: 610.596.220 | Q172: 610.596.220 | R172: 610.596.220 | W172: 100 - Education [100-3-005]Business Administration or [100-3-008]Human Resources 200 - Language [200-1-001]Advanced English 300 - Knowledge [300-39]Suppliers and Contractors Management, [300-49]Materials Handling, [300-50]Inventories, [300-51]Arrangement, Assortment, and Delivery of Materials 400 - Experience [400-5]Minimum 5 years experience in similar position, [400-43]Materialists Coordination, [400-44]Physical Inventory Control, [400-54]Materials Management and Planning, [400-57]Inventory Management 500 - Skills [500-6]Complex Problem Solving, [500-12]Information Ordering 600 - Work Values [600-2]Dependability and Responsability, [600-4]Honesty and Integrity | Z172: 2182.633333 | AA172: 2182.633333 | AB172: =48660/30 -> 1622 | AC172: =65479/30 -> 2182.633333 | AD172: =80310/30 -> 2677 | AE172: II.24
A173: 147 | B173: 11-2022 | C173: ADM | D173: SAL | E173: Sales | F173: Manufacturing | G173: Warehouse Manager | H173: * Resolve customer complaints regarding sales and service. *Oversee regional and local sales managers and their staffs. * Plan and direct staffing, training, and performance evaluations to develop and control sales and service programs. *Determine price schedules and discount rates. * Review operational records and reports to project sales and determine profitability. *Monitor customer preferences to determine focus of sales efforts. *Prepare budgets and approve budget expenditures. | I173: 100-3-005/100-3-009/100-3-010,200-1-001,300-19,300-79,400-31,400-2,400-49,400-78,500-14,500-17,500-22,600-1,600-4 | K173: IV.38 | L173: 610.616.220 | M173: 610.616.220 | O173: 610.616.220 | P173: 610.616.220 | Q173: 610.616.220 | R173: 610.616.220 | W173: 100 - Education [100-3-005]Business Administration or [100-3-009]Public Relations or [100-3-010]Marketing 200 - Language [200-1-001]Advanced English 300 - Knowledge [300-19]Sales and Marketing , [300-79]International Commerce 400 - Experience [400-31]Team Work, [400-2]Minimum 2 years experience in similar position, [400-49]Business Negotiations , [400-78]Customer Service 500 - Skills [500-14]Proactive, [500-17]Self-management, [500-22]Negotiation 600 - Work Values [600-1]Strong Work Ethic, [600-4]Honesty and Integrity | Z173: 1771.533333 | AA173: 1771.533333 | AB173: =46823/30 -> 1560.766667 | AC173: =53146/30 -> 1771.533333 | AD173: =59470/30 -> 1982.333333 | AE173: IV.38
A174: 148 | B174: 11-2022 | C174: ADM | D174: SAL | E174: Sales | F174: Manufacturing | G174: Sales Manager | H174: * Resolve customer complaints regarding sales and service. *Oversee regional and local sales managers and their staffs. * Plan and direct staffing, training, and performance evaluations to develop and control sales and service programs. *Determine price schedules and discount rates. * Review operational records and reports to project sales and determine profitability. *Monitor customer preferences to determine focus of sales efforts. *Prepare budgets and approve budget expenditures. | I174: 100-3-005/100-3-009/100-3-010,200-1-001,300-19,300-79,400-31,400-2,400-49,400-78,500-14,500-17,500-22,600-1,600-4 | J174: 420.100.222 | K174: VIII.1 | L174: 420.100.222 | M174: 420.100.222 | N174: 420.100.222 | O174: 420.100.222 | P174: 420.100.222 | Q174: 420.100.222 | R174: 420.100.222 | W174: 100 - Education [100-3-005]Business Administration or [100-3-009]Public Relations or [100-3-010]Marketing 200 - Language [200-1-001]Advanced English 300 - Knowledge [300-19]Sales and Marketing , [300-79]International Commerce 400 - Experience [400-31]Team Work, [400-2]Minimum 2 years experience in similar position, [400-49]Business Negotiations , [400-78]Customer Service 500 - Skills [500-14]Proactive, [500-17]Self-management, [500-22]Negotiation 600 - Work Values [600-1]Strong Work Ethic, [600-4]Honesty and Integrity | Z174: 2533.333333 | AA174: 2533.333333 | AB174: =68205/30 -> 2273.5 | AC174: =76000/30 -> 2533.333333 | AD174: =93574/30 -> 3119.133333 | AE174: VIII.1
A175: 149 | B175: 11-3011 | C175: ADM | D175: SAL | E175: Management | F175: Manufacturing | G175: Sales Representative | H175: * Direct or coordinate the supportive services department of a business, agency, or organization. *Prepare and review operational reports and schedules to ensure accuracy and efficiency. *Set goals and deadlines for the department. *Acquire, distribute and store supplies. *Analyze internal processes and recommend and implement procedural or policy changes to improve operations, such as supply changes or the disposal of records. *Plan, administer and control budgets for contracts, equipment and supplies. | I175: 100-3-002/100-3-005/100-3-008,200-1-001,300-1,300-14,300-20,300-24,300-73,400-1,400-19,400-64,500-7,500-8,500-12,600-1,600-2 | J175: 420.100.222 | K175: VIII.4 | L175: 420.100.222 | M175: 420.100.222 | N175: 420.100.222 | O175: 420.100.222 | P175: 420.100.222 | Q175: 420.100.222 | R175: 420.100.222 | W175: 100 - Education [100-3-002]Financial Administration or [100-3-005]Business Administration or [100-3-008]Human Resources 200 - Language [200-1-001]Advanced English 300 - Knowledge [300-1]Administration and Management, [300-14]Personnel and Human Resources, [300-20]Quality Control, [300-24]Planning, [300-73]Organizational Development 400 - Experience [400-1]Minimum 1 year experience in similar position, [400-19]New Projects Development and Implementation, [400-64]General accounting 500 - Skills [500-7]Judgement and Decision Making, [500-8]Communication and Oral Expression , [500-12]Information Ordering 600 - Work Values [600-1]Strong Work Ethic, [600-2]Dependability and Responsability | Z175: 500 | AA175: 500 | AB175: =14340/30 -> 478 | AC175: =15000/30 -> 500 | AD175: =22087/30 -> 736.2333333 | AE175: VIII.4
A176: 150 | B176: 11-3011 | C176: ADM | D176: SAL | E176: Management | F176: Manufacturing | G176: Administrative Manager | H176: * Direct or coordinate the supportive services department of a business, agency, or organization. *Prepare and review operational reports and schedules to ensure accuracy and efficiency. *Set goals and deadlines for the department. *Acquire, distribute and store supplies. *Analyze internal processes and recommend and implement procedural or policy changes to improve operations, such as supply changes or the disposal of records. *Plan, administer and control budgets for contracts, equipment and supplies. | I176: 100-3-002/100-3-005/100-3-008,200-1-001,300-1,300-14,300-20,300-24,300-73,400-1,400-19,400-64,500-7,500-8,500-12,600-1,600-2 | J176: 220.112.220 | K176: VI.19 | M176: 220.112.220 | P176: 220.112.220 | Q176: 220.112.220 | R176: 220.112.220 | W176: 100 - Education [100-3-002]Financial Administration or [100-3-005]Business Administration or [100-3-008]Human Resources 200 - Language [200-1-001]Advanced English 300 - Knowledge [300-1]Administration and Management, [300-14]Personnel and Human Resources, [300-20]Quality Control, [300-24]Planning, [300-73]Organizational Development 400 - Experience [400-1]Minimum 1 year experience in similar position, [400-19]New Projects Development and Implementation, [400-64]General accounting 500 - Skills [500-7]Judgement and Decision Making, [500-8]Communication and Oral Expression , [500-12]Information Ordering 600 - Work Values [600-1]Strong Work Ethic, [600-2]Dependability and Responsability | Z176: 1610.7 | AA176: 1610.7 | AB176: =37389/30 -> 1246.3 | AC176: =48321/30 -> 1610.7 | AD176: =62006/30 -> 2066.866667 | AE176: VI.19
A177: 150 | B177: 11-3111 | C177: ADM | D177: SAL | E177: Management | F177: Manufacturing | G177: Office Manager | H177: * Direct or coordinate the supportive services department of a business, agency, or organization. *Prepare and review operational reports and schedules to ensure accuracy and efficiency. *Set goals and deadlines for the department. *Acquire, distribute and store supplies. *Analyze internal processes and recommend and implement procedural or policy changes to improve operations, such as supply changes or the disposal of records. *Plan, administer and control budgets for contracts, equipment and supplies. | I177: 100-3-002/100-3-005/100-3-008,200-1-001,300-1,300-14,300-20,300-24,300-73,400-1,400-19,400-64,500-7,500-8,500-12,600-1,600-2 | J177: 220.112.220 | K177: VI.19 | M177: 220.112.220 | P177: 220.112.220 | Q177: 220.112.220 | R177: 220.112.220 | W177: 100 - Education [100-3-002]Financial Administration or [100-3-005]Business Administration or [100-3-008]Human Resources 200 - Language [200-1-001]Advanced English 300 - Knowledge [300-1]Administration and Management, [300-14]Personnel and Human Resources, [300-20]Quality Control, [300-24]Planning, [300-73]Organizational Development 400 - Experience [400-1]Minimum 1 year experience in similar position, [400-19]New Projects Development and Implementation, [400-64]General accounting 500 - Skills [500-7]Judgement and Decision Making, [500-8]Communication and Oral Expression , [500-12]Information Ordering 600 - Work Values [600-1]Strong Work Ethic, [600-2]Dependability and Responsability | Z177: 1610.7 | AA177: 1610.7 | AB177: =37389/30 -> 1246.3 | AC177: =48321/30 -> 1610.7 | AD177: =62006/30 -> 2066.866667 | AE177: VI.19
A178: 151 | B178: 11-9041 | C178: ADM | D178: SAL | E178: Administrative | F178: Engineering | G178: Trainning and Development Manager | H178: * Manage the coordination and overall integration of technical activities in architecture or engineering projects. * Direct, review, or approve project design changes. * Confer with management, production, or marketing staff to discuss project specifications or procedures. * Present and explain proposals, reports, or findings to clients. *Consult or negotiate with clients to prepare project specification. | I178: 100-2/100-3-005,200-1-001,300-1,300-11,300-14,300-21,300-28,400-5,400-14,400-19,400-56,500-7,500-8,500-15,500-24,600-1 | J178: 520.104.220 | K178: II.24 | L178: 520.104.220 | M178: 520.104.220 | O178: 520.104.220 | P178: 520.104.220 | Q178: 520.104.220 | R178: 520.104.220 | W178: 100 - Education [100-2]Engineering or [100-3-005]Business Administration 200 - Language [200-1-001]Advanced English 300 - Knowledge [300-1]Administration and Management, [300-11]Engineering and Technology, [300-14]Personnel and Human Resources, [300-21]Quality Assurance, [300-28]Continuous Improvement 400 - Experience [400-5]Minimum 5 years experience in similar position, [400-14]Lean Manufacturing, [400-19]New Projects Development and Implementation, [400-56]Programming and production control 500 - Skills [500-7]Judgement and Decision Making, [500-8]Communication and Oral Expression , [500-15]Leadership, [500-24]Analytical 600 - Work Values [600-1]Strong Work Ethic | Z178: 1309.67325 | AA178: 1309.67325 | AB178: =48660/30 -> 1622 | AC178: =65479/30 -> 2182.633333 | AD178: =80310/30 -> 2677 | AE178: II.24
A179: 151 | B179: 11-9041 | C179: ADM | D179: SAL | E179: Administrative | F179: Engineering | G179: Engineering Manager | H179: * Manage the coordination and overall integration of technical activities in architecture or engineering projects. * Direct, review, or approve project design changes. * Confer with management, production, or marketing staff to discuss project specifications or procedures. * Present and explain proposals, reports, or findings to clients. *Consult or negotiate with clients to prepare project specification | I179: 100-2/100-3-005,200-1-001,300-1,300-11,300-14,300-21,300-28,400-5,400-14,400-19,400-56,500-7,500-8,500-15,500-24,600-1 | J179: 520.104.220 | K179: II.24 | L179: 520.104.220 | M179: 520.104.220 | O179: 520.104.220 | P179: 520.104.220 | Q179: 520.104.220 | R179: 520.104.220 | W179: 100 - Education [100-2]Engineering or [100-3-005]Business Administration 200 - Language [200-1-001]Advanced English 300 - Knowledge [300-1]Administration and Management, [300-11]Engineering and Technology, [300-14]Personnel and Human Resources, [300-21]Quality Assurance, [300-28]Continuous Improvement 400 - Experience [400-5]Minimum 5 years experience in similar position, [400-14]Lean Manufacturing, [400-19]New Projects Development and Implementation, [400-56]Programming and production control 500 - Skills [500-7]Judgement and Decision Making, [500-8]Communication and Oral Expression , [500-15]Leadership, [500-24]Analytical 600 - Work Values [600-1]Strong Work Ethic | Z179: 1309.67325 | AA179: 1309.67325 | AB179: =48660/30 -> 1622 | AC179: =65479/30 -> 2182.633333 | AD179: =80310/30 -> 2677 | AE179: II.24
A180: 151 | B180: 11-9041 | C180: ADM | D180: SAL | E180: Management | F180: Quality Control | G180: Engineering Program Manager | H180: * Manage the coordination and overall integration of technical activities in architecture or engineering projects. * Direct, review, or approve project design changes. * Confer with management, production, or marketing staff to discuss project specifications or procedures. * Present and explain proposals, reports, or findings to clients. *Consult or negotiate with clients to prepare project specification | I180: 100-2/100-3-005,200-1-001,300-1,300-11,300-14,300-21,300-28,400-5,400-14,400-19,400-56,500-7,500-8,500-15,500-24,600-1 | J180: 520.104.220 | K180: II.24 | L180: 520.104.220 | M180: 520.104.220 | O180: 520.104.220 | P180: 520.104.220 | Q180: 520.104.220 | R180: 520.104.220 | W180: 100 - Education [100-2]Engineering or [100-3-005]Business Administration 200 - Language [200-1-001]Advanced English 300 - Knowledge [300-1]Administration and Management, [300-11]Engineering and Technology, [300-14]Personnel and Human Resources, [300-21]Quality Assurance, [300-28]Continuous Improvement 400 - Experience [400-5]Minimum 5 years experience in similar position, [400-14]Lean Manufacturing, [400-19]New Projects Development and Implementation, [400-56]Programming and production control 500 - Skills [500-7]Judgement and Decision Making, [500-8]Communication and Oral Expression , [500-15]Leadership, [500-24]Analytical 600 - Work Values [600-1]Strong Work Ethic | Z180: 1309.67325 | AA180: 1309.67325 | AB180: =48660/30 -> 1622 | AC180: =65479/30 -> 2182.633333 | AD180: =80310/30 -> 2677 | AE180: II.24
A181: 152 | B181: 13-1051 | C181: IND | D181: SAL | E181: Administrative | F181: Administrative Support | G181: Project Manager | H181: * Consult with clients, vendors, personnel in other departments or construction foremen to discuss and formulate estimates and resolve issues. * Analyze blueprints and other documentation to prepare time, cost, materials, and labor estimates. * Prepare estimates for use in selecting vendors or subcontractors. * Confer with engineers, architects, owners, contractors and subcontractors on changes and adjustments to cost estimates. * Prepare estimates used by management for purposes such as planning, organizing, and scheduling work. | I181: 100-3-002/100-3-006,200-1-001,300-66,300-69,400-6,400-19,500-7,500-22,500-24,600-1 | K181: II.65 | W181: 100 - Education [100-3-002]Financial Administration or [100-3-006]Public Accountant 200 - Language [200-1-001]Advanced English 300 - Knowledge [300-66]Assets Control, [300-69]Accounting Systems 400 - Experience [400-6]Minimum 6 years experience in similar position, [400-19]New Projects Development and Implementation 500 - Skills [500-7]Judgement and Decision Making, [500-22]Negotiation , [500-24]Analytical 600 - Work Values [600-1]Strong Work Ethic | Z181: 951.6 | AA181: 951.6 | AB181: =23390/30 -> 779.6666667 | AC181: =28548/30 -> 951.6 | AD181: =36245/30 -> 1208.166667 | AE181: II.65
A182: 153 | B182: 13-1075 | C182: IND | D182: SAL | E182: Human Resources | F182: Personnel Management | G182: Cost Analyst | H182: * Advise management on matters related to the administration of contracts or employee discipline or grievance procedures. * Call or meet with union, company, government, or other interested parties to discuss labor relations matters, such as contract negotiations or grievances. * Draft contract proposals or counter-proposals for collective bargaining or other labor negotiations. * Draft rules or regulations to govern collective bargaining activities in collaboration with company, government, or employee representatives. | I182: 100-3-005/100-3-008,200-1-001,300-70,300-71,300-72,300-74,400-5,400-13,500-15,500-23,600-1 | K182: VI.20 | W182: 100 - Education [100-3-005]Business Administration or [100-3-008]Human Resources 200 - Language [200-1-001]Advanced English 300 - Knowledge [300-70]Training, [300-71]Labor Relations Management, [300-72]Recruitment and Selection process, [300-74]Payroll Management 400 - Experience [400-5]Minimum 5 years experience in similar position, [400-13]HR Management 500 - Skills [500-15]Leadership, [500-23]Organization 600 - Work Values [600-1]Strong Work Ethic | Z182: 1007.333333 | AA182: 1007.333333 | AB182: =25995/30 -> 866.5 | AC182: =30220/30 -> 1007.333333 | AD182: =34209/30 -> 1140.3 | AE182: VI.20
A183: 154 | B183: 13-1141 | C183: IND | D183: SAL | E183: Human Resources | F183: Personnel Management | G183: Labor Relations Specialist | H183: * Ensure company compliance with federal and state laws, including reporting requirements. * Evaluate job positions, determining classification, exempt or non-exempt status, and salary. * Plan, develop, evaluate, improve, and communicate methods and techniques for selecting, promoting, compensating, evaluating, and training workers. * Prepare occupational classifications, job descriptions and salary scales. * Provide advice on the resolution of classification and salary complaints. * Advise managers and employees on state and federal employment regulations, collective agreements, benefit and compensation policies, personnel procedures and classification programs | I183: 100-3-005/100-3-008/200-1-001,300-14,300-71,300-72,400-8,400-74,500-7,500-9,500-19,600-2,600-4 | K183: V.12 | W183: 100 - Education [100-3-005]Business Administration or [100-3-008]Human Resources or [200-1-001]Advanced English 300 - Knowledge [300-14]Personnel and Human Resources, [300-71]Labor Relations Management, [300-72]Recruitment and Selection process 400 - Experience [400-8]Minimum 8 years experience in similar position, [400-74]HR Planning 500 - Skills [500-7]Judgement and Decision Making, [500-9]Problem Sensitivity, [500-19]Empathy 600 - Work Values [600-2]Dependability and Responsability, [600-4]Honesty and Integrity | Z183: 1250.633333 | AA183: 1250.633333 | AB183: =32617/30 -> 1087.233333 | AC183: =37519/30 -> 1250.633333 | AD183: =42422/30 -> 1414.066667 | AE183: V.12
A184: 155 | B184: 15-1121 | C184: IND | D184: SAL | E184: Administrative | F184: MIS | G184: Human Resources Analyst | H184: * Expand or modify system to serve new purposes or improve work flow. * Test, maintain, and monitor computer programs and systems, including coordinating the installation of computer programs and systems. * Develop, document and revise system design procedures, test procedures, and quality standards. * Provide staff and users with assistance solving computer related problems, such as malfunctions and program problems. * Review and analyze computer printouts and performance indicators to locate code problems, and correct errors by correcting codes | I184: 100-2-002/100-2-003/100-3-001,200-1-001,300-6,300-32,400-5,400-22,400-59,400-60,500-24,500-26,600-2 | K184: V.14 | W184: 100 - Education [100-2-002]Computer Systems Engineer in Hardware or [100-2-003]Computer Systems Engineer in Software or [100-3-001]Information Technologies 200 - Language [200-1-001]Advanced English 300 - Knowledge [300-6]Computers and Electronics , [300-32]Computer Sciences 400 - Experience [400-5]Minimum 5 years experience in similar position, [400-22]Quality Tools, [400-59]Communications equipment configuration, [400-60]Technical support 500 - Skills [500-24]Analytical, [500-26]Visual 600 - Work Values [600-2]Dependability and Responsability | Z184: 730.7666667 | AA184: 730.7666667 | AB184: =19207/30 -> 640.2333333 | AC184: =21923/30 -> 730.7666667 | AD184: =26057/30 -> 868.5666667 | AE184: V.14
A185: 156 | B185: 15-1121 | C185: IND | D185: SAL | E185: Administrative | F185: MIS | G185: Computer Systems Analyst | H185: * Expand or modify system to serve new purposes or improve work flow. * Test, maintain, and monitor computer programs and systems, including coordinating the installation of computer programs and systems. * Develop, document and revise system design procedures, test procedures, and quality standards. * Provide staff and users with assistance solving computer related problems, such as malfunctions and program problems. * Review and analyze computer printouts and performance indicators to locate code problems, and correct errors by correcting codes | I185: 100-2-002/100-2-003/100-3-001,200-1-001,300-6,300-32,400-8,400-22,400-59,400-60,500-24,500-26,600-2 | K185: VII.7 | W185: 100 - Education [100-2-002]Computer Systems Engineer in Hardware or [100-2-003]Computer Systems Engineer in Software or [100-3-001]Information Technologies 200 - Language [200-1-001]Advanced English 300 - Knowledge [300-6]Computers and Electronics , [300-32]Computer Sciences 400 - Experience [400-8]Minimum 8 years experience in similar position, [400-22]Quality Tools, [400-59]Communications equipment configuration, [400-60]Technical support 500 - Skills [500-24]Analytical, [500-26]Visual 600 - Work Values [600-2]Dependability and Responsability | Z185: 833.3333333 | AA185: 833.3333333 | AB185: =18379/30 -> 612.6333333 | AC185: =25000/30 -> 833.3333333 | AD185: =31896/30 -> 1063.2 | AE185: VII.7
A186: 156 | B186: 15-1141 | C186: IND | D186: SAL | E186: Administrative | F186: MIS | G186: Programmer Analyst | H186: * Test programs or databases, correct errors and make necessary modifications. * Modify existing databases and database management systems or direct programmers and analysts to make changes. * Plan, coordinate and implement security measures to safeguard information in computer files against accidental or unauthorized damage, modification or disclosure. * Work as part of a project team to coordinate database development and determine project scope and limitations. * Write and code logical and physical database descriptions and specify identifiers of database to management system or direct others in coding descriptions. | I186: 100-2-003/100-2-009/100-3-001,200-1-001,300-11,300-16,300-24,400-8,400-15,400-62,500-7,500-21,500-24,600-2 | K186: VII.7 | W186: 100 - Education [100-2-003]Computer Systems Engineer in Software or [100-2-009]Process Technology Engineer or [100-3-001]Information Technologies 200 - Language [200-1-001]Advanced English 300 - Knowledge [300-11]Engineering and Technology, [300-16]Production and Processing, [300-24]Planning 400 - Experience [400-8]Minimum 8 years experience in similar position, [400-15]Management of Computer Programs , [400-62]Data capture 500 - Skills [500-7]Judgement and Decision Making, [500-21]Innovation, [500-24]Analytical 600 - Work Values [600-2]Dependability and Responsability | Z186: 833.3333333 | AA186: 833.3333333 | AB186: =18379/30 -> 612.6333333 | AC186: =25000/30 -> 833.3333333 | AD186: =31896/30 -> 1063.2 | AE186: VII.7
A187: 157 | B187: 15-1151 | C187: IND | D187: SAL | E187: Administrative | F187: MIS | G187: Database Analyst | H187: * Oversee the daily performance of computer systems. * Answer user inquiries regarding computer software or hardware operation to resolve problems. * Enter commands and observe system functioning to verify correct operations and detect errors. * Set up equipment for employee use, performing or ensuring proper installation of cables, operating systems, or appropriate software. * Install and perform minor repairs to hardware, software, or peripheral equipment, following design or installation specifications. * Maintain records of daily data communication transactions, problems and remedial actions taken, or installation activities | I187: 100-2-003/100-3-001,200-1-001,300-7,300-62,300-63,400-6,400-56,400-60,500-1,500-6,600-2 | K187: VII.3 | W187: 100 - Education [100-2-003]Computer Systems Engineer in Software or [100-3-001]Information Technologies 200 - Language [200-1-001]Advanced English 300 - Knowledge [300-7]Customer and Personal Service, [300-62]Hardware, [300-63]Sofware 400 - Experience [400-6]Minimum 6 years experience in similar position, [400-56]Programming and production control, [400-60]Technical support 500 - Skills [500-1]Active Listening, [500-6]Complex Problem Solving 600 - Work Values [600-2]Dependability and Responsability | Z187: 1096.333333 | AA187: 1096.333333 | AB187: =31560/30 -> 1052 | AC187: =32890/30 -> 1096.333333 | AD187: =37713/30 -> 1257.1 | AE187: VII.3
A188: 157 | B188: 15-1151 | C188: IND | D188: SAL | E188: Administrative | F188: MIS | G188: Network Support Specialist | H188: * Oversee the daily performance of computer systems. * Answer user inquiries regarding computer software or hardware operation to resolve problems. * Enter commands and observe system functioning to verify correct operations and detect errors. * Set up equipment for employee use, performing or ensuring proper installation of cables, operating systems, or appropriate software. * Install and perform minor repairs to hardware, software, or peripheral equipment, following design or installation specifications. * Maintain records of daily data communication transactions, problems and remedial actions taken, or installation activities | I188: 100-2-003/100-3-001,200-1-001,300-7,300-62,300-63,400-6,400-56,400-60,500-1,500-6,600-2 | K188: VII.3 | W188: 100 - Education [100-2-003]Computer Systems Engineer in Software or [100-3-001]Information Technologies 200 - Language [200-1-001]Advanced English 300 - Knowledge [300-7]Customer and Personal Service, [300-62]Hardware, [300-63]Sofware 400 - Experience [400-6]Minimum 6 years experience in similar position, [400-56]Programming and production control, [400-60]Technical support 500 - Skills [500-1]Active Listening, [500-6]Complex Problem Solving 600 - Work Values [600-2]Dependability and Responsability | Z188: 1096.333333 | AA188: 1096.333333 | AB188: =31560/30 -> 1052 | AC188: =32890/30 -> 1096.333333 | AD188: =37713/30 -> 1257.1 | AE188: VII.3
A189: 158 | B189: 15-1199.01 | C189: IND | D189: SAL | E189: Administrative | F189: MIS | G189: Software Test Engineer | H189: * Design test plans, scenarios, scripts, or procedures. * Test system modifications to prepare for implementation. * Develop testing programs that address areas such as database impacts, software scenarios, regression testing, negative testing, error or bug retests, or usability. * Document software defects, using a bug tracking system, and report defects to software developers. | I189: 100-2-003/100-3-001,200-1-001,300-63,400-5,400-15,500-9,500-12,600-2 | W189: 100 - Education [100-2-003]Computer Systems Engineer in Software or [100-3-001]Information Technologies 200 - Language [200-1-001]Advanced English 300 - Knowledge [300-63]Sofware 400 - Experience [400-5]Minimum 5 years experience in similar position, [400-15]Management of Computer Programs 500 - Skills [500-9]Problem Sensitivity, [500-12]Information Ordering 600 - Work Values [600-2]Dependability and Responsability | Z189: 941.2666667 | AA189: 941.2666667 | AB189: =25540.08/30 -> 851.336 | AC189: =28238/30 -> 941.2666667 | AD189: =28922/30 -> 964.0666667
A190: 159 | B190: 15-1199.07 | C190: IND | D190: SAL | E190: Warehouse | F190: MIS | G190: Data Warehousing Specialist | H190: * Design, implement, or operate comprehensive data warehouse systems to balance optimization of data access with batch loading and resource utilization factors, according to customer requirements. * Develop data warehouse process models, including sourcing, loading, transformation, and extraction. * Create or implement metadata processes and frameworks. * Create plans, test files, and scripts for data warehouse testing, ranging from unit to integration testing. * Create supporting documentation, such as metadata and diagrams of entity relationships, business processes, and process flow. * Design and implement warehouse database structures | I190: 100-2-003/100-2-009/100-3-001,200-1-001,300-16,300-21,300-39,400-5,400-46,400-57,400-77,500-12,500-23,600-2,600-4 | J190: 330.398.340 | L190: 330.398.340 | M190: 330.398.340 | N190: 330.398.340 | O190: 330.398.340 | P190: 330.398.340 | Q190: 330.398.340 | R190: 330.398.340 | W190: 100 - Education [100-2-003]Computer Systems Engineer in Software or [100-2-009]Process Technology Engineer or [100-3-001]Information Technologies 200 - Language [200-1-001]Advanced English 300 - Knowledge [300-16]Production and Processing, [300-21]Quality Assurance, [300-39]Suppliers and Contractors Management 400 - Experience [400-5]Minimum 5 years experience in similar position, [400-46]Supply Chain Improvement Programs, [400-57]Inventory Management, [400-77]Files Administration 500 - Skills [500-12]Information Ordering, [500-23]Organization 600 - Work Values [600-2]Dependability and Responsability, [600-4]Honesty and Integrity | Z190: 807.6613333 | AA190: 807.6613333 | AB190: =22135/30 -> 737.8333333 | AC190: =24229.84/30 -> 807.6613333 | AD190: =31044.59/30 -> 1034.819667
A191: 160 | B191: 17-2041 | C191: IND | D191: SAL | E191: Manufacturing | F191: Engineering | G191: Chemical Engineer | H191: * Develop safety procedures to be employed by workers operating equipment or working in close proximity to on-going chemical reactions. * Troubleshoot problems with chemical manufacturing processes. * Evaluate chemical equipment and processes to identify ways to optimize performance or to ensure compliance with safety and environmental regulations. * Conduct research to develop new and improved chemical manufacturing processes. * Determine most effective arrangement of operations such as mixing, crushing, heat transfer, distillation, and drying. | I191: 100-2-006,200-1-001,300-3,300-16,300-23,300-35,400-2,400-85,500-17,600-2 | L191: 120.240.340 | M191: 120.240.340 | O191: 120.240.340 | P191: 120.240.340 | Q191: 120.240.340 | R191: 120.240.340 | W191: 100 - Education [100-2-006]Chemical Engineer 200 - Language [200-1-001]Advanced English 300 - Knowledge [300-3]Chemistry, [300-16]Production and Processing, [300-23]Quality Systems / TS / ISO, [300-35]Testing 400 - Experience [400-2]Minimum 2 years experience in similar position, [400-85]Environmental Procedures 500 - Skills [500-17]Self-management 600 - Work Values [600-2]Dependability and Responsability | Z191: 763.482 | AA191: 763.482 | AB191: =20308.41/30 -> 676.947 | AC191: =22904.46/30 -> 763.482 | AD191: =24732.79/30 -> 824.4263333
A192: 161 | B192: 17-2131 | C192: IND | D192: SAL | E192: Materials | F192: Engineering | G192: Materials Engineer | H192: * Review new product plans and make recommendations for material selection based on design objectives, such as strength, weight, heat resistance, electrical conductivity, and cost. * Supervise the work of technologists, technicians, and other engineers . * Analyze product failure data and laboratory test results to determine causes of problems and develop solutions. * Conduct or supervise tests on raw materials or finished products to ensure their quality. * Plan and implement laboratory operations for the purpose of developing material and fabrication procedures that meet cost, product specification, and performance standards | I192: 100-2-007/100-2-010,200-1-001,300-11,300-21,300-29,400-4,400-43,400-54,500-7,500-18,600-2,600-4 | K192: IV.4 | W192: 100 - Education [100-2-007]Industrial Engineer or [100-2-010]Manufacturing Technology Engineer 200 - Language [200-1-001]Advanced English 300 - Knowledge [300-11]Engineering and Technology, [300-21]Quality Assurance, [300-29]5's 400 - Experience [400-4]Minimum 4 years experience in similar position, [400-43]Materialists Coordination, [400-54]Materials Management and Planning 500 - Skills [500-7]Judgement and Decision Making, [500-18]Stress management 600 - Work Values [600-2]Dependability and Responsability, [600-4]Honesty and Integrity | Z192: 1232.2 | AA192: 1232.2 | AB192: =31987/30 -> 1066.233333 | AC192: =36966/30 -> 1232.2 | AD192: =45600/30 -> 1520 | AE192: IV.4
A193: 161 | B193: 17-2131 | C193: IND | D193: SAL | E193: Materials | F193: Engineering | G193: Materials Development Engineer | H193: * Review new product plans and make recommendations for material selection based on design objectives, such as strength, weight, heat resistance, electrical conductivity, and cost. * Supervise the work of technologists, technicians, and other engineers . * Analyze product failure data and laboratory test results to determine causes of problems and develop solutions. * Conduct or supervise tests on raw materials or finished products to ensure their quality. * Plan and implement laboratory operations for the purpose of developing material and fabrication procedures that meet cost, product specification, and performance standards | I193: 100-2-007/100-2-010,200-1-001,300-11,300-21,300-29,400-4,400-43,400-54,500-7,500-18,600-2,600-4 | K193: IV.4 | W193: 100 - Education [100-2-007]Industrial Engineer or [100-2-010]Manufacturing Technology Engineer 200 - Language [200-1-001]Advanced English 300 - Knowledge [300-11]Engineering and Technology, [300-21]Quality Assurance, [300-29]5's 400 - Experience [400-4]Minimum 4 years experience in similar position, [400-43]Materialists Coordination, [400-54]Materials Management and Planning 500 - Skills [500-7]Judgement and Decision Making, [500-18]Stress management 600 - Work Values [600-2]Dependability and Responsability, [600-4]Honesty and Integrity | Z193: 1232.2 | AA193: 1232.2 | AB193: =31987/30 -> 1066.233333 | AC193: =36966/30 -> 1232.2 | AD193: =45600/30 -> 1520 | AE193: IV.4
A194: 162 | B194: 17-2141 | C194: IND | D194: SAL | E194: Manufacturing | F194: Engineering | G194: Mechanical Engineer | H194: * Research, design, evaluate, install, operate, and maintain mechanical products, equipment, systems and processes to meet requirements, applying knowledge of engineering principles. * Confer with engineers or other personnel to implement operating procedures, resolve system malfunctions, or provide technical information. * Recommend design modifications to eliminate machine or system malfunctions. * Conduct research that tests or analyzes the feasibility, design, operation, or performance of equipment, components, or systems. * Investigate equipment failures and difficulties to diagnose faulty operation, and to make recommendations to maintenance crew. * Develop and test models of alternate designs and processing methods to assess feasibility, operating condition effects, possible new applications and necessity of modification. | I194: 100-2-008,200-1-001,300-8,300-11,300-13,300-22,300-33,300-45,400-4,400-26,400-35,400-58,500-6,600-2 | W194: 100 - Education [100-2-008]Mechanical Engineer 200 - Language [200-1-001]Advanced English 300 - Knowledge [300-8]Design, [300-11]Engineering and Technology, [300-13]Mechanical, [300-22]Measurement Equipment, [300-33]Calibration, [300-45]Machines and Tools 400 - Experience [400-4]Minimum 4 years experience in similar position, [400-26]Production Equipment / Machinery, [400-35]Mechanics, [400-58]Machines and equipment set- up 500 - Skills [500-6]Complex Problem Solving 600 - Work Values [600-2]Dependability and Responsability | Z194: 822.5333333 | AA194: 822.5333333 | AB194: =24385.74/30 -> 812.858 | AC194: =24676/30 -> 822.5333333 | AD194: =27820.78/30 -> 927.3593333
A195: 162 | B195: 17-2141 | C195: IND | D195: SAL | E195: Manufacturing | F195: Engineering | G195: Mechanical Design Engineer | H195: * Research, design, evaluate, install, operate, and maintain mechanical products, equipment, systems and processes to meet requirements, applying knowledge of engineering principles. * Confer with engineers or other personnel to implement operating procedures, resolve system malfunctions, or provide technical information. * Recommend design modifications to eliminate machine or system malfunctions. * Conduct research that tests or analyzes the feasibility, design, operation, or performance of equipment, components, or systems. * Investigate equipment failures and difficulties to diagnose faulty operation, and to make recommendations to maintenance crew. * Develop and test models of alternate designs and processing methods to assess feasibility, operating condition effects, possible new applications and necessity of modification. | I195: 100-2-008,200-1-001,300-8,300-11,300-13,300-22,300-33,300-45,400-4,400-26,400-35,400-58,500-6,600-2 | W195: 100 - Education [100-2-008]Mechanical Engineer 200 - Language [200-1-001]Advanced English 300 - Knowledge [300-8]Design, [300-11]Engineering and Technology, [300-13]Mechanical, [300-22]Measurement Equipment, [300-33]Calibration, [300-45]Machines and Tools 400 - Experience [400-4]Minimum 4 years experience in similar position, [400-26]Production Equipment / Machinery, [400-35]Mechanics, [400-58]Machines and equipment set- up 500 - Skills [500-6]Complex Problem Solving 600 - Work Values [600-2]Dependability and Responsability | Z195: 822.5333333 | AA195: 822.5333333 | AB195: =24385.74/30 -> 812.858 | AC195: =24676/30 -> 822.5333333 | AD195: =27820.78/30 -> 927.3593333
A196: 163 | B196: 17-3021 | C196: IND | D196: SAL | E196: Manufacturing | F196: Engineering | G196: Aerospace Engineering | H196: * Inspect, diagnose, maintain, and operate test setups and equipment to detect malfunctions. * Record and interpret test data on parts, assemblies, and mechanisms. * Confer with engineering personnel regarding details and implications of test procedures and results. * Adjust, repair or replace faulty components of test setups and equipment. * Identify required data, data acquisition plans and test parameters, setting up equipment to conform to these specifications | I196: 100-2-005,200-1-001,300-11,300-22,300-45,400-4,400-33,400-58,500-16,500-21,600-2 | W196: 100 - Education [100-2-005]Aerospace Engineer 200 - Language [200-1-001]Advanced English 300 - Knowledge [300-11]Engineering and Technology, [300-22]Measurement Equipment, [300-45]Machines and Tools 400 - Experience [400-4]Minimum 4 years experience in similar position, [400-33]Time and motion analysis, [400-58]Machines and equipment set- up 500 - Skills [500-16]Team Work, [500-21]Innovation 600 - Work Values [600-2]Dependability and Responsability | Z196: 755.7666667 | AA196: 755.7666667 | AB196: =21474/30 -> 715.8 | AC196: =22673/30 -> 755.7666667 | AD196: =25133/30 -> 837.7666667
A197: 164 | B197: 17-3023 | C197: IND | D197: SAL | E197: Manufacturing | F197: Engineering | G197: Electrical and Electronic Engineering | H197: * Identify and resolve equipment malfunctions, working with manufacturers or field representatives as necessary to procure replacement parts. * Test electronics units, using standard test equipment, and analyze results to evaluate performance and determine need for adjustment. * Adjust or replace defective or improperly functioning circuitry or electronics components, using hand tools or soldering iron. * Assemble, test, or maintain circuitry or electronic components, according to engineering instructions, technical manuals, or knowledge of electronics, using hand or power tools. * Perform preventative maintenance or calibration of equipment or systems. | I197: 100-2-012,200-1-001,300-11,300-40,400-2,400-60,500-3,500-9,500-18,600-2 | W197: 100 - Education [100-2-012]Electronics Engineer 200 - Language [200-1-001]Advanced English 300 - Knowledge [300-11]Engineering and Technology, [300-40]Preventive and Corrective Maintenance 400 - Experience [400-2]Minimum 2 years experience in similar position, [400-60]Technical support 500 - Skills [500-3]Monitoring, [500-9]Problem Sensitivity, [500-18]Stress management 600 - Work Values [600-2]Dependability and Responsability | Z197: 777.0666667 | AA197: 777.0666667 | AB197: =20721/30 -> 690.7 | AC197: =23312/30 -> 777.0666667 | AD197: =25285/30 -> 842.8333333
A198: 165 | B198: 17-3024 | C198: IND | D198: HOU | E198: Manufacturing | F198: Engineering | G198: Electro-Mechanical Technician | H198: * Test performance of electromechanical assemblies, using test instruments such as oscilloscopes, electronic voltmeters, or bridges. * Read blueprints, schematics, diagrams, or technical orders to determine methods and sequences of assembly. * Install electrical or electronic parts and hardware in housings or assemblies, using soldering equipment and hand tools. * Align, fit, or assemble component parts, using hand or power tools, fixtures, templates, or microscopes. * Inspect parts for surface defects. | I198: 100-4-001/100-2-012,200-1-001,300-11,300-40,400-2,400-60,400-24,500-3,500-9,500-18,600-2 | K198: II.58 | W198: 100 - Education [100-4-001]Electronic or [100-2-012]Electronics Engineer 200 - Language [200-1-001]Advanced English 300 - Knowledge [300-11]Engineering and Technology, [300-40]Preventive and Corrective Maintenance 400 - Experience [400-2]Minimum 2 years experience in similar position, [400-60]Technical support, [400-24]Destructive Testing 500 - Skills [500-3]Monitoring, [500-9]Problem Sensitivity, [500-18]Stress management 600 - Work Values [600-2]Dependability and Responsability | Z198: 459.4666667 | AA198: 459.4666667 | AB198: =13629/30 -> 454.3 | AC198: =13784/30 -> 459.4666667 | AD198: =13939/30 -> 464.6333333 | AE198: II.58
A199: 165 | B199: 17-3024 | C199: IND | D199: HOU | E199: Manufacturing | F199: Engineering | G199: Electronic Technician | H199: * Test performance of electromechanical assemblies, using test instruments such as oscilloscopes, electronic voltmeters, or bridges. * Read blueprints, schematics, diagrams, or technical orders to determine methods and sequences of assembly. * Install electrical or electronic parts and hardware in housings or assemblies, using soldering equipment and hand tools. * Align, fit, or assemble component parts, using hand or power tools, fixtures, templates, or microscopes. * Inspect parts for surface defects. | I199: 100-4-001/100-2-012,200-1-001,300-11,300-40,400-2,400-60,400-24,500-3,500-9,500-18,600-2 | K199: II.58 | W199: 100 - Education [100-4-001]Electronic or [100-2-012]Electronics Engineer 200 - Language [200-1-001]Advanced English 300 - Knowledge [300-11]Engineering and Technology, [300-40]Preventive and Corrective Maintenance 400 - Experience [400-2]Minimum 2 years experience in similar position, [400-60]Technical support, [400-24]Destructive Testing 500 - Skills [500-3]Monitoring, [500-9]Problem Sensitivity, [500-18]Stress management 600 - Work Values [600-2]Dependability and Responsability | Z199: 459.4666667 | AA199: 459.4666667 | AB199: =13629/30 -> 454.3 | AC199: =13784/30 -> 459.4666667 | AD199: =13939/30 -> 464.6333333 | AE199: II.58
A200: 166 | B200: 17-3029 | C200: IND | D200: SAL | E200: Materials | F200: Engineering | G200: Non-Destructive Testing Specialist | H200: * Interpret or evaluate test results in accordance with applicable codes, standards, specifications, or procedures. * Interpret the results of all methods of non-destructive testing (NDT) such as acoustic emission, electromagnetic, leak, liquid penetrant, magnetic particle, neutron radiographic, radiographic, thermal or infrared, ultrasonic, vibration analysis, and visual testing. * Select, calibrate, or operate equipment used in the non-destructive testing (NDT) of products or materials. * Examine structures or vehicles such as aircraft, trains, nuclear reactors, bridges, dams, and pipelines using non-destructive testing (NDT) techniques. * Make radiographic images to detect flaws in objects while leaving objects intact | I200: 100-2-008/100-2-009,200-1-001,300-11,300-16,300-22,300-33,300-35,400-5,400-101,500-14,600-1 | W200: 100 - Education [100-2-008]Mechanical Engineer or [100-2-009]Process Technology Engineer 200 - Language [200-1-001]Advanced English 300 - Knowledge [300-11]Engineering and Technology, [300-16]Production and Processing, [300-22]Measurement Equipment, [300-33]Calibration, [300-35]Testing 400 - Experience [400-5]Minimum 5 years experience in similar position, [400-101]Conciliaciones 500 - Skills [500-14]Proactive 600 - Work Values [600-1]Strong Work Ethic | Z200: 824.1333333 | AA200: 824.1333333 | AB200: =22518/30 -> 750.6 | AC200: =24724/30 -> 824.1333333 | AD200: =27456/30 -> 915.2
A201: 167 | B201: 27-3031 | C201: IND | D201: SAL | E201: Administrative | F201: Administrative Support | G201: Public Relations Specialist | H201: * Respond to requests for information from the media or designate an appropriate spokesperson or information source. * Study the objectives, promotional policies, or needs of organizations to develop public relations strategies that will influence public opinion or promote ideas, products, or services. * Plan or direct development or communication of informational programs to maintain favorable public or stockholder perceptions of an organization's accomplishments or agenda. * Establish or maintain cooperative relationships with representatives of community, consumer, employee, or public interest groups. * Prepare or edit organizational publications for internal and external audiences, including employee newsletters and stockholders' reports. * Coach client representatives in effective communication with the public or with employee | I201: 100-3-003/100-3-009/100-3-010,200-1-001,300-5,300-61,400-5,400-76,500-4,500-8,500-19,600-2,600-8 | W201: 100 - Education [100-3-003]Communication Sciences or [100-3-009]Public Relations or [100-3-010]Marketing 200 - Language [200-1-001]Advanced English 300 - Knowledge [300-5]Communications and Media, [300-61]Communication Systems 400 - Experience [400-5]Minimum 5 years experience in similar position, [400-76]Social Events Logistic 500 - Skills [500-4]Social Perceptiveness, [500-8]Communication and Oral Expression , [500-19]Empathy 600 - Work Values [600-2]Dependability and Responsability, [600-8]Loyalty | Z201: 1149.233333 | AA201: 1149.233333 | AB201: =26391.8/30 -> 879.7266667 | AC201: =34477/30 -> 1149.233333 | AD201: =37379/30 -> 1245.966667
... 53 more rows

Sheet PROGRESSIVE POSITIONS (hidden)
A3: Clave | B3: Categoria | C3: Pago | D3: Industria | E3: Proceso | F3: Position
A4: OP01 | B4: DIR | C4: HOU | D4: AEROSPACE | E4: SHEET METAL ASSEMBLY | F4: Production Operator (Aerospace - Sheet Metal Assembly)
A5: OP02 | B5: DIR | C5: HOU | D5: AEROSPACE | E5: WIRE HARNESSES | F5: Production Operator (Aerospace - Wire harnesses)
A6: OP03 | B6: DIR | C6: HOU | D6: AEROSPACE | E6: MACHINING | F6: Production Operator (Aerospace - Machining)
A7: OP04 | B7: DIR | C7: HOU | D7: AUTOMOTIVE | E7: METAL MECHANIC | F7: Production Operator (Automotive - Metal Mechanic)
A8: OP05 | B8: DIR | C8: HOU | D8: AUTOMOTIVE | E8: PLASTIC INJECTION MOLDING | F8: Production Operator (Automotive - Plastic Injection Molding)
A9: OP06 | B9: DIR | C9: HOU | D9: AUTOMOTIVE | E9: WIRE HARNESSES | F9: Production Operator (Automotive - Wire harnesses)
A10: OP07 | B10: DIR | C10: HOU | D10: ELECTRONIC | E10: ASSEMBLY | F10: Production Operator (Electronic - Assembly)
A11: OP08 | B11: DIR | C11: HOU | D11: ELECTRONIC | E11: REPAIR | F11: Production Operator (Electronic - Repair)
A12: OP09 | B12: DIR | C12: HOU | D12: AUTOMOTIVE | E12: ASSEMBLY | F12: Production Operator (Automotive - Assembly)
A13: OP10 | B13: DIR | C13: HOU | D13: GENERIC | E13: PROCESS | F13: Production Operator (Generic Process)
A14: PNT01 | B14: DIR | C14: HOU | D14: AEROSPACE | E14: MACHINING | F14: Painting Operator (Automotive - Machining)
A15: OCNC01 | B15: DIR | C15: HOU | D15: AUTOMOTIVE | E15: ASSEMBLY | F15: CNC Operator
A16: OP11 | B16: DIR | C16: HOU | D16: APPLIANCE | E16: PLASTIC EXTRUSION | F16: Production Operator (Appliance - Plastic Extrusion)
A17: OP12 | B17: DIR | C17: HOU | D17: APPLIANCE | E17: PLASTIC INJECTION MOLDING | F17: Production Operator (Appliance - Plastic Injection Molding)
A18: OP13 | B18: DIR | C18: HOU | D18: APPLIANCE | E18: METAL MECHANIC | F18: Production Operator (Appliance - Metal Mechanic)
A19: OP14 | B19: DIR | C19: HOU | D19: APPLIANCE | E19: ASSEMBLY | F19: Production Operator (Appliance - Assembly)
A20: last | B20: last | C20: last | D20: last | E20: last | F20: last

Sheet ORGCHAPPLIANCEASSEMBLY (hidden)
D1: INDUSTRY | E1: APPLIANCE
D2: PROCESS | E2: ASSEMBLY
D3: Clase Riesgo Trabajo | E3: Clase III | F3: DRIVERS SUMA | J3: QTY SUMA
D4: Origen | E4: Org Chart B M P Electrodomesticos Textil 2016
A5: CLASS | B5: TYPE | C5: # | D5: ID | E5: POSITION | F5: D1 | G5: D2 | H5: D3 | I5: D4 | K5: Max | L5: Start | M5: Nivel | N5: Meses | O5: Progresion | P5: Distribute on shifts
A6: DIR | B6: HOU | C6: 1 | D6: DIR-HOU-1 | E6: Operator | F6: RAMP UP | M6: OP14 | P6: YES
A7: DIR | B7: HOU | C7: 301 | D7: DIR-HOU-301 | E7: Operator A | M7: 209 | N7: 1 | O7: OP14 | P7: YES
A8: DIR | B8: HOU | C8: 302 | D8: DIR-HOU-302 | E8: Operator B | M8: 210 | N8: 2 | O8: OP14 | P8: YES
A9: DIR | B9: HOU | C9: 303 | D9: DIR-HOU-303 | E9: Operator C | M9: 211 | N9: 4 | O9: OP14 | P9: YES
A10: DIR | B10: HOU | C10: 304 | D10: DIR-HOU-304 | E10: Operator D | M10: 212 | N10: 7 | O10: OP14 | P10: YES
A11: DIR | B11: HOU | C11: 305 | D11: DIR-HOU-305 | E11: Operator E | M11: 213 | N11: 10 | O11: OP14 | P11: YES
A12: DIR | B12: HOU | C12: 306 | D12: DIR-HOU-306 | E12: Operator F | M12: 214 | N12: 13 | O12: OP14 | P12: YES
A17: IND | B17: HOU | C17: 101 | D17: IND-HOU-101 | E17: Quality Inspector | F17: 1 | J17: 20 | M17: 28 | P17: YES
A18: IND | B18: SAL | C18: 102 | D18: IND-SAL-102 | E18: Maintenance Technician | F18: 1 | J18: 150 | M18: 45 | P18: NO
A19: IND | B19: SAL | C19: 103 | D19: IND-SAL-103 | E19: Warehouse Supervisor | F19: 1 | J19: 150 | K19: 1 | L19: 1 | M19: 51 | P19: NO
A20: IND | B20: HOU | C20: 104 | D20: IND-HOU-104 | E20: Team/Group Leader | F20: 1 | J20: 20 | M20: 8 | P20: YES
A21: IND | B21: SAL | C21: 105 | D21: IND-SAL-105 | E21: Quality Control Technician | F21: 1 | J21: 30 | M21: 27 | P21: NO
A22: IND | B22: SAL | C22: 106 | D22: IND-SAL-106 | E22: Quality Control Engineer | F22: 1 | J22: 10 | K22: 1 | L22: 1 | M22: 26 | P22: NO
A23: IND | B23: SAL | C23: 107 | D23: IND-SAL-107 | E23: Manufacturing Engineer | F23: 1 | J23: 1 | K23: 1 | M23: 36 | P23: NO
A24: IND | B24: SAL | C24: 108 | D24: IND-SAL-108 | E24: Traffic and Customs Manager | F24: 1 | J24: 50 | K24: 1 | M24: 57 | P24: NO
A25: IND | B25: SAL | C25: 109 | D25: IND-SAL-109 | E25: Production Supervisor | F25: 1 | J25: 100 | M25: 3 | P25: YES
A29: ADM | B29: SAL | C29: 201 | D29: ADM-SAL-201 | E29: Plant Manager | F29: 1 | J29: 1 | K29: 1 | L29: 1 | M29: 1 | P29: NO
A30: ADM | B30: SAL | C30: 202 | D30: ADM-SAL-202 | E30: Quality Control Manager | F30: 1 | J30: 1 | K30: 1 | L30: 1 | M30: 23 | P30: NO
A31: ADM | B31: SAL | C31: 203 | D31: ADM-SAL-203 | E31: Administrative Assistant | F31: 1 | J31: 1 | K31: 1 | M31: 73 | P31: NO

Sheet ORGCHAPPLIANCEMETALMECHANIC (hidden)
D1: INDUSTRY | E1: APPLIANCE
D2: PROCESS | E2: METAL MECHANIC
D3: Clase Riesgo Trabajo | E3: Clase III | F3: DRIVERS SUMA | J3: QTY SUMA
D4: Origen | E4: Org Chart Borg Warner Automotriz 2016
A5: CLASS | B5: TYPE | C5: # | D5: ID | E5: POSITION | F5: D1 | G5: D2 | H5: D3 | I5: D4 | K5: Max | L5: Start | M5: Nivel | N5: Meses | O5: Progresion | P5: Distribute on shifts
A6: DIR | B6: HOU | C6: 1 | D6: DIR-HOU-1 | E6: Operator | F6: RAMP UP | M6: OP13 | P6: YES
A7: DIR | B7: HOU | C7: 301 | D7: DIR-HOU-301 | E7: Operator A | M7: 203 | N7: 1 | O7: OP13 | P7: YES
A8: DIR | B8: HOU | C8: 302 | D8: DIR-HOU-302 | E8: Operator B | M8: 204 | N8: 2 | O8: OP13 | P8: YES
A9: DIR | B9: HOU | C9: 303 | D9: DIR-HOU-303 | E9: Operator C | M9: 205 | N9: 4 | O9: OP13 | P9: YES
A10: DIR | B10: HOU | C10: 304 | D10: DIR-HOU-304 | E10: Operator D | M10: 206 | N10: 7 | O10: OP13 | P10: YES
A11: DIR | B11: HOU | C11: 305 | D11: DIR-HOU-305 | E11: Operator E | M11: 207 | N11: 10 | O11: OP13 | P11: YES
A12: DIR | B12: HOU | C12: 306 | D12: DIR-HOU-306 | E12: Operator F | M12: 208 | N12: 13 | O12: OP13 | P12: YES
A18: IND | B18: HOU | C18: 101 | D18: IND-HOU-101 | E18: Team/Group Leader | F18: 1 | J18: 10 | M18: 8 | P18: NO
A19: IND | B19: SAL | C19: 102 | D19: IND-SAL-102 | E19: Enviromental Technician | F19: 1 | J19: 1 | K19: 1 | L19: 1 | M19: 74 | P19: NO
A20: IND | B20: SAL | C20: 103 | D20: IND-SAL-103 | E20: Tools Technician | F20: 1 | J20: 1 | K20: 1 | L20: 1 | M20: 35 | P20: NO
A21: IND | B21: HOU | C21: 104 | D21: IND-HOU-104 | E21: Quality Control Technician | F21: 1 | J21: 15 | M21: 27 | P21: YES
A22: IND | B22: SAL | C22: 105 | D22: IND-SAL-105 | E22: Maintenance Equipment Technician | F22: 1 | J22: 20 | M22: 45 | P22: NO
A23: IND | B23: SAL | C23: 106 | D23: IND-SAL-106 | E23: Manufacturing Engineer | F23: 1 | J23: 50 | M23: 36 | P23: NO
A24: IND | B24: SAL | C24: 107 | D24: IND-SAL-107 | E24: Production Planner | F24: 1 | J24: 100 | M24: 56 | P24: NO
A25: IND | B25: SAL | C25: 108 | D25: IND-SAL-108 | E25: Production Supervisor | F25: 1 | J25: 20 | M25: 3 | P25: NO
A26: IND | B26: SAL | C26: 109 | D26: IND-SAL-109 | E26: Material Handler | F26: 1 | J26: 200 | M26: 78 | P26: NO
A34: ADM | B34: SAL | C34: 201 | D34: ADM-SAL-201 | E34: Plant Manager | F34: 1 | J34: 1 | K34: 1 | L34: 1 | M34: 1 | P34: NO
A35: ADM | B35: SAL | C35: 202 | D35: ADM-SAL-202 | E35: Engineering Manager | F35: 1 | J35: 1 | K35: 1 | L35: 1 | M35: 151 | P35: NO
A36: ADM | B36: SAL | C36: 203 | D36: ADM-SAL-203 | E36: Maintenance Manager | F36: 1 | J36: 1 | K36: 1 | L36: 1 | M36: 41 | P36: NO
A37: ADM | B37: SAL | C37: 204 | D37: ADM-SAL-204 | E37: Quality Control Manager | F37: 1 | J37: 20 | K37: 1 | M37: 23 | P37: NO
A38: ADM | B38: SAL | C38: 205 | D38: ADM-SAL-205 | E38: Production Manager | F38: 1 | J38: 50 | K38: 1 | M38: 2 | P38: NO

Sheet ORGCHAPPLIANCEPLASTICINJECTION (hidden)
D1: INDUSTRY | E1: APPLIANCE
D2: PROCESS | E2: PLASTIC INJECTION MOLDING
D3: Clase Riesgo Trabajo | E3: Clase III | F3: DRIVERS SUMA | J3: QTY SUMA
D4: Origen | E4: Org Chart Master Presition Electrodomesticos Inyeccion de Plastico 2016
A5: CLASS | B5: TYPE | C5: # | D5: ID | E5: POSITION | F5: D1 | G5: D2 | H5: D3 | I5: D4 | K5: Max | L5: Start | M5: Nivel | N5: Meses | O5: Progresion | P5: Distribute on shifts
A6: DIR | B6: HOU | C6: 1 | D6: DIR-HOU-1 | E6: Operator | F6: RAMP UP | M6: OP12 | P6: YES
A7: DIR | B7: HOU | C7: 301 | D7: DIR-HOU-301 | E7: Operator A | M7: 196 | N7: 1 | O7: OP12 | P7: YES
A8: DIR | B8: HOU | C8: 302 | D8: DIR-HOU-302 | E8: Operator B | M8: 197 | N8: 2 | O8: OP12 | P8: YES
A9: DIR | B9: HOU | C9: 303 | D9: DIR-HOU-303 | E9: Operator C | M9: 198 | N9: 7 | O9: OP12 | P9: YES
A10: DIR | B10: HOU | C10: 304 | D10: DIR-HOU-304 | E10: Operator D | M10: 199 | N10: 13 | O10: OP12 | P10: YES
A11: DIR | B11: HOU | C11: 305 | D11: DIR-HOU-305 | E11: Operator E | M11: 200 | N11: 19 | O11: OP12 | P11: YES
A12: DIR | B12: HOU | C12: 306 | D12: DIR-HOU-306 | E12: Operator F | M12: 201 | N12: 24 | O12: OP12 | P12: YES
A19: IND | B19: HOU | C19: 101 | D19: IND-HOU-101 | E19: Quality Inspector | F19: 1 | J19: 25 | M19: 28 | P19: YES
A20: IND | B20: SAL | C20: 102 | D20: IND-SAL-102 | E20: Planning and Production Control Supervisor | F20: 1 | J20: 100 | M20: 56 | P20: NO
A21: IND | B21: SAL | C21: 103 | D21: IND-SAL-103 | E21: Maintenance Equipment Technician | F21: 1 | J21: 100 | K21: 1 | L21: 1 | M21: 45 | P21: YES
A22: IND | B22: SAL | C22: 104 | D22: IND-SAL-104 | E22: Production General Supervisor | F22: 1 | J22: 100 | K22: 1 | L22: 1 | M22: 3 | P22: NO
A23: IND | B23: SAL | C23: 105 | D23: IND-SAL-105 | E23: Manufacturing Engineer | F23: 1 | J23: 100 | M23: 36 | P23: NO
A24: IND | B24: SAL | C24: 106 | D24: IND-SAL-106 | E24: Material Handler | F24: 1 | J24: 100 | M24: 78 | P24: NO
A25: IND | B25: SAL | C25: 107 | D25: IND-SAL-107 | E25: Team/Group Leader | F25: 1 | J25: 100 | M25: 8 | P25: NO
A26: IND | B26: SAL | C26: 108 | D26: IND-SAL-108 | E26: Tools Technician | F26: 1 | J26: 100 | M26: 39 | P26: NO
A30: ADM | B30: SAL | C30: 201 | D30: ADM-SAL-201 | E30: Engineering Manager | F30: 1 | J30: 1 | K30: 1 | M30: 151 | P30: NO
A31: ADM | B31: SAL | C31: 202 | D31: ADM-SAL-202 | E31: Maintenance Manager | F31: 1 | J31: 1 | K31: 1 | M31: 41 | P31: NO
A32: ADM | B32: SAL | C32: 203 | D32: ADM-SAL-203 | E32: Customs Supervisor | F32: 1 | J32: 1 | K32: 1 | M32: 58 | P32: NO
A33: ADM | B33: SAL | C33: 204 | D33: ADM-SAL-204 | E33: Plant Manager | F33: 1 | J33: 1 | K33: 1 | M33: 1 | P33: NO
A34: ADM | B34: SAL | C34: 205 | D34: ADM-SAL-205 | E34: Production Manager | F34: 1 | J34: 1 | K34: 1 | M34: 2 | P34: NO
A35: ADM | B35: SAL | C35: 206 | D35: ADM-SAL-206 | E35: Quality Control Manager | F35: 1 | J35: 1 | K35: 1 | M35: 23 | P35: NO
A36: ADM | B36: SAL | C36: 207 | D36: ADM-SAL-207 | E36: Environmental Engineer | F36: 1 | J36: 1 | K36: 1 | M36: 74 | P36: NO

Sheet ORGCHAPPLIANCEPLASTICEXTRUSION (hidden)
D1: INDUSTRY | E1: APPLIANCE
D2: PROCESS | E2: PLASTIC EXTRUSION
D3: Clase Riesgo Trabajo | E3: Clase III | F3: DRIVERS SUMA | J3: QTY SUMA
D4: Origen | E4: Org Chart Custom Profile Electrodomesticos Extrusion de Plastico 2016
A5: CLASS | B5: TYPE | C5: # | D5: ID | E5: POSITION | F5: D1 | G5: D2 | H5: D3 | I5: D4 | K5: Max | L5: Start | M5: Nivel | N5: Meses | O5: Progresion | P5: Distribute on shifts
A6: DIR | B6: HOU | C6: 1 | D6: DIR-HOU-1 | E6: Operator | F6: RAMP UP | M6: OP11 | P6: YES
A7: DIR | B7: HOU | C7: 301 | D7: DIR-HOU-301 | E7: Operator A | M7: 190 | N7: 1 | O7: OP11 | P7: YES
A8: DIR | B8: HOU | C8: 302 | D8: DIR-HOU-302 | E8: Operator B | M8: 191 | N8: 2 | O8: OP11 | P8: YES
A9: DIR | B9: HOU | C9: 303 | D9: DIR-HOU-303 | E9: Operator C | M9: 192 | N9: 7 | O9: OP11 | P9: YES
A10: DIR | B10: HOU | C10: 304 | D10: DIR-HOU-304 | E10: Operator D | M10: 193 | N10: 13 | O10: OP11 | P10: YES
A11: DIR | B11: HOU | C11: 305 | D11: DIR-HOU-305 | E11: Operator E | M11: 194 | N11: 19 | O11: OP11 | P11: YES
A12: DIR | B12: HOU | C12: 306 | D12: DIR-HOU-306 | E12: Operator F | M12: 195 | N12: 24 | O12: OP11 | P12: YES
A19: IND | B19: HOU | C19: 101 | D19: IND-HOU-101 | E19: Setup Extrusion | F19: 1 | J19: 50 | M19: 202 | P19: YES
A20: IND | B20: HOU | C20: 102 | D20: IND-HOU-102 | E20: Receiving and Shipping Materials Operator | F20: 1 | J20: 100 | M20: 53 | P20: NO
A21: IND | B21: SAL | C21: 103 | D21: IND-SAL-103 | E21: Group Team Leader | F21: 1 | J21: 100 | M21: 8 | P21: NO
A22: IND | B22: SAL | C22: 104 | D22: IND-SAL-104 | E22: Administrative assistant | F22: 1 | J22: 1 | K22: 1 | L22: 1 | M22: 73 | P22: YES
A23: IND | B23: SAL | C23: 105 | D23: IND-SAL-105 | E23: Maintenance Equipment Technician | F23: 1 | J23: 100 | K23: 1 | L23: 1 | M23: 45 | P23: YES
A24: IND | B24: SAL | C24: 106 | D24: IND-SAL-106 | E24: Productive Equipment Maintenance Supervisor | F24: 1 | J24: 200 | K24: 1 | L24: 1 | M24: 44 | P24: NO
A25: IND | B25: SAL | C25: 107 | D25: IND-SAL-107 | E25: Quality Control Engineer | F25: 1 | J25: 200 | M25: 26 | P25: NO
A26: IND | B26: SAL | C26: 108 | D26: IND-SAL-108 | E26: Production Supervisor | F26: 1 | J26: 1 | K26: 1 | L26: 1 | M26: 3 | P26: NO
A27: IND | B27: SAL | C27: 109 | D27: IND-SAL-109 | E27: Production Supervisor Manufacturing | F27: 1 | J27: 100 | K27: 1 | L27: 1 | M27: 140 | P27: NO
A28: IND | B28: SAL | C28: 110 | D28: IND-SAL-110 | E28: Quality Inspector | F28: 1 | J28: 100 | L28: 1 | M28: 28 | P28: NO
A29: IND | B29: SAL | C29: 111 | D29: IND-SAL-111 | E29: Buyer | F29: 1 | J29: 100 | K29: 1 | L29: 1 | M29: 181 | P29: NO
A35: ADM | B35: SAL | C35: 201 | D35: ADM-SAL-201 | E35: Warehouse Supervisor | F35: 1 | J35: 1 | K35: 1 | M35: 51 | P35: NO
A36: ADM | B36: SAL | C36: 202 | D36: ADM-SAL-202 | E36: Plant Manager | F36: 1 | J36: 1 | K36: 1 | M36: 1 | P36: NO

Sheet ORGCHAEROSPACESHEETMETALASSEMBL (hidden)
D1: INDUSTRY | E1: AEROSPACE
D2: PROCESS | E2: SHEET METAL ASSEMBLY
D3: Clase Riesgo Trabajo | E3: Clase III | F3: DRIVERS SUMA | J3: QTY SUMA
D4: Origen | E4: Org Chart Bell Aeroespacial Sheet Metal 2016
A5: CLASS | B5: TYPE | C5: # | D5: ID | E5: POSITION | F5: D1 | G5: D2 | H5: D3 | I5: D4 | K5: Max | L5: Start | M5: Nivel | N5: Meses | O5: Progresion | P5: Distribute on shifts
A6: DIR | B6: HOU | C6: 1 | D6: DIR-HOU-1 | E6: Operator | F6: RAMP UP | M6: OP01 | P6: YES
A7: DIR | B7: HOU | C7: 301 | D7: DIR-HOU-301 | E7: Operator A | M7: 86 | N7: 1 | O7: OP01 | P7: YES
A8: DIR | B8: HOU | C8: 302 | D8: DIR-HOU-302 | E8: Operator B | M8: 87 | N8: 2 | O8: OP01 | P8: YES
A9: DIR | B9: HOU | C9: 303 | D9: DIR-HOU-303 | E9: Operator C | M9: 88 | N9: 7 | O9: OP01 | P9: YES
A10: DIR | B10: HOU | C10: 304 | D10: DIR-HOU-304 | E10: Operator D | M10: 89 | N10: 13 | O10: OP01 | P10: YES
A11: DIR | B11: HOU | C11: 305 | D11: DIR-HOU-305 | E11: Operator E | M11: 90 | N11: 19 | O11: OP01 | P11: YES
A12: DIR | B12: HOU | C12: 306 | D12: DIR-HOU-306 | E12: Operator F | M12: 91 | N12: 24 | O12: OP01 | P12: YES
A19: IND | B19: HOU | C19: 101 | D19: IND-HOU-101 | E19: Quality Inspector | F19: 1 | J19: 25 | M19: 28 | P19: YES
A20: IND | B20: HOU | C20: 102 | D20: IND-HOU-102 | E20: Receiving and Shipping Materials Operator | F20: 1 | J20: 100 | M20: 53 | P20: NO
A21: IND | B21: SAL | C21: 103 | D21: IND-SAL-103 | E21: Planning and Production Control Supervisor | F21: 1 | J21: 100 | M21: 56 | P21: NO
A22: IND | B22: SAL | C22: 104 | D22: IND-SAL-104 | E22: Industrial Engineer | F22: 1 | J22: 100 | M22: 79 | P22: YES
A23: IND | B23: SAL | C23: 105 | D23: IND-SAL-105 | E23: Maintenance Equipment Technician | F23: 1 | J23: 100 | K23: 4 | L23: 1 | M23: 45 | P23: YES
A24: IND | B24: SAL | C24: 106 | D24: IND-SAL-106 | E24: Quality Control Supervisor | F24: 1 | J24: 200 | M24: 25 | P24: NO
A25: IND | B25: SAL | C25: 107 | D25: IND-SAL-107 | E25: Quality Control Engineer | F25: 1 | J25: 200 | M25: 26 | P25: NO
A26: IND | B26: SAL | C26: 108 | D26: IND-SAL-108 | E26: Systems Technician | F26: 1 | J26: 1 | K26: 1 | L26: 1 | M26: 61 | P26: NO
A27: IND | B27: SAL | C27: 109 | D27: IND-SAL-109 | E27: Production General Supervisor | F27: 1 | J27: 50 | M27: 3 | P27: NO
A28: IND | B28: SAL | C28: 110 | D28: IND-SAL-110 | E28: Manufacturing Engineer | F28: 1 | J28: 100 | M28: 36 | P28: NO
A29: IND | B29: SAL | C29: 111 | D29: IND-SAL-111 | E29: Asistance Administrative / Recepcionist | F29: 1 | J29: 100 | K29: 1 | L29: 1 | M29: 73 | P29: NO
A30: IND | B30: SAL | C30: 112 | D30: IND-SAL-112 | E30: Trainer | F30: 1 | J30: 100 | M30: 9 | P30: NO
A31: IND | B31: SAL | C31: 113 | D31: IND-SAL-113 | E31: Nurse | F31: 1 | J31: 100 | L31: 1 | M31: 76 | P31: NO
A32: IND | B32: SAL | C32: 114 | D32: IND-SAL-114 | E32: Material Handler | F32: 1 | J32: 100 | M32: 78 | P32: NO
A35: ADM | B35: SAL | C35: 201 | D35: ADM-SAL-201 | E35: Process Engineering General Supervisor | F35: 1 | J35: 250 | K35: 1 | M35: 32 | P35: NO
A36: ADM | B36: SAL | C36: 202 | D36: ADM-SAL-202 | E36: Warehouse Supervisor | F36: 1 | J36: 1 | K36: 1 | M36: 51 | P36: NO
A37: ADM | B37: SAL | C37: 203 | D37: ADM-SAL-203 | E37: Purchasing Supervisor | F37: 1 | J37: 1 | K37: 1 | M37: 50 | P37: NO
A38: ADM | B38: SAL | C38: 204 | D38: ADM-SAL-204 | E38: Productive Equipment Maintenance Supervisor | F38: 105 | J38: 10 | K38: 1 | M38: 44 | P38: NO
A39: ADM | B39: SAL | C39: 206 | D39: ADM-SAL-206 | E39: Plant Manager | F39: 1 | J39: 1 | K39: 1 | M39: 1 | P39: NO
A40: ADM | B40: SAL | C40: 207 | D40: ADM-SAL-207 | E40: Production Manager | F40: 1 | J40: 1 | K40: 1 | M40: 2 | P40: NO
A41: ADM | B41: SAL | C41: 208 | D41: ADM-SAL-208 | E41: Quality Control Manager | F41: 1 | J41: 1 | K41: 1 | M41: 23 | P41: NO
A42: ADM | B42: SAL | C42: 209 | D42: ADM-SAL-209 | E42: Logistics and Materials Manager | F42: 1 | J42: 1 | K42: 1 | M42: 47 | P42: NO
A43: ADM | B43: SAL | C43: 211 | D43: ADM-SAL-211 | E43: Environmental Engineer | F43: 1 | J43: 1 | K43: 1 | M43: 74 | P43: NO

Sheet ORGCHAEROSPACEWIREHARNESSES (hidden)
D1: INDUSTRY | E1: AEROSPACE
D2: PROCESS | E2: WIRE HARNESSES
D3: Clase Riesgo Trabajo | E3: Clase III | F3: DRIVERS SUMA | J3: QTY SUMA
D4: Origen | E4: Org Chart Bell Aeroespacial Wire Harness 2016
A5: CLASS | B5: TYPE | C5: # | D5: ID | E5: POSITION | F5: D1 | G5: D2 | H5: D3 | I5: D4 | K5: Max | L5: Start | M5: Nivel | N5: Meses | O5: Progresion | P5: Distribute on shifts
A6: DIR | B6: HOU | C6: 1 | D6: DIR-HOU-1 | E6: Operator | F6: RAMP UP | M6: OP02 | P6: YES
A7: DIR | B7: HOU | C7: 301 | D7: DIR-HOU-301 | E7: Operator level 1 | M7: 92 | N7: 1 | O7: OP02 | P7: YES
A8: DIR | B8: HOU | C8: 302 | D8: DIR-HOU-302 | E8: Operator level 2 | M8: 93 | N8: 2 | O8: OP02 | P8: YES
A9: DIR | B9: HOU | C9: 303 | D9: DIR-HOU-303 | E9: Operator level 3 | M9: 94 | N9: 7 | O9: OP02 | P9: YES
A10: DIR | B10: HOU | C10: 304 | D10: DIR-HOU-304 | E10: Operator level 4 | M10: 95 | N10: 13 | O10: OP02 | P10: YES
A11: DIR | B11: HOU | C11: 305 | D11: DIR-HOU-305 | E11: Operator level 5 | M11: 96 | N11: 19 | O11: OP02 | P11: YES
A12: DIR | B12: HOU | C12: 306 | D12: DIR-HOU-306 | E12: Operator level 6 | M12: 97 | N12: 24 | O12: OP02 | P12: YES
A15: IND | B15: SAL | C15: 101 | D15: IND-SAL-101 | E15: Production Planner | F15: 1 | J15: 50 | M15: 56 | P15: NO
A16: IND | B16: SAL | C16: 102 | D16: IND-SAL-102 | E16: Production General Supervisor | F16: 1 | J16: 27 | M16: 3 | P16: NO
A17: IND | B17: SAL | C17: 103 | D17: IND-SAL-103 | E17: Product Design/Development Engineer | F17: 102 | J17: 2 | M17: 33 | P17: NO
A18: IND | B18: SAL | C18: 104 | D18: IND-SAL-104 | E18: Process Engineering General Supervisor | F18: 102 | J18: 2 | M18: 32 | P18: NO
A19: IND | B19: HOU | C19: 105 | D19: IND-HOU-105 | E19: Quality Inspector | F19: 1 | J19: 11 | M19: 28 | P19: YES
A20: IND | B20: SAL | C20: 106 | D20: IND-SAL-106 | E20: Quality Control Supervisor | F20: 105 | J20: 20 | L20: 1 | M20: 25 | P20: NO
A21: IND | B21: SAL | C21: 107 | D21: IND-SAL-107 | E21: Quality Control Engineer | F21: 1 | J21: 150 | L21: 1 | M21: 26 | P21: NO
A22: IND | B22: SAL | C22: 108 | D22: IND-SAL-108 | E22: Warehouse Supervisor | F22: 110 | J22: 15 | M22: 51 | P22: NO
A23: IND | B23: SAL | C23: 109 | D23: IND-SAL-109 | E23: Purchasing Supervisor | F23: 205 | J23: 1 | K23: 1 | M23: 50 | P23: NO
A24: IND | B24: SAL | C24: 110 | D24: IND-SAL-110 | E24: Industrial Engineer | F24: 1 | J24: 15 | M24: 79 | P24: NO
A25: IND | B25: HOU | C25: 111 | D25: IND-HOU-111 | E25: Shipping Materials Operator | F25: 1 | J25: 27 | M25: 53 | P25: NO
A26: IND | B26: SAL | C26: 112 | D26: IND-SAL-112 | E26: Materials Supervisor | F26: 1 | J26: 50 | M26: 48 | P26: NO
A27: IND | B27: SAL | C27: 113 | D27: IND-SAL-113 | E27: Maintenance Equipment Technician | F27: 1 | J27: 27 | M27: 45 | P27: NO
A28: IND | B28: SAL | C28: 114 | D28: IND-SAL-114 | E28: Productive Equipment Maintenance Supervisor | F28: 113 | J28: 10 | L28: 2 | M28: 44 | P28: NO
A36: ADM | B36: SAL | C36: 202 | D36: ADM-SAL-202 | E36: Material Handler | F36: 206 | J36: 1 | K36: 1 | M36: 78 | P36: NO
A37: ADM | B37: SAL | C37: 203 | D37: ADM-SAL-203 | E37: Manufacturing Manager | F37: 1 | J37: 75 | K37: 1 | L37: 1 | M37: 31 | P37: NO
A38: ADM | B38: SAL | C38: 204 | D38: ADM-SAL-204 | E38: Quality Control Manager | F38: 1 | J38: 25 | K38: 1 | M38: 23 | P38: NO
A39: ADM | B39: SAL | C39: 205 | D39: ADM-SAL-205 | E39: Logistics and Materials Manager | F39: 1 | J39: 75 | K39: 1 | M39: 47 | P39: NO
A40: ADM | B40: SAL | C40: 206 | D40: ADM-SAL-206 | E40: Plant Manager | F40: 1 | J40: 25 | K40: 1 | L40: 1 | M40: 1 | P40: NO
A41: ADM | B41: SAL | C41: 207 | D41: ADM-SAL-207 | E41: Information Technologies Manager | F41: 1 | J41: 1 | K41: 1 | M41: 59 | P41: NO
A42: ADM | B42: SAL | C42: 208 | D42: ADM-SAL-208 | E42: Chauffeur/Messenger | F42: 1 | J42: 100 | K42: 1 | M42: 77 | P42: NO
A43: ADM | B43: SAL | C43: 209 | D43: ADM-SAL-209 | E43: Production Trainer | F43: 1 | J43: 150 | L43: 1 | M43: 9 | P43: NO

Sheet ORGCHAEROSPACEMACHINING (hidden)
D1: INDUSTRY | E1: AEROSPACE
D2: PROCESS | E2: MACHINING
D3: Clase Riesgo Trabajo | E3: Clase III | F3: DRIVERS SUMA | J3: QTY SUMA
D4: Origen | E4: Org Chart Manoir Aeroespacial Maquinados 2016
A5: CLASS | B5: TYPE | C5: # | D5: ID | E5: POSITION | F5: D1 | G5: D2 | H5: D3 | I5: D4 | K5: Max | L5: Start | M5: Nivel | N5: Meses | O5: Progresion | P5: Distribute on shifts | Q5: Sueldo Intermex
A6: DIR | B6: HOU | C6: 1 | D6: DIR-HOU-1 | E6: CNC Technical Operator | F6: RAMP UP | M6: OP03 | P6: YES
A7: DIR | B7: HOU | C7: 301 | D7: DIR-HOU-301 | E7: CNC Technical Operator level 1 | M7: 16 | N7: 1 | O7: OP03 | P7: YES | Q7: 195
A8: DIR | B8: HOU | C8: 302 | D8: DIR-HOU-302 | E8: CNC Technical Operator level 2 | M8: 17 | N8: 2 | O8: OP03 | P8: YES | Q8: 232.5
A9: DIR | B9: HOU | C9: 303 | D9: DIR-HOU-303 | E9: CNC Technical Operator level 3 | M9: 18 | N9: 4 | O9: OP03 | P9: YES | Q9: 246.55
A10: DIR | B10: HOU | C10: 304 | D10: DIR-HOU-304 | E10: CNC Technical Operator level 4 | M10: 19 | N10: 7 | O10: OP03 | P10: YES | Q10: 269.24
A11: DIR | B11: HOU | C11: 305 | D11: DIR-HOU-305 | E11: CNC Technical Operator level 5 | M11: 20 | N11: 10 | O11: OP03 | P11: YES | Q11: 283
A12: DIR | B12: HOU | C12: 306 | D12: DIR-HOU-306 | E12: CNC Technical Operator level 6 | M12: 21 | N12: 13 | O12: OP03 | P12: YES | Q12: 300
A13: DIR | B13: HOU | C13: 2 | D13: DIR-HOU-2 | E13: Painting Operator | F13: RAMP UP | M13: PNT01 | P13: YES
A14: DIR | B14: HOU | C14: 307 | D14: DIR-HOU-307 | E14: Painting Operator 1 | M14: 121 | N14: 1 | O14: PNT01 | P14: YES | Q14: 168
